Workbook

Sheet MEtreh
B1: =COUNTA(B4:B1003) -> 0 | E1: ='D2'!B1 -> فهرست بهای واحد پایه رشته راه، باندفرودگاه و زیرسازی راه آهن رسته راه و ترابری سال 98
A2: ردیف | B2: شماره آیتم | C2: شرح | D2: واحد | E2: بهاي رديف | F2: ضریب A | G2: ضریب B | H2: ضریب C | I2: مقدار | J2: بهای کل برآوردی | K2: بهاي واحد پيشنهادي | L2: بهاي كل پيشنهادي | M2: درصد رشد
J3: =SUM(J4:J1003) -> 0 | L3: =SUM(L4:L1003) -> 0 | M3: اضافه | N3: تخفيف
A4: 1 | C4: =IFERROR(VLOOKUP(B4,ItemDB,2,0),"") ->  | D4: =IFERROR(VLOOKUP(B4,ItemDB,3,0),"") ->  | E4: =PRODUCT(IFERROR(VLOOKUP(B4,ItemDB,4,0),0),F4:H4) -> 0 | J4: =I4*E4 -> 0 | K4: =IFERROR(VLOOKUP("شمـاره رديف آنـاليــز : "&B4,Anareport,9,0),0) -> 0 | L4: =K4*I4 -> 0 | M4: =IF(K4>E4,K4/E4-1,"") ->  | N4: =IF(K4<E4,K4/E4-1,"") -> 
A5: 2 | E5: 0 | J5: 0 | K5: 0 | L5: 0
A6: 3 | E6: 0 | J6: 0 | K6: 0 | L6: 0 | M6: =IF(K6>E6,K6/E6-1,"") ->  | N6: =IF(K6<E6,K6/E6-1,"") -> 
A7: 4 | C7: =IFERROR(VLOOKUP(B7,ItemDB,2,0),"") ->  | E7: 0 | J7: 0 | K7: 0 | L7: 0
A8: 5 | E8: 0 | J8: 0 | K8: 0 | L8: 0
A9: 6 | E9: 0 | J9: 0 | K9: 0 | L9: 0
A10: 7 | E10: 0 | J10: 0 | K10: 0 | L10: 0
A11: 8 | E11: 0 | J11: 0 | K11: 0 | L11: 0
A12: 9 | E12: 0 | J12: 0 | K12: 0 | L12: 0
A13: 10 | E13: 0 | J13: 0 | K13: 0 | L13: 0
A14: 11 | E14: 0 | J14: 0 | K14: 0 | L14: 0
A15: 12 | E15: 0 | J15: 0 | K15: 0 | L15: 0
A16: 13 | E16: 0 | J16: 0 | K16: 0 | L16: 0
A17: 14 | E17: 0 | J17: 0 | K17: 0 | L17: 0
A18: 15 | E18: 0 | J18: 0 | K18: 0 | L18: 0
A19: 16 | E19: 0 | J19: 0 | K19: 0 | L19: 0
A20: 17 | E20: 0 | J20: 0 | K20: 0 | L20: 0
A21: 18 | E21: 0 | J21: 0 | K21: 0 | L21: 0
A22: 19 | E22: 0 | J22: 0 | K22: 0 | L22: 0
A23: 20 | E23: 0 | J23: 0 | K23: 0 | L23: 0
A24: 21 | E24: 0 | J24: 0 | K24: 0 | L24: 0
A25: 22 | E25: 0 | J25: 0 | K25: 0 | L25: 0
A26: 23 | E26: 0 | J26: 0 | K26: 0 | L26: 0
A27: 24 | E27: 0 | J27: 0 | K27: 0 | L27: 0
A28: 25 | E28: 0 | J28: 0 | K28: 0 | L28: 0
A29: 26 | E29: 0 | J29: 0 | K29: 0 | L29: 0
A30: 27 | E30: 0 | J30: 0 | K30: 0 | L30: 0
A31: 28 | E31: 0 | J31: 0 | K31: 0 | L31: 0
A32: 29 | E32: 0 | J32: 0 | K32: 0 | L32: 0
A33: 30 | E33: 0 | J33: 0 | K33: 0 | L33: 0
A34: 31 | E34: 0 | J34: 0 | K34: 0 | L34: 0
A35: 32 | E35: 0 | J35: 0 | K35: 0 | L35: 0
A36: 33 | E36: 0 | J36: 0 | K36: 0 | L36: 0
A37: 34 | E37: 0 | J37: 0 | K37: 0 | L37: 0
A38: 35 | E38: 0 | J38: 0 | K38: 0 | L38: 0
A39: 36 | E39: 0 | J39: 0 | K39: 0 | L39: 0
A40: 37 | E40: 0 | J40: 0 | K40: 0 | L40: 0
A41: 38 | E41: 0 | J41: 0 | K41: 0 | L41: 0
A42: 39 | E42: 0 | J42: 0 | K42: 0 | L42: 0
A43: 40 | E43: 0 | J43: 0 | K43: 0 | L43: 0
A44: 41 | E44: 0 | J44: 0 | K44: 0 | L44: 0
A45: 42 | E45: 0 | J45: 0 | K45: 0 | L45: 0
A46: 43 | E46: 0 | J46: 0 | K46: 0 | L46: 0
A47: 44 | E47: 0 | J47: 0 | K47: 0 | L47: 0
A48: 45 | E48: 0 | J48: 0 | K48: 0 | L48: 0
A49: 46 | E49: 0 | J49: 0 | K49: 0 | L49: 0
A50: 47 | E50: 0 | J50: 0 | K50: 0 | L50: 0
A51: 48 | E51: 0 | J51: 0 | K51: 0 | L51: 0
A52: 49 | E52: 0 | J52: 0 | K52: 0 | L52: 0
A53: 50 | E53: 0 | J53: 0 | K53: 0 | L53: 0
A54: 51 | E54: 0 | J54: 0 | K54: 0 | L54: 0
A55: 52 | E55: 0 | J55: 0 | K55: 0 | L55: 0
A56: 53 | E56: 0 | J56: 0 | K56: 0 | L56: 0
A57: 54 | E57: 0 | J57: 0 | K57: 0 | L57: 0
A58: 55 | E58: 0 | J58: 0 | K58: 0 | L58: 0
A59: 56 | E59: 0 | J59: 0 | K59: 0 | L59: 0
A60: 57 | E60: 0 | J60: 0 | K60: 0 | L60: 0
A61: 58 | E61: 0 | J61: 0 | K61: 0 | L61: 0
A62: 59 | E62: 0 | J62: 0 | K62: 0 | L62: 0
A63: 60 | E63: 0 | J63: 0 | K63: 0 | L63: 0
A64: 61 | E64: 0 | J64: 0 | K64: 0 | L64: 0
A65: 62 | E65: 0 | J65: 0 | K65: 0 | L65: 0
A66: 63 | E66: 0 | J66: 0 | K66: 0 | L66: 0
A67: 64 | E67: 0 | J67: 0 | K67: 0 | L67: 0
A68: 65 | C68: =IFERROR(VLOOKUP(B68,ItemDB,2,0),"") ->  | D68: =IFERROR(VLOOKUP(B68,ItemDB,3,0),"") ->  | E68: =PRODUCT(IFERROR(VLOOKUP(B68,ItemDB,4,0),0),F68:H68) -> 0 | J68: =I68*E68 -> 0 | K68: =IFERROR(VLOOKUP("شمـاره رديف آنـاليــز : "&B68,Anareport,9,0),0) -> 0 | L68: =K68*I68 -> 0
A69: 66 | E69: 0 | J69: 0 | K69: 0 | L69: 0
A70: 67 | E70: 0 | J70: 0 | K70: 0 | L70: 0 | M70: =IF(K70>E70,K70/E70-1,"") ->  | N70: =IF(K70<E70,K70/E70-1,"") -> 
A71: 68 | E71: 0 | J71: 0 | K71: 0 | L71: 0
A72: 69 | E72: 0 | J72: 0 | K72: 0 | L72: 0
A73: 70 | E73: 0 | J73: 0 | K73: 0 | L73: 0
A74: 71 | E74: 0 | J74: 0 | K74: 0 | L74: 0
A75: 72 | E75: 0 | J75: 0 | K75: 0 | L75: 0
A76: 73 | E76: 0 | J76: 0 | K76: 0 | L76: 0
A77: 74 | E77: 0 | J77: 0 | K77: 0 | L77: 0
A78: 75 | E78: 0 | J78: 0 | K78: 0 | L78: 0
A79: 76 | E79: 0 | J79: 0 | K79: 0 | L79: 0
A80: 77 | E80: 0 | J80: 0 | K80: 0 | L80: 0
A81: 78 | E81: 0 | J81: 0 | K81: 0 | L81: 0
A82: 79 | E82: 0 | J82: 0 | K82: 0 | L82: 0
A83: 80 | E83: 0 | J83: 0 | K83: 0 | L83: 0
A84: 81 | E84: 0 | J84: 0 | K84: 0 | L84: 0
A85: 82 | E85: 0 | J85: 0 | K85: 0 | L85: 0
A86: 83 | E86: 0 | J86: 0 | K86: 0 | L86: 0
A87: 84 | E87: 0 | J87: 0 | K87: 0 | L87: 0
A88: 85 | E88: 0 | J88: 0 | K88: 0 | L88: 0
A89: 86 | E89: 0 | J89: 0 | K89: 0 | L89: 0
A90: 87 | E90: 0 | J90: 0 | K90: 0 | L90: 0
A91: 88 | E91: 0 | J91: 0 | K91: 0 | L91: 0
A92: 89 | E92: 0 | J92: 0 | K92: 0 | L92: 0
A93: 90 | E93: 0 | J93: 0 | K93: 0 | L93: 0
A94: 91 | E94: 0 | J94: 0 | K94: 0 | L94: 0
A95: 92 | E95: 0 | J95: 0 | K95: 0 | L95: 0
A96: 93 | E96: 0 | J96: 0 | K96: 0 | L96: 0
A97: 94 | E97: 0 | J97: 0 | K97: 0 | L97: 0
A98: 95 | E98: 0 | J98: 0 | K98: 0 | L98: 0
A99: 96 | E99: 0 | J99: 0 | K99: 0 | L99: 0
A100: 97 | E100: 0 | J100: 0 | K100: 0 | L100: 0
A101: 98 | E101: 0 | J101: 0 | K101: 0 | L101: 0
A102: 99 | E102: 0 | J102: 0 | K102: 0 | L102: 0
A103: 100 | E103: 0 | J103: 0 | K103: 0 | L103: 0
A104: 101 | E104: 0 | J104: 0 | K104: 0 | L104: 0
A105: 102 | E105: 0 | J105: 0 | K105: 0 | L105: 0
A106: 103 | E106: 0 | J106: 0 | K106: 0 | L106: 0
A107: 104 | E107: 0 | J107: 0 | K107: 0 | L107: 0
A108: 105 | E108: 0 | J108: 0 | K108: 0 | L108: 0
A109: 106 | E109: 0 | J109: 0 | K109: 0 | L109: 0
A110: 107 | E110: 0 | J110: 0 | K110: 0 | L110: 0
A111: 108 | E111: 0 | J111: 0 | K111: 0 | L111: 0
A112: 109 | E112: 0 | J112: 0 | K112: 0 | L112: 0
A113: 110 | E113: 0 | J113: 0 | K113: 0 | L113: 0
A114: 111 | E114: 0 | J114: 0 | K114: 0 | L114: 0
A115: 112 | E115: 0 | J115: 0 | K115: 0 | L115: 0
A116: 113 | E116: 0 | J116: 0 | K116: 0 | L116: 0
A117: 114 | E117: 0 | J117: 0 | K117: 0 | L117: 0
A118: 115 | E118: 0 | J118: 0 | K118: 0 | L118: 0
A119: 116 | E119: 0 | J119: 0 | K119: 0 | L119: 0
A120: 117 | E120: 0 | J120: 0 | K120: 0 | L120: 0
A121: 118 | E121: 0 | J121: 0 | K121: 0 | L121: 0
A122: 119 | E122: 0 | J122: 0 | K122: 0 | L122: 0
A123: 120 | E123: 0 | J123: 0 | K123: 0 | L123: 0
A124: 121 | E124: 0 | J124: 0 | K124: 0 | L124: 0
A125: 122 | E125: 0 | J125: 0 | K125: 0 | L125: 0
A126: 123 | E126: 0 | J126: 0 | K126: 0 | L126: 0
A127: 124 | E127: 0 | J127: 0 | K127: 0 | L127: 0
A128: 125 | E128: 0 | J128: 0 | K128: 0 | L128: 0
A129: 126 | E129: 0 | J129: 0 | K129: 0 | L129: 0
A130: 127 | E130: 0 | J130: 0 | K130: 0 | L130: 0
A131: 128 | E131: 0 | J131: 0 | K131: 0 | L131: 0
A132: 129 | C132: =IFERROR(VLOOKUP(B132,ItemDB,2,0),"") ->  | D132: =IFERROR(VLOOKUP(B132,ItemDB,3,0),"") ->  | E132: =PRODUCT(IFERROR(VLOOKUP(B132,ItemDB,4,0),0),F132:H132) -> 0 | J132: =I132*E132 -> 0 | K132: =IFERROR(VLOOKUP("شمـاره رديف آنـاليــز : "&B132,Anareport,9,0),0) -> 0 | L132: =K132*I132 -> 0
A133: 130 | E133: 0 | J133: 0 | K133: 0 | L133: 0
A134: 131 | E134: 0 | J134: 0 | K134: 0 | L134: 0 | M134: =IF(K134>E134,K134/E134-1,"") ->  | N134: =IF(K134<E134,K134/E134-1,"") -> 
A135: 132 | E135: 0 | J135: 0 | K135: 0 | L135: 0
A136: 133 | E136: 0 | J136: 0 | K136: 0 | L136: 0
A137: 134 | E137: 0 | J137: 0 | K137: 0 | L137: 0
A138: 135 | E138: 0 | J138: 0 | K138: 0 | L138: 0
A139: 136 | E139: 0 | J139: 0 | K139: 0 | L139: 0
A140: 137 | E140: 0 | J140: 0 | K140: 0 | L140: 0
A141: 138 | E141: 0 | J141: 0 | K141: 0 | L141: 0
A142: 139 | E142: 0 | J142: 0 | K142: 0 | L142: 0
A143: 140 | E143: 0 | J143: 0 | K143: 0 | L143: 0
A144: 141 | E144: 0 | J144: 0 | K144: 0 | L144: 0
A145: 142 | E145: 0 | J145: 0 | K145: 0 | L145: 0
A146: 143 | E146: 0 | J146: 0 | K146: 0 | L146: 0
A147: 144 | E147: 0 | J147: 0 | K147: 0 | L147: 0
A148: 145 | E148: 0 | J148: 0 | K148: 0 | L148: 0
A149: 146 | E149: 0 | J149: 0 | K149: 0 | L149: 0
A150: 147 | E150: 0 | J150: 0 | K150: 0 | L150: 0
A151: 148 | E151: 0 | J151: 0 | K151: 0 | L151: 0
A152: 149 | E152: 0 | J152: 0 | K152: 0 | L152: 0
A153: 150 | E153: 0 | J153: 0 | K153: 0 | L153: 0
A154: 151 | E154: 0 | J154: 0 | K154: 0 | L154: 0
A155: 152 | E155: 0 | J155: 0 | K155: 0 | L155: 0
A156: 153 | E156: 0 | J156: 0 | K156: 0 | L156: 0
A157: 154 | E157: 0 | J157: 0 | K157: 0 | L157: 0
A158: 155 | E158: 0 | J158: 0 | K158: 0 | L158: 0
A159: 156 | E159: 0 | J159: 0 | K159: 0 | L159: 0
A160: 157 | E160: 0 | J160: 0 | K160: 0 | L160: 0
A161: 158 | E161: 0 | J161: 0 | K161: 0 | L161: 0
A162: 159 | E162: 0 | J162: 0 | K162: 0 | L162: 0
A163: 160 | E163: 0 | J163: 0 | K163: 0 | L163: 0
A164: 161 | E164: 0 | J164: 0 | K164: 0 | L164: 0
A165: 162 | E165: 0 | J165: 0 | K165: 0 | L165: 0
A166: 163 | E166: 0 | J166: 0 | K166: 0 | L166: 0
A167: 164 | E167: 0 | J167: 0 | K167: 0 | L167: 0
A168: 165 | E168: 0 | J168: 0 | K168: 0 | L168: 0
A169: 166 | E169: 0 | J169: 0 | K169: 0 | L169: 0
A170: 167 | E170: 0 | J170: 0 | K170: 0 | L170: 0
A171: 168 | E171: 0 | J171: 0 | K171: 0 | L171: 0
A172: 169 | E172: 0 | J172: 0 | K172: 0 | L172: 0
A173: 170 | E173: 0 | J173: 0 | K173: 0 | L173: 0
A174: 171 | E174: 0 | J174: 0 | K174: 0 | L174: 0
A175: 172 | E175: 0 | J175: 0 | K175: 0 | L175: 0
A176: 173 | E176: 0 | J176: 0 | K176: 0 | L176: 0
A177: 174 | E177: 0 | J177: 0 | K177: 0 | L177: 0
A178: 175 | E178: 0 | J178: 0 | K178: 0 | L178: 0
A179: 176 | E179: 0 | J179: 0 | K179: 0 | L179: 0
A180: 177 | E180: 0 | J180: 0 | K180: 0 | L180: 0
A181: 178 | E181: 0 | J181: 0 | K181: 0 | L181: 0
A182: 179 | E182: 0 | J182: 0 | K182: 0 | L182: 0
A183: 180 | E183: 0 | J183: 0 | K183: 0 | L183: 0
A184: 181 | E184: 0 | J184: 0 | K184: 0 | L184: 0
A185: 182 | E185: 0 | J185: 0 | K185: 0 | L185: 0
A186: 183 | E186: 0 | J186: 0 | K186: 0 | L186: 0
A187: 184 | E187: 0 | J187: 0 | K187: 0 | L187: 0
A188: 185 | E188: 0 | J188: 0 | K188: 0 | L188: 0
A189: 186 | E189: 0 | J189: 0 | K189: 0 | L189: 0
A190: 187 | E190: 0 | J190: 0 | K190: 0 | L190: 0
A191: 188 | E191: 0 | J191: 0 | K191: 0 | L191: 0
A192: 189 | E192: 0 | J192: 0 | K192: 0 | L192: 0
A193: 190 | E193: 0 | J193: 0 | K193: 0 | L193: 0
A194: 191 | E194: 0 | J194: 0 | K194: 0 | L194: 0
A195: 192 | E195: 0 | J195: 0 | K195: 0 | L195: 0
A196: 193 | C196: =IFERROR(VLOOKUP(B196,ItemDB,2,0),"") ->  | D196: =IFERROR(VLOOKUP(B196,ItemDB,3,0),"") ->  | E196: =PRODUCT(IFERROR(VLOOKUP(B196,ItemDB,4,0),0),F196:H196) -> 0 | J196: =I196*E196 -> 0 | K196: =IFERROR(VLOOKUP("شمـاره رديف آنـاليــز : "&B196,Anareport,9,0),0) -> 0 | L196: =K196*I196 -> 0
A197: 194 | E197: 0 | J197: 0 | K197: 0 | L197: 0
A198: 195 | E198: 0 | J198: 0 | K198: 0 | L198: 0 | M198: =IF(K198>E198,K198/E198-1,"") ->  | N198: =IF(K198<E198,K198/E198-1,"") -> 
A199: 196 | E199: 0 | J199: 0 | K199: 0 | L199: 0
A200: 197 | E200: 0 | J200: 0 | K200: 0 | L200: 0
... 803 more rows

Sheet Analiz (hidden)
B1: =C7 -> 2 | F1: جدید (مقیاس) | G1: =IF(F1=F3,TRUE,FALSE) -> TRUE | S1: ضریب عامل | T1: مقدار/ مقیاس
B2: 2 | F2: قدیم (4951) | L2: =IF(G1,N9,M9) -> مقدار/مقیاس | R2: ضرایب ثابت آنالیز سازمان | U2: نت
B3: 2 | F3: جدید (مقیاس) | R3: اعمال درصد(مینوس/پلوس)معکوس | U3: آمار
A4: - | B4: 2 | G4: =VLOOKUP(E7,ItemDB,3,0) -> مترطول | S4: COL_INEDX | U4: روز
B5: =B7 -> 2 | E5: 050101 | I5: =VLOOKUP(F6,FsolDB,2,0) -> فصل 5 . حفاری، شمع کوبی و سپرکوبی | R5: ضرایب ثابت آنالیز سازمان | S5: =IF(G1,4,+IF(R5="ضرایب ثابت آنالیز سازمان",7,6)) -> 4 | U5: نت | V5: 5
B6: =C7 -> 2 | E6: 030102 | F6: =ROUND(E7*0.0001,0) -> 5 | I6: شرح ردیف : | L6: =IFERROR(VLOOKUP(E7,ItemDB,2,0),"") -> حفاری ماشینی محل شمع، با مقطع دایره ای و به قطر 60 سانتیمتر، به طور عمودی تا عمق 20 متر در زمین هایی که در آن ها 50 =>N باشد، بیرون آوردن مصالح و حمل آن ها به دپو تا فاصله 50 متری مرکز ثقل محل حفاری، با هر وسیله، و تمیزکردن محل عملیات. | Q6: =P112 -> 1520851.278 | R6: مقدار | S6: =IF(G1,+IF(R5="ضرایب ثابت آنالیز سازمان",3,2),10) -> 3 | V6: =V5/100+1 -> 1.05
B7: =C7 -> 2 | C7: =IF(F6>0,2,0) -> 2 | E7: 050101 | I7: ="شمـاره رديف آنـاليــز : "&E7 -> شمـاره رديف آنـاليــز : 050101 | Q7: =P112 -> 1520851.278 | R7: بهای واحد | S7: =IF(U5="نت",4,IF(U5="آمار",5,6)) -> 4
B8: 2 | I8: ="واحـد : "&VLOOKUP(E7,ItemDB,3,0) -> واحـد : مترطول | K8: =" مقدار : "&Q8 ->  | Q8: =VLOOKUP(E7,metreh,8,0) ->  | U8: ضريب صفر | V8: ضريب پيشنهاد | Y8: مقدار/مقیاس صفر | Z8: مقدار مقیاس پیشنهادی
B9: =IF(I10>0,2,0) -> 2 | I9: رديف | J9: کد عامل | K9: نيروي انساني | L9: واحد | M9: =IF(G1,"مقیاس1","ضریب عامل") -> مقیاس1 | N9: =IF(G1,"مقدار/مقیاس","مقدار") -> مقدار/مقیاس | O9: بهای واحد عامل | P9: بهاي کل | S9: قيمت نت در مقداردر ضريب | T9: ضريب سازمان | U9: =V9 -> 1520851.278 | V9: =P112 -> 1520851.278 | W9: قيمت درمقیاس در مقدار/مقیاس | X9: مقدار / مقیاس
A10: =B10*C10 -> 50101 | B10: =COUNTIF(Anb!A:A,C10) -> 1 | C10: =D10+(G10*F10) -> 50101 | D10: =$E$7 -> 050101 | F10: 1e-08 | G10: 1 | I10: =VLOOKUP(A10,AnalizDB,16,0) -> 1 | J10: =VLOOKUP(A10,AnalizDB,13,0) -> 13010402 | K10: =VLOOKUP(A10,AnalizDB,12,0) -> جوشکار درجه دو | L10: =VLOOKUP(A10,AnalizDB,11,0) -> نفر ساعت | M10: =VLOOKUP(A10,AnalizDB,$S$5,0) -> 1 | N10: =VLOOKUP(A10,AnalizDB,$S$6,0) -> 0.15 | O10: =VLOOKUP(J10,ManabehDB,$S$7,0) -> 109041.1 | P10: =IFERROR(O10*N10*M10,0) -> 16356.165 | Q10: =VLOOKUP(A10,AnalizDB,10,0)*$Q$8 ->  | S10: =IFERROR(O10*N10*T10,0) -> 16356.165 | T10: =VLOOKUP(A10,AnalizDB,7,0) -> 1 | U10: =$S$114*T10 ->  | V10: =$V$6*U10 ->  | W10: =IFERROR(X10*O10,0) -> 16356.165 | X10: =VLOOKUP(A10,AnalizDB,3,0) -> 0.15 | Y10: =$W$114*X10 ->  | Z10: =Y10*$V$6 -> 
A11: 50101 | B11: =COUNTIF(Anb!A:A,C11) -> 1 | C11: 50101 | D11: =$E$7 -> 050101 | F11: 1e-08 | G11: 2 | I11: 2 | J11: 14010102 | K11: كارگر ساده | L11: نفر- ساعت | M11: =VLOOKUP(A11,AnalizDB,$S$5,0) -> 1 | N11: =VLOOKUP(A11,AnalizDB,$S$6,0) -> 0.65 | O11: 70696 | P11: =IFERROR(O11*N11*M11,0) -> 45952.4 | S11: =IFERROR(O11*N11*T11,0) -> 45952.4 | T11: 1 | U11: =$S$114*T11 ->  | V11: =$V$6*U11 ->  | W11: =IFERROR(X11*O11,0) -> 45952.4 | X11: 0.65 | Y11: =$W$114*X11 ->  | Z11: =Y11*$V$6 -> 
A12: 50101 | B12: =COUNTIF(Anb!A:A,C12) -> 1 | C12: 50101 | D12: 050101 | F12: 1e-08 | G12: 3 | I12: 3 | J12: 14250101 | K12: تکنیسین عملیات حفاری و شمعکوبی | L12: نفر- ساعت | M12: 1 | N12: =VLOOKUP(A12,AnalizDB,$S$6,0) -> 0.1 | O12: 207415.9 | P12: =IFERROR(O12*N12*M12,0) -> 20741.59 | S12: 20741.59 | T12: 1 | U12: =$S$114*T12 ->  | V12: =$V$6*U12 ->  | W12: 20741.59 | X12: 0.1 | Z12: =Y12*$V$6 -> 
A13: 50101 | B13: =COUNTIF(Anb!A:A,C13) -> 1 | C13: 50101 | D13: 050101 | F13: 1e-08 | G13: 4 | I13: =VLOOKUP(A13,AnalizDB,16,0) -> 4 | J13: 14250201 | K13: حفار درجه یک شمع های درجا | L13: نفر ساعت | M13: 1 | N13: 0.25 | O13: 163546.5 | P13: 40886.625 | S13: 40886.625 | T13: 1 | W13: 40886.625 | X13: 0.25
A14: 50101 | B14: =COUNTIF(Anb!A:A,C14) -> 1 | C14: 50101 | D14: 050101 | F14: 1e-08 | G14: 5 | I14: 5 | J14: 14250203 | K14: کمک حفار شمع های درجا | L14: نفر ساعت | M14: 1 | N14: 0.25 | O14: 92940.6 | P14: 23235.15 | S14: 23235.15 | T14: 1 | W14: 23235.15 | X14: 0.25
A15: 50101 | B15: =COUNTIF(Anb!A:A,C15) -> 1 | C15: 50101 | D15: 050101 | F15: 1e-08 | G15: 6 | I15: 6 | J15: 14250204 | K15: کارگر حفاری | L15: نفر ساعت | M15: 1 | N15: 0.25 | O15: 81390.9 | P15: 20347.725 | S15: 20347.725 | T15: 1 | W15: 20347.725 | X15: 0.25
A16: 0 | B16: =COUNTIF(Anb!A:A,C16) -> 0 | C16: 50101 | D16: 050101 | F16: 1e-08 | G16: 7 | P16: 0 | S16: 0 | W16: 0
A17: 0 | B17: =COUNTIF(Anb!A:A,C17) -> 0 | C17: 50101 | D17: 050101 | F17: 1e-08 | G17: 8 | P17: 0 | S17: 0 | W17: 0
A18: 0 | B18: =COUNTIF(Anb!A:A,C18) -> 0 | C18: 50101 | D18: 050101 | F18: 1e-08 | G18: 9 | P18: 0 | S18: 0 | W18: 0
A19: 0 | B19: =COUNTIF(Anb!A:A,C19) -> 0 | C19: 50101 | D19: 050101 | F19: 1e-08 | G19: 10 | P19: 0 | S19: 0 | W19: 0
A20: 0 | B20: =COUNTIF(Anb!A:A,C20) -> 0 | C20: 50101 | D20: 050101 | F20: 1e-08 | G20: 11 | P20: 0 | S20: 0 | W20: 0
A21: 0 | B21: =COUNTIF(Anb!A:A,C21) -> 0 | C21: 50101 | D21: 050101 | F21: 1e-08 | G21: 12 | P21: 0 | S21: 0 | W21: 0
A22: 0 | B22: =COUNTIF(Anb!A:A,C22) -> 0 | C22: 50101 | D22: 050101 | F22: 1e-08 | G22: 13 | P22: 0 | S22: 0 | W22: 0
A23: 0 | B23: =COUNTIF(Anb!A:A,C23) -> 0 | C23: 50101 | D23: 050101 | F23: 1e-08 | G23: 14 | P23: 0 | S23: 0 | W23: 0
A24: 0 | B24: =COUNTIF(Anb!A:A,C24) -> 0 | C24: 50101 | D24: 050101 | F24: 1e-08 | G24: 15 | P24: 0 | S24: 0 | W24: 0
A25: 0 | B25: =COUNTIF(Anb!A:A,C25) -> 0 | C25: 50101 | D25: 050101 | F25: 1e-08 | G25: 16 | P25: 0 | S25: 0 | W25: 0
A26: 0 | B26: =COUNTIF(Anb!A:A,C26) -> 0 | C26: 50101 | D26: 050101 | F26: 1e-08 | G26: 17 | P26: 0 | S26: 0 | W26: 0
A27: 0 | B27: =COUNTIF(Anb!A:A,C27) -> 0 | C27: 50101 | D27: 050101 | F27: 1e-08 | G27: 18 | P27: 0 | S27: 0 | W27: 0
A28: 0 | B28: =COUNTIF(Anb!A:A,C28) -> 0 | C28: 50101 | D28: 050101 | F28: 1e-08 | G28: 19 | P28: 0 | S28: 0 | W28: 0
A29: 0 | B29: =COUNTIF(Anb!A:A,C29) -> 0 | C29: 50101 | D29: 050101 | F29: 1e-08 | G29: 20 | P29: 0 | S29: 0 | W29: 0
A30: 0 | B30: =COUNTIF(Anb!A:A,C30) -> 0 | C30: 50101 | D30: 050101 | F30: 1e-08 | G30: 21 | P30: 0 | S30: 0 | W30: 0
A31: 0 | B31: =COUNTIF(Anb!A:A,C31) -> 0 | C31: 50101 | D31: 050101 | F31: 1e-08 | G31: 22 | P31: 0 | S31: 0 | W31: 0
A32: 0 | B32: =COUNTIF(Anb!A:A,C32) -> 0 | C32: 50101 | D32: 050101 | F32: 1e-08 | G32: 23 | P32: 0 | S32: 0 | W32: 0
A33: 0 | B33: =COUNTIF(Anb!A:A,C33) -> 0 | C33: 50101 | D33: 050101 | F33: 1e-08 | G33: 24 | P33: 0 | S33: 0 | W33: 0
A34: 0 | B34: =COUNTIF(Anb!A:A,C34) -> 0 | C34: 50101 | D34: 050101 | F34: 1e-08 | G34: 25 | P34: 0 | S34: 0 | W34: 0
B35: =IF(SUM(B10:B34)>0,2,0) -> 2 | D35: 050101 | I35: درصد وزنی | L35: =ROUND(IFERROR(P35/P112,0),4) -> 0.1101 | N35: جمع نيروي انساني | P35: =SUM(P10:P34) -> 167519.655 | W35: 0
B36: =B37 -> 1 | D36: 050101 | I36: رديف | J36: کد عامل | K36: ماشين آلات 2 | L36: واحد | M36: =M9 -> مقیاس1 | N36: =N9 -> مقدار/مقیاس | O36: =O9 -> بهای واحد عامل | P36: بهاي کل | W36: 0
A37: =B37*C37 -> 50101 | B37: =COUNTIF(Anb!A:A,C37) -> 1 | C37: =D37+(G37*F37) -> 50101 | D37: 050101 | F37: 1e-06 | G37: 1 | I37: =VLOOKUP(A37,AnalizDB,16,0) -> 1 | J37: =VLOOKUP(A37,AnalizDB,13,0) -> 25010802 | K37: =VLOOKUP(A37,AnalizDB,12,0) -> لودرچرخ لاستيکي به قدرت حدود150 اسب بخار باراننده | L37: =VLOOKUP(A37,AnalizDB,11,0) -> دستگاه-ساعت | M37: =VLOOKUP(A37,AnalizDB,$S$5,0) -> 1 | N37: =VLOOKUP(A37,AnalizDB,$S$6,0) -> 0.15 | O37: =VLOOKUP(J37,ManabehDB,$S$7,0) -> 552613.8 | P37: =IFERROR(O37*N37*M37,0) -> 82892.07 | Q37: =VLOOKUP(A37,AnalizDB,10,0)*$Q$8 ->  | S37: =IFERROR(O37*N37*T37,0) -> 82892.07 | T37: =VLOOKUP(A37,AnalizDB,7,0) -> 1 | W37: 82892.07 | X37: =VLOOKUP(A37,AnalizDB,3,0) -> 0.15
A38: 50101 | B38: =COUNTIF(Anb!A:A,C38) -> 1 | C38: 50101 | D38: 050101 | F38: 1e-06 | G38: 2 | I38: 2 | J38: 25020301 | K38: دستگاه حفاري شمع هاي درجا | L38: دستگاه ساعت | M38: 1 | N38: =VLOOKUP(A38,AnalizDB,$S$6,0) -> 0.25 | O38: 5049402.01 | P38: 1262350.502 | S38: =IFERROR(O38*N38*T38,0) -> 1262350.502 | T38: 1 | W38: 1262350.502 | X38: 0.25
A39: 50101 | B39: =COUNTIF(Anb!A:A,C39) -> 1 | C39: 50101 | D39: 050101 | F39: 1e-06 | G39: 3 | I39: 3 | J39: 26020502 | K39: موتور جوش150 تا250 آمپر | L39: دستگاه ساعت | M39: 1 | N39: 0.15 | O39: 53927 | P39: 8089.05 | S39: 8089.05 | T39: 1 | W39: 8089.05 | X39: 0.15
A40: 0 | B40: =COUNTIF(Anb!A:A,C40) -> 0 | C40: 50101 | D40: 050101 | F40: 1e-06 | G40: 4 | P40: 0 | S40: 0 | W40: 0
A41: 0 | B41: =COUNTIF(Anb!A:A,C41) -> 0 | C41: 50101.00001 | D41: 050101 | F41: 1e-06 | G41: 5 | P41: 0 | S41: 0 | W41: 0
A42: 0 | B42: =COUNTIF(Anb!A:A,C42) -> 0 | C42: 50101.00001 | D42: 050101 | F42: 1e-06 | G42: 6 | P42: 0 | S42: 0 | U42: =$S$114*T42 ->  | V42: =$V$6*U42 ->  | W42: 0
A43: 0 | B43: =COUNTIF(Anb!A:A,C43) -> 0 | C43: 50101.00001 | D43: 050101 | F43: 1e-06 | G43: 7 | P43: 0 | S43: 0 | W43: 0
A44: 0 | B44: =COUNTIF(Anb!A:A,C44) -> 0 | C44: 50101.00001 | D44: 050101 | F44: 1e-06 | G44: 8 | P44: 0 | S44: 0 | W44: 0
A45: 0 | B45: =COUNTIF(Anb!A:A,C45) -> 0 | C45: 50101.00001 | D45: 050101 | F45: 1e-06 | G45: 9 | P45: 0 | S45: 0 | W45: 0
A46: 0 | B46: =COUNTIF(Anb!A:A,C46) -> 0 | C46: 50101.00001 | D46: 050101 | F46: 1e-06 | G46: 10 | P46: 0 | S46: 0 | W46: 0
A47: 0 | B47: =COUNTIF(Anb!A:A,C47) -> 0 | C47: 50101.00001 | D47: 050101 | F47: 1e-06 | G47: 11 | P47: 0 | S47: 0 | W47: 0
A48: 0 | B48: =COUNTIF(Anb!A:A,C48) -> 0 | C48: 50101.00001 | D48: 050101 | F48: 1e-06 | G48: 12 | P48: 0 | S48: 0 | W48: 0
A49: 0 | B49: =COUNTIF(Anb!A:A,C49) -> 0 | C49: 50101.00001 | D49: 050101 | F49: 1e-06 | G49: 13 | P49: 0 | S49: 0 | W49: 0
A50: 0 | B50: =COUNTIF(Anb!A:A,C50) -> 0 | C50: 50101.00001 | D50: 050101 | F50: 1e-06 | G50: 14 | P50: 0 | S50: 0 | W50: 0
A51: 0 | B51: =COUNTIF(Anb!A:A,C51) -> 0 | C51: 50101.00001 | D51: 050101 | F51: 1e-06 | G51: 15 | P51: 0 | S51: 0 | W51: 0
A52: 0 | B52: =COUNTIF(Anb!A:A,C52) -> 0 | C52: 50101.00002 | D52: 050101 | F52: 1e-06 | G52: 16 | P52: 0 | S52: 0 | W52: 0
A53: 0 | B53: =COUNTIF(Anb!A:A,C53) -> 0 | C53: 50101.00002 | D53: 050101 | F53: 1e-06 | G53: 17 | P53: 0 | S53: 0 | W53: 0
A54: 0 | B54: =COUNTIF(Anb!A:A,C54) -> 0 | C54: 50101.00002 | D54: 050101 | F54: 1e-06 | G54: 18 | P54: 0 | S54: 0 | W54: 0
A55: 0 | B55: =COUNTIF(Anb!A:A,C55) -> 0 | C55: 50101.00002 | D55: 050101 | F55: 1e-06 | G55: 19 | P55: 0 | S55: 0 | W55: 0
A56: 0 | B56: =COUNTIF(Anb!A:A,C56) -> 0 | C56: 50101.00002 | D56: 050101 | F56: 1e-06 | G56: 20 | P56: 0 | S56: 0 | W56: 0
A57: 0 | B57: =COUNTIF(Anb!A:A,C57) -> 0 | C57: 50101.00002 | D57: 050101 | F57: 1e-06 | G57: 21 | P57: 0 | S57: 0 | W57: 0
A58: 0 | B58: =COUNTIF(Anb!A:A,C58) -> 0 | C58: 50101.00002 | D58: 050101 | F58: 1e-06 | G58: 22 | P58: 0 | S58: 0 | W58: 0
A59: 0 | B59: =COUNTIF(Anb!A:A,C59) -> 0 | C59: 50101.00002 | D59: 050101 | F59: 1e-06 | G59: 23 | P59: 0 | S59: 0 | W59: 0
A60: 0 | B60: =COUNTIF(Anb!A:A,C60) -> 0 | C60: 50101.00002 | D60: 050101 | F60: 1e-06 | G60: 24 | P60: 0 | S60: 0 | W60: 0
A61: 0 | B61: =COUNTIF(Anb!A:A,C61) -> 0 | C61: 50101.00003 | D61: 050101 | F61: 1e-06 | G61: 25 | P61: 0 | S61: 0 | W61: 0
B62: =IF(SUM(B37:B61)>0,2,0) -> 2 | I62: درصد وزنی | L62: =ROUND(IFERROR(P62/P112,0),4) -> 0.8899 | N62: جمع ماشين آلات | P62: =SUM(P37:P61) -> 1353331.623 | W62: 0
B63: =B64 -> 0 | I63: رديف | J63: کد عامل | K63: مصالح | L63: واحد | M63: =M36 -> مقیاس1 | N63: =N36 -> مقدار/مقیاس | O63: =O36 -> بهای واحد عامل | P63: بهاي کل | W63: 0
A64: =B64*C64 -> 0 | B64: =COUNTIF(Anb!A:A,C64) -> 0 | C64: =D64+(G64*F64) -> 50101.0001 | D64: =$E$7 -> 050101 | F64: 0.0001 | G64: 1 | I64: =VLOOKUP(A64,AnalizDB,16,0) ->  | J64: =VLOOKUP(A64,AnalizDB,13,0) ->  | K64: =VLOOKUP(A64,AnalizDB,12,0) ->  | L64: =VLOOKUP(A64,AnalizDB,11,0) ->  | M64: =VLOOKUP(A64,AnalizDB,$S$5,0) ->  | N64: =VLOOKUP(A64,AnalizDB,$S$6,0) ->  | O64: =VLOOKUP(J64,ManabehDB,$S$7,0) ->  | P64: =IFERROR(O64*N64*M64,0) -> 0 | Q64: =VLOOKUP(A64,AnalizDB,10,0)*$Q$8 ->  | S64: =IFERROR(O64*N64*T64,0) -> 0 | T64: =VLOOKUP(A64,AnalizDB,7,0) ->  | W64: 0 | X64: =VLOOKUP(A64,AnalizDB,3,0) -> 
A65: 0 | B65: =COUNTIF(Anb!A:A,C65) -> 0 | C65: 50101.0002 | D65: 050101 | F65: 0.0001 | G65: 2 | P65: 0 | S65: =IFERROR(O65*N65*T65,0) -> 0 | W65: 0
A66: 0 | B66: =COUNTIF(Anb!A:A,C66) -> 0 | C66: 50101.0003 | D66: 050101 | F66: 0.0001 | G66: 3 | P66: 0 | S66: 0 | W66: 0
A67: 0 | B67: =COUNTIF(Anb!A:A,C67) -> 0 | C67: 50101.0004 | D67: 050101 | F67: 0.0001 | G67: 4 | P67: 0 | S67: 0 | W67: 0
A68: 0 | B68: =COUNTIF(Anb!A:A,C68) -> 0 | C68: 50101.0005 | D68: 050101 | F68: 0.0001 | G68: 5 | P68: 0 | S68: 0 | W68: 0
A69: 0 | B69: =COUNTIF(Anb!A:A,C69) -> 0 | C69: 50101.0006 | D69: 050101 | F69: 0.0001 | G69: 6 | P69: 0 | S69: 0 | W69: 0
A70: 0 | B70: =COUNTIF(Anb!A:A,C70) -> 0 | C70: 50101.0007 | D70: 050101 | F70: 0.0001 | G70: 7 | P70: 0 | S70: 0 | W70: 0
A71: 0 | B71: =COUNTIF(Anb!A:A,C71) -> 0 | C71: 50101.0008 | D71: 050101 | F71: 0.0001 | G71: 8 | P71: 0 | S71: 0 | W71: 0
A72: 0 | B72: =COUNTIF(Anb!A:A,C72) -> 0 | C72: 50101.0009 | D72: 050101 | F72: 0.0001 | G72: 9 | P72: 0 | S72: 0 | W72: 0
A73: 0 | B73: =COUNTIF(Anb!A:A,C73) -> 0 | C73: 50101.001 | D73: 050101 | F73: 0.0001 | G73: 10 | P73: 0 | S73: 0 | W73: 0
A74: 0 | B74: =COUNTIF(Anb!A:A,C74) -> 0 | C74: 50101.0011 | D74: 050101 | F74: 0.0001 | G74: 11 | P74: 0 | S74: 0 | U74: =$S$114*T74 ->  | V74: =$V$6*U74 ->  | W74: 0
A75: 0 | B75: =COUNTIF(Anb!A:A,C75) -> 0 | C75: 50101.0012 | D75: 050101 | F75: 0.0001 | G75: 12 | P75: 0 | S75: 0 | W75: =IFERROR(X75*O75,0) -> 0 | Y75: =$W$114*X75 -> 
A76: 0 | B76: =COUNTIF(Anb!A:A,C76) -> 0 | C76: 50101.0013 | D76: 050101 | F76: 0.0001 | G76: 13 | P76: 0 | S76: 0 | W76: 0 | Z76: =Y76*$V$6 -> 
A77: 0 | B77: =COUNTIF(Anb!A:A,C77) -> 0 | C77: 50101.0014 | D77: 050101 | F77: 0.0001 | G77: 14 | P77: 0 | S77: 0 | W77: 0
A78: 0 | B78: =COUNTIF(Anb!A:A,C78) -> 0 | C78: 50101.0015 | D78: 050101 | F78: 0.0001 | G78: 15 | P78: 0 | S78: 0 | W78: 0
A79: 0 | B79: =COUNTIF(Anb!A:A,C79) -> 0 | C79: 50101.0016 | D79: 050101 | F79: 0.0001 | G79: 16 | P79: 0 | S79: 0 | W79: 0
A80: 0 | B80: =COUNTIF(Anb!A:A,C80) -> 0 | C80: 50101.0017 | D80: 050101 | F80: 0.0001 | G80: 17 | P80: 0 | S80: 0 | W80: 0
A81: 0 | B81: =COUNTIF(Anb!A:A,C81) -> 0 | C81: 50101.0018 | D81: 050101 | F81: 0.0001 | G81: 18 | P81: 0 | S81: 0 | W81: 0
A82: 0 | B82: =COUNTIF(Anb!A:A,C82) -> 0 | C82: 50101.0019 | D82: 050101 | F82: 0.0001 | G82: 19 | P82: 0 | S82: 0 | W82: 0
A83: 0 | B83: =COUNTIF(Anb!A:A,C83) -> 0 | C83: 50101.002 | D83: 050101 | F83: 0.0001 | G83: 20 | P83: 0 | S83: 0 | W83: 0
A84: 0 | B84: =COUNTIF(Anb!A:A,C84) -> 0 | C84: 50101.0021 | D84: 050101 | F84: 0.0001 | G84: 21 | P84: 0 | S84: 0 | W84: 0
A85: 0 | B85: =COUNTIF(Anb!A:A,C85) -> 0 | C85: 50101.0022 | D85: 050101 | F85: 0.0001 | G85: 22 | P85: 0 | S85: 0 | W85: 0
A86: 0 | B86: =COUNTIF(Anb!A:A,C86) -> 0 | C86: 50101.0023 | D86: 050101 | F86: 0.0001 | G86: 23 | P86: 0 | S86: 0 | W86: 0
A87: 0 | B87: =COUNTIF(Anb!A:A,C87) -> 0 | C87: 50101.0024 | D87: 050101 | F87: 0.0001 | G87: 24 | P87: 0 | S87: 0 | W87: 0
A88: 0 | B88: =COUNTIF(Anb!A:A,C88) -> 0 | C88: 50101.0025 | D88: 050101 | F88: 0.0001 | G88: 25 | P88: 0 | S88: 0 | W88: 0
B89: =IF(SUM(B64:B88)>0,2,0) -> 0 | I89: درصد وزنی | L89: =ROUND(IFERROR(P89/P112,0),4) -> 0 | N89: جمع مصالح | P89: =SUM(P64:P88) -> 0 | W89: 0
B90: =B91 -> 0 | I90: رديف | J90: کد عامل | K90: حمل مصالح | L90: واحد | M90: =M63 -> مقیاس1 | N90: =N63 -> مقدار/مقیاس | O90: =O63 -> بهای واحد عامل | P90: بهاي کل | W90: 0
A91: =B91*C91 -> 0 | B91: =COUNTIF(Anb!A:A,C91) -> 0 | C91: =D91+(G91*F91) -> 50101.01 | D91: =$E$7 -> 050101 | F91: 0.01 | G91: 1 | I91: =VLOOKUP(A91,AnalizDB,16,0) ->  | J91: =VLOOKUP(A91,AnalizDB,13,0) ->  | K91: =VLOOKUP(A91,AnalizDB,12,0) ->  | L91: =VLOOKUP(A91,AnalizDB,11,0) ->  | M91: =VLOOKUP(A91,AnalizDB,$S$5,0) ->  | N91: =VLOOKUP(A91,AnalizDB,$S$6,0) ->  | O91: =VLOOKUP(J91,ManabehDB,$S$7,0) ->  | P91: =IFERROR(O91*N91*M91,0) -> 0 | Q91: =VLOOKUP(A91,AnalizDB,10,0)*$Q$8 ->  | S91: =IFERROR(O91*N91*T91,0) -> 0 | T91: =VLOOKUP(A91,AnalizDB,7,0) ->  | W91: 0 | X91: =VLOOKUP(A91,AnalizDB,3,0) -> 
A92: 0 | B92: =COUNTIF(Anb!A:A,C92) -> 0 | C92: 50101.02 | D92: 050101 | F92: 0.01 | G92: 2 | P92: 0 | S92: 0 | W92: 0
A93: 0 | B93: =COUNTIF(Anb!A:A,C93) -> 0 | C93: 50101.03 | D93: 050101 | F93: 0.01 | G93: 3 | P93: 0 | S93: 0 | W93: 0
A94: 0 | B94: =COUNTIF(Anb!A:A,C94) -> 0 | C94: 50101.04 | D94: 050101 | F94: 0.01 | G94: 4 | P94: 0 | S94: 0 | W94: 0
A95: 0 | B95: =COUNTIF(Anb!A:A,C95) -> 0 | C95: 50101.05 | D95: 050101 | F95: 0.01 | G95: 5 | P95: 0 | S95: 0 | W95: 0
A96: 0 | B96: =COUNTIF(Anb!A:A,C96) -> 0 | C96: 50101.06 | D96: 050101 | F96: 0.01 | G96: 6 | P96: 0 | S96: 0 | W96: 0
A97: 0 | B97: =COUNTIF(Anb!A:A,C97) -> 0 | C97: 50101.07 | D97: 050101 | F97: 0.01 | G97: 7 | P97: 0 | S97: 0 | W97: 0
A98: 0 | B98: =COUNTIF(Anb!A:A,C98) -> 0 | C98: 50101.08 | D98: 050101 | F98: 0.01 | G98: 8 | P98: 0 | S98: 0 | W98: 0
A99: 0 | B99: =COUNTIF(Anb!A:A,C99) -> 0 | C99: 50101.09 | D99: 050101 | F99: 0.01 | G99: 9 | P99: 0 | S99: 0 | W99: 0
A100: 0 | B100: =COUNTIF(Anb!A:A,C100) -> 0 | C100: 50101.1 | D100: 050101 | F100: 0.01 | G100: 10 | P100: 0 | S100: 0 | W100: 0
A101: 0 | B101: =COUNTIF(Anb!A:A,C101) -> 0 | C101: 50101.11 | D101: 050101 | F101: 0.01 | G101: 11 | P101: 0 | S101: 0 | W101: 0
A102: 0 | B102: =COUNTIF(Anb!A:A,C102) -> 0 | C102: 50101.12 | D102: 050101 | F102: 0.01 | G102: 12 | P102: 0 | S102: 0 | W102: 0
A103: 0 | B103: =COUNTIF(Anb!A:A,C103) -> 0 | C103: 50101.13 | D103: 050101 | F103: 0.01 | G103: 13 | P103: 0 | S103: 0 | W103: 0
A104: 0 | B104: =COUNTIF(Anb!A:A,C104) -> 0 | C104: 50101.14 | D104: 050101 | F104: 0.01 | G104: 14 | P104: 0 | S104: 0 | W104: 0
A105: 0 | B105: =COUNTIF(Anb!A:A,C105) -> 0 | C105: 50101.15 | D105: 050101 | F105: 0.01 | G105: 15 | P105: 0 | S105: 0 | W105: 0
A106: 0 | B106: =COUNTIF(Anb!A:A,C106) -> 0 | C106: 50101.16 | D106: 050101 | F106: 0.01 | G106: 16 | P106: 0 | S106: 0 | U106: =$S$114*T106 ->  | V106: =$V$6*U106 ->  | W106: 0
A107: 0 | B107: =COUNTIF(Anb!A:A,C107) -> 0 | C107: 50101.17 | D107: 050101 | F107: 0.01 | G107: 17 | P107: 0 | S107: 0 | U107: =$S$114*T107 ->  | V107: =$V$6*U107 ->  | W107: 0
A108: 0 | B108: =COUNTIF(Anb!A:A,C108) -> 0 | C108: 50101.18 | D108: 050101 | F108: 0.01 | G108: 18 | P108: 0 | S108: 0 | U108: =$S$114*T108 ->  | V108: =$V$6*U108 ->  | W108: 0
A109: 0 | B109: =COUNTIF(Anb!A:A,C109) -> 0 | C109: 50101.19 | D109: 050101 | F109: 0.01 | G109: 19 | P109: 0 | S109: 0 | U109: =$S$114*T109 ->  | V109: =$V$6*U109 ->  | W109: 0
A110: 0 | B110: =COUNTIF(Anb!A:A,C110) -> 0 | C110: 50101.2 | D110: 050101 | F110: 0.01 | G110: 20 | P110: 0 | S110: 0 | U110: =$S$114*T110 ->  | V110: =$V$6*U110 ->  | W110: 0
B111: =IF(SUM(B86:B110)>0,2,0) -> 0 | I111: درصد به قیمت ردیف | L111: =ROUND(IFERROR(P111/P112,0),4) -> 0 | N111: جمع حمل مصالح | P111: =SUM(P91:P110) -> 0
B112: 2 | I112: =" شماره رديف يا رديفهاي معادل : "&E7 -> شماره رديف يا رديفهاي معادل : 050101 | L112: بهای واحد کار: | P112: =P111+P89+P62+P35 -> 1520851.278 | R112: قيمت آناليز | S112: =SUM(S10:S111) -> 1520851.278 | V112: قيمت آناليز | W112: =SUM(W10:W111) -> 1520851.278
B113: =B112 -> 2 | I113: بهای واحد رديف : | K113: =VLOOKUP(E7,ItemMetreh,4,0) ->  | L113: مقايسه پيشنهاد نسبت به برآورد (درصد) ± | P113: =ROUND((P112/VLOOKUP(E7,ItemMetreh,4,0))-1,5) ->  | R113: قيمت رديف | S113: =K113 ->  | V113: قيمت رديف | W113: =K113 -> 
B114: =B113 -> 2 | I114: بهای کل کار: | K114: =K113*VLOOKUP(E7,metreh,8,0) ->  | L114: بهای کل کار: | P114: =VLOOKUP(E7,metreh,8,0)*P112 ->  | S114: =S113/S112 ->  | W114: =W113/W112 -> 
B115: =B114 -> 2 | I115: پ

Sheet D2 (hidden)
B1: فهرست بهای واحد پایه رشته راه، باندفرودگاه و زیرسازی راه آهن رسته راه و ترابری سال 98 | C1: فهرست بهای راه، باندفرودگاه 98 | F1: شماره فصل | G1: شرح فصل
A2: شماره | B2: شـرح فهرست بها | C2: واحـد | D2: بهاي واحد | F2: 1 | G2: فصل 1 . عملیات تخریب
A3: 010101 | B3: بوته کني در زمينهاي پوشيده شده از بوته و خارج کردن ريشه هاي آن از محل عمليات. | C3: متر مربع | D3: 325 | F3: 2 | G3: فصل 2 . عملیات خاکی بادست
A4: 010102 | B4: کندن و يا بريدن و در صورت لزوم ريشه کن کردن درخت از هر نوع، در صورتي که محيط تنه درخت در سطح زمين تا 15 سانتي متر باشد، به ازاي هر 5 سانتي متر محيط تنه (کسر 5 سانتي متر به تناسب محاسبه مي شود) و حمل آن به خارج محل عمليات. | C4: اصله | D4: 12800 | F4: 3 | G4: فصل 3 . عملیات خاکی باماشین
A5: 010111 | B5: پر کردن و کوبيدن جاي ريشه با خاک مناسب در صورتي که محيط تنه درخت در سطح زمين تا 15 سانتيمتر باشد به ازاي هر 5 سانتيمتر محيط تنه (کسر 5 سانتيمتر، به تناسـب محاسبه مي شود.). | C5: اصله | D5: 10900 | F5: 4 | G5: فصل 4 . حفاری تونل
A6: 010112 | B6: پر کردن و کوبيدن جاي ريشه با خاک مناسب در صورتي که محيط تنه درخت در سطح زمين بيش از 15 تا 30 سانتي متر باشد. | C6: اصله | D6: 53900 | F6: 5 | G6: فصل 5 . حفاری، شمع کوبی و سپرکوبی
A7: 010113 | B7: پر کردن و کوبيدن جاي ريشه با خاک مناسب در صورتي که محيط تنه درخت در سطح زمين بيش از 30 تا 60 سانتي متر باشد. | C7: اصله | D7: 178000 | F7: 6 | G7: فصل 6 . عملیات بنایی باسنگ
A8: 010114 | B8: پر کردن و کوبيدن جاي ريشه با خاک مناسب در صورتي که محيط تنه درخت در سطح زمين بيش از 60 تا 90 سانتي متر باشد. | C8: اصله | D8: 285000 | F8: 7 | G8: فصل 7 . اندود و بندکشی
A9: 010115 | B9: اضافه بها به رديـف 010114، به ازاي هر 10 سانتيمتر که به محيط تنه درخـت اضافه شود (کسر 10 سانتيمتر، به تناسـب محاسبه مي شود). | C9: اصله | D9: 32700 | F9: 8 | G9: فصل 8 . قالب بندی و چوب بست
A10: 010121 | B10: جابجايي درخت در صورتي که محيط تنه درخت تا 30 سانتي‌متر باشد. | C10: اصله | F10: 9 | G10: فصل 9 . کارهای فولادی با میلگرد
A11: 010122 | B11: جابجايي درخت در صورتي که محيط تنه درخت از 30 تا 60 سانتي‌متر باشد. | C11: اصله | F11: 10 | G11: فصل 10 . کارهای فولادی سنگین
A12: 010123 | B12: جابجايي درخت در صورتي که محيط تنه درخت از 60 تا 100 سانتي‌متر باشد. | C12: اصله | F12: 11 | G12: فصل 11 . کارهای فولادی سبک
A13: 010124 | B13: جابجايي درخت در صورتي که محيط تنه درخت بيش از 100 سانتي‌متر باشد. | C13: اصله | F13: 12 | G13: فصل 12 . بتن درجا
A14: 010201 | B14: تخريـب کلي ساختمان هاي خشتي ، گلي و چينه اي، شامل تمام عمليات تخريـب. | C14: متر مربع | D14: 369000 | F14: 13 | G14: فصل 13 . بتن پیش ساخته
A15: 010202 | B15: تخريـب کلي ساختمان هاي آجري، سنگي و بلوکي با ملاتهاي مختلـف، شامل تمام عمليات تخريـب. | C15: متر مربع | D15: 418500 | F15: 14 | G15: فصل 14 . زیراساس،اساس وبالاست
A16: 010301 | B16: تخريـب بنايي هاي خشتي يا چينه هاي گلي (چينه باغي.). | C16: مترمكعب | D16: 118000 | F16: 15 | G16: فصل 15 . آسفالت
A17: 010302 | B17: تخريـب بناييهاي آجري و بلوکي که باملات ماسه و سيمان يا با تارد چيده شده باشد. | C17: مترمكعب | D17: 199500 | F17: 16 | G17: فصل 16 . عایقکاری
A18: 010303 | B18: تخريـب بناييهاي آجري و بلوکي که با ملات گل وآهک ياگچ و خاک و يا ماسه وآهک چيده شده باشد. | C18: مترمكعب | D18: 171000 | F18: 17 | G18: فصل 17 . تأسیسات تونلها،پلها، نقاط مه گیر و سطوح پروازی
A19: 010304 | B19: تخريـب بناييهاي سنگي که با ملات ماسه سيمان يا با تارد چيده شده باشد. | C19: مترمكعب | D19: 199500 | F19: 18 | G19: فصل 18 . ساختمان ها،علایم و تجهیزات ایمنی
A20: 010305 | B20: تخريـب بناييهاي سنگي که با ملات گل آهک يا ماسه آهک ياگچ و خاک چيده شده باشد. | C20: مترمكعب | D20: 171000 | F20: 19 | G20: فصل 19 . متفرقه
A21: 010306 | B21: تخريـب بنايي از سنـگ تراش که سنگهاي آن سالم از کار درآيد و دسته کردن آنها. | C21: مترمكعب | D21: 457000 | F21: 20 | G21: فصل 20 . حمل و نقل
A22: 010307 | B22: تخریب انواع بتن غیر مسلح، با هر عیار سیمان با استفاده از کمپرسور، چنانچه بخشی از سازه تخریب شود. | C22: مترمكعب | D22: 1908000 | F22: 21 | G22: فصل 21 . کارهای دستمزدی
A23: 010308 | B23: تخریب بتن مسلح، با هر عیار سیمان و بریدن میلگردها با استفاده از کمپرسور، چنانچه بخشی از سازه تخریب شود. | C23: مترمكعب | D23: 2965000 | F23: 22 | G23: فصل 22 . ريل، سوزن و ملحقات
A24: 010309 | B24: مضرس کردن يا چکشي کردن يا آجدار کردن يا راه راه کردن رويه هاي بتني موجود. | C24: متر مربع | F24: 23 | G24: فصل 23 . اجراي روسازي راه آهن
A25: 010310 | B25: تفکيک، دسته بندي و يا چيدن آجرها، بلوکها، سنگ ها و مصالح مشابه حاصل از تخريـب، بر حسـب حجم ظاهري مصالح چيده شده. | C25: مترمكعب | D25: 254500 | F25: 24 | G25: فصل 24 . ژئوسنتتیک ها
A26: 010311 | B26: برچيدن جدولهاي بتني پيش ساخته. | C26: متر طول | D26: 73900 | F26: 41 | G26: فصل 41 . مصالح پایکار
A27: 010403 | B27: شيار انداختن و کندن آسفالـت به عرض تا 8 سانتيمتر و عمق تا 10 سانتيمتر براي اجراي کارهاي تاسيساتي با ماشين شيار زن. | C27: متر طول | D27: 37600 | F27: 42 | G27: فصل 42 . تجهیز و برچیدن کارگاه
A28: 010404 | B28: اضافه بها به رديـف 010403، به ازاي هر سانتيمتر عمق مازاد بر 10 سانتيمتر (کسر سانتيمتر، به تناسب محاسبه مي شود). | C28: متر طول | D28: 3340
A29: 010405 | B29: برش آسفالت با کاتر به عمق تا 7 سانتيمتر (اندازه گيري بر حسب طول هر خط برش). | C29: متر طول | D29: 12600
A30: 010406 | B30: اضافه بها نسبت به رديـف 010405، به ازاي هر سانتيمتر اضافه عمق مازاد بر 7 سانتيمتر (اندازه گيري بر حسب طول هر خط برش). | C30: متر طول | D30: 1610
A31: 010407 | B31: تخريب کلي هر نوع آسفالت و اساس قيري به ضخامت تا 5 سانتيمتر. | C31: متر مربع | D31: 23600
A32: 010408 | B32: اضافه بها به رديـف 010407، به ازاي هر سانتيمتر اضافه ضخامت مازاد بر 5 سانتيمتر. (کسر سانتيمتر به تناسب محاسبه مي شود). | C32: متر مربع | D32: 4810
A33: 010409 | B33: تخريب آسفالت بين دو خط برش (با فاصله حداکثر 1.5 متر) با وسايل مکانيکي مانند کمپرسور يا بيل مکانيکي، به ضخامت تا 7 سانتيمتر و برداشتن آن. | C33: متر مربع | D33: 6300
A34: 010410 | B34: اضافه بها به رديف 010409 به ازاي هر سانتي متر اضافه ضخامت مازاد بر 7 سانتي متر (کسر سانتي متر به تناسب محاسبه مي شود). | C34: متر مربع | D34: 2410
A35: 010501 | B35: تراشیدن هر نوع آسفالت و اساس قیری با ماشین مخصوص آسفالت تراش و بارگیری، به ضخامت تا ۵ سانتی متر و به طول حداکثر ۵۰ متر. | C35: متر مربع | D35: 23100
A36: 010502 | B36: اضافه بها به رديف 010501 به ازاي هر سانتي متر اضافه ضخامت مازاد بر 5 سانتي متر (کسر سانتي متر به تناسب محاسبه مي شود). | C36: متر مربع | D36: 4590
A37: 010503 | B37: تراشیدن هر نوع آسفالت و اساس قیری با ماشین مخصوص آسفالت تراش و بارگیری، به ضخامت تا ۵ سانتی متر و به طول بیش از ۵۰ متر. | C37: مترمربع | D37: 16900
A38: 010504 | B38: اضافه بها به رديف 010503 به ازاي هر سانتي‌متر اضافه ضخامت مازاد بر 5 سانتي‌متر (کسر سانتي‌متر به تناسب محاسبه مي‌شود). | C38: مترمربع | D38: 3310
A39: 020101 | B39: خاکبرداري، پي کني و کانال کني در زمين هاي غير سنگي تا عمق 2 متر و ريختن خاک هاي کنده شده، به کنار محل هاي مربوط. | C39: مترمكعب | D39: 144000
A40: 020201 | B40: اضافه بها به ردیف 020101، هر گاه عمق پیکنی و کانال کنی بیش از2 متر باشد، برای حجم واقع بین عمق 2 تا 4 متر یک بار، 4 تا 6 متر دوبار و 6 تا 8 متر سه بار و به همین ترتیب، برای عمقهای بیشتر. | C40: مترمکعب | D40: 69900
A41: 020202 | B41: اضافه بها به ردیف 020101، در صورتی که، عملیات پایین تر از سطح آبهای زیرزمینی صورت گرفته باشد و برای آبکشی ضمن اجرای کار، به کاربردن تلمبه موتوری ضروری باشد. | C41: مترمکعب | D41: 190500
A42: 020301 | B42: حفر ميله چاه به قطرتا 1.2 متر و کوره و مخزن با مقاطع مورد نياز در زمينهاي غير سنگي تا عمق 20 متر از دهانه چاه وحمل خاکهاي حاصله تا فاصله 10 متر از دهانه چاه. | C42: مترمكعب | D42: 910500
A43: 020302 | B43: اضافه بها به رديـف 020301، هر گاه عمق چاه بيـش از20 متر از دهانه چاه باشد، براي حجم واقع در 5 متر اول مازادبر 20 متر يک بار، براي حجم واقع در 5 متردوم مازاد بر20 متر دو بار، براي حجم واقع در5 مترسوم سه بار و به همين ترتيـب براي عمقهاي بيشتر. | C43: مترمكعب | D43: 124000
A44: 020401 | B44: بارگيري مواد حاصله از هر نوع عمليات خاکي و حمل با هر نوع وسيله دستي تا 20 متر و تخليه آن در مواردي که استفاده از ماشين براي حمل ممکن نباشد. | C44: مترمكعب | D44: 121500
A45: 020402 | B45: اضافه بها به رديفهاي 020101 و 020401، براي 20 متر حمل اضافي با وسايل دستي. ( کسر20 متر به تناسـب محاسبه مي شود). | C45: مترمكعب | D45: 85100
A46: 020501 | B46: تسطيح و رگلاژ کـف پي ها و کانالهاي کنده شده . | C46: متر مربع | D46: 6570
A47: 020502 | B47: ريختن خاکها يا مصالح سنگي موجود در کنار پي ها و کانالها، به درون پي ها و کانالها در قشرهاي حداکثر 15 سانتيمتر در هرعمق پخـش، تراکم با حداقل 90 درصد کوبيدگي و تسطيح لازم. | C47: مترمكعب | D47: 51000
A48: 020503 | B48: آب پاشي و کوبيدن خاکهاي پخـش شده در قشرهاي حداکثر 15 سانتيمتر با تراکم 90 درصد به روش آشتوي اصلاحي در هرعمق. | C48: مترمكعب | D48: 100000
A49: 030101 | B49: شخم زدن هرنوع زمين غيرسنگي با وسيله مکانيکي، به عمق تا 15 سانتيمتر ‎.‎ | C49: متر مربع | D49: 770
A50: 030102 | B50: لجن برداري در زمينهاي لجني با هر وسيله مکانيکي، و حمل مواد تا فاصله 20 متر از مرکز ثقل برداشـت و تخليه آن. | C50: مترمكعب | D50: 55300
A51: 030103 | B51: خاکبرداری در زمین های خاکی نرم (یا زمین های سنگی خرد شده با GSI کوچکتر از ٢٠ ) با هر وسیله مکانیکی، حمل مواد حاصل از خاکبرداری تا فاصله ٢٠ متر از مرکز ثقل برداشت و توده کردن آن. | C51: مترمكعب | D51: 9180
A52: 030104 | B52: خاکبرداری در زمین های خاکی سخت (یا زمین های سنگی با GSI بزرگتر از ٢٠ و کوچکتر مساوی ٣۵ ) با هر وسیله مکانیکی، حمل مواد حاصل ازخاکبرداری تا فاصله ٢٠ متر از مرکز ثقل برداشت و توده کردن آن. | C52: مترمكعب | D52: 22500
A53: 030105 | B53: خاکبرداری در زمین های سنگی (یا زمین های سنگی با GSI بزرگتر از ٣۵ و کوچکتر مساوی ۵٠ ) با هر وسیله مکانیکی، حمل مواد حاصل ازخاکبرداری تا فاصله ٢٠ متر از مرکز ثقل برداشت و توده کردن آن. | C53: مترمكعب | D53: 89600
A54: 030201 | B54: خاکبرداری در زمین های سنگی با استفاده از مواد سوزا (یا زمین های سنگی با GSI بزرگتر از ۵٠ )، حمل مواد حاصل از خاکبرداری تا فاصله ٢٠ متر از مرکز ثقل برداشت و توده کردن آن. | C54: مترمكعب | D54: 119500
A55: 030203 | B55: خاکبرداري در زمين هاي سنگي بدون استفاده از مواد سوزا، ولي با استفاده از مواد منبسط شونده. | C55: مترمكعب
A56: 030204 | B56: اضافه بها به ردیف ٠٣٠٢٠١ چنانچه در انفجار از سیستم نانل به جای چاشنی الکتریکی استفاده شود. | C56: مترمكعب | D56: 3870
A57: 030301 | B57: برداشـت مواد ناشي از ريزش هر نوع زمين (ريزش برداري)، حمل آن تا فاصله 20 متر از مرکز ثقل برداشـت و ريختن در خاکريزها يا توده کردن آن. | C57: مترمكعب | D57: 7940
A58: 030401 | B58: برداشـت مواد ناشي از ريزش (ريزش برداري)، حمل آن تا فاصله 20 متر از مرکز ثقل برداشـت و ريختن در خاکريزها يا توده کردن آن، براي آن قسمـت از ريزش که مربوط به سنگهاي بزرگ غير قابل حمل باشد و براي خرد کردن آنها ازمواد منفجره يا روشهاي ديگر استفاده شود. | C58: مترمكعب | D58: 50100
A59: 030501 | B59: رگلاژ و پروفیله کردن سطح شیروانی و قنوهای کنار راه در ترانشه ها. | C59: متر مربع | D59: 4370
A60: 030601 | B60: اضافه بها به رديـف 030102، چنانچه فاصله حمل بيـش از20 متر و حداکثر50 متر باشد. | C60: مترمكعب | D60: 18400
A61: 030602 | B61: اضافه بها به رديـف 030103 تا 030105، 030202،030201، 030301 و 030401، هر گاه فاصله حمل بيـش از20 متر و حداکثر50 متر باشد. | C61: مترمكعب | D61: 5900
A62: 030701 | B62: پي کني و کانال کني با وسيله مکانيکي در زمينهاي خاکي تا عمق 2 متر و ريختن خاک کنده شده به کنار محلهاي مربوط. | C62: مترمكعب | D62: 36000
A63: 030702 | B63: پي کني و کانال کني با وسيله مکانيکي در زمينهاي لجني تا عمق 2 متر و حمل و تخليه مواد کنده شده تا فاصله 20 متر از مرکز ثقل برداشت. | C63: مترمكعب | D63: 67700
A64: 030703 | B64: پي کني، کانال کني و گودبرداري با چکش هيدروليکي در زمينهاي سنگي تا عمق 2 متر و حمل و تخليه مواد کنده شده تا فاصله 20 متر از مرکز ثقل برداشت. | C64: مترمكعب | D64: 364000
A65: 030801 | B65: اضافه بها به رديفهاي 030701 تا 30703، هر گاه عمق کانال و پي کني بيـش از 2 متر باشد، براي حجم خاک واقع شده درعمق 2 تا 3 متر يک بار، 3 تا 4 متر دوبار، 4 تا 5 متر سه بار و به همين ترتيـب براي عمقهاي بيشتر. | C65: مترمكعب | D65: 5640
A66: 030802 | B66: اضافه بها به ردیفهای 030701 و 030703 در صورتی که عملیات زیر سطح تراز آبهای زیرزمینی انجام شود و برای آبکشی، ضمن اجرای کار، بکاربردن تلمبه موتوری ضروری باشد. | C66: مترمکعب | D66: 37900
A67: 030901 | B67: بارگيري مواد حاصل از عمليات خاکي يا خاکهاي توده شده و حمل آن با کاميون يا هر نوع وسيله مکانيکي ديگر، تا فاصله 100 متري مرکز ثقل برداشـت و تخليه آن (صرفا برای یک بار). | C67: مترمكعب | D67: 23800
A68: 030902 | B68: حمل مواد حاصل از عمليات خاکي يا خاکهاي توده شده ، وقتي که فاصله حمل بيـش از 100 متر و حداکثر تا 500 متر باشد به ازاي هر 100 مترمازاد بر100 متر اول، کسر صدمتر به تناسب محاسبه مي شود. | C68: مترمكعب | D68: 1950
A69: 030903 | B69: حمل مواد حاصل از عمليات خاکي يا خاکهاي توده شده در راههاي آسفالتي، در صورتيکه فاصله حمل بيـش از500 متر تا10 کيلومتر باشد، براي هر کيلومتر اضافه بر 500 متر اول، کسر کيلومتر، به تناسـب محاسبه مي شود. | C69: مترمكعب - كیلومتر‏ | D69: 3750
A70: 030904 | B70: حمل مواد حاصل از عمليات خاکي يا خاکهاي توده شده در راههاي آسفالتي، در صورتي که فاصله حمل بيـش از10 کيلومتر تا 30 کيلومتر باشد، براي هر کيلومتر اضافه بر10 کيلومتر، کسر کيلومتر به تناسـب محاسبه مي شود. | C70: مترمكعب - كیلومتر‏ | D70: 3170
A71: 030905 | B71: حمل مواد حاصل از عملیات ترانشه برداری برای مصرف در خاکریزی در راه های آسفالتی،در صورتی که فاصله حمل بیش از 30 کیلومتر تا 50 کیلومتر باشد، برای هر کیلومتر اضافه بر 30 کیلومتر،کسر کیلومتر به تناسب محاسبه میشود. | C71: مترمکعب - کیلومتر | D71: 2890
A72: 030910 | B72: حمل آب در صورتي که فاصله حمل بيـش از يک کيلومتر باشد، براي هر کيلومتر اضافه بر يک کيلومتر اول. (کسرکيلومتر به تناسـب محاسبه مي شود). | C72: مترمكعب - كیلومتر‏ | D72: 7440
A73: 031001 | B73: تسطيح بستر خاکريزها با گريدر. | C73: متر مربع | D73: 560
A74: 031002 | B74: آب پاشي و کوبيدن بستر خاکريزها يا کـف ترانشه ها و مانند آنها، با تراکم 85 درصد، به روش آشتو اصلاحي تا عمق 15 سانتيمتر. | C74: متر مربع | D74: 1110
A75: 031003 | B75: آب پاشي و کوبيدن بستر خاکريزها يا کـف ترانشه ها و مانند آنها، با تراکم 90 درصد، به روش آشتو اصلاحي تا عمق 15 سانتيمتر. | C75: متر مربع | D75: 1570
A76: 031004 | B76: آب پاشي و کوبيدن بستر خاکريزها يا کـف ترانشه ها و مانند آنها، با تراکم 95 درصد، به روش آشتو اصلاحي تا عمق 15 سانتيمتر. | C76: متر مربع | D76: 2080
A77: 031005 | B77: آب پاشي و کوبيدن بستر خاکريزها يا کـف ترانشه ها و مانند آنها، با تراکم 100 درصد، به روش آشتو اصلاحي تا عمق 15 سانتيمتر. | C77: متر مربع | D77: 3290
A78: 031006 | B78: غرقاب کردن و کوبيدن ماسه بادي خشک در بستر خاکريزها يا کـف ترانشه ها تا عمق 15 سانتيمتر. | C78: متر مربع | D78: 2480
A79: 031007 | B79: تحکیم زمین های ماسه ای به روش تراکم دینامیکی (Dynamic Compaction)، همراه با افزودن خاک مناسب.
A80: 031101 | B80: پخـش، آب پاشي، تسطيح، پروفيله کردن، رگلاژ و کوبيدن قشرهاي خاکريزي و تونان با 85 درصد کوبيدگي، به روش آشتو اصلاحي، وقتي که ضخامـت قشرهاي خاکريزي پـس از کوبيده شدن، حداکثر 15 سانتيمتر باشد. | C80: مترمكعب | D80: 22100
A81: 031102 | B81: پخـش، آب پاشي، تسطيح، پروفيله کردن، رگلاژ و کوبيدن قشرهاي خاکريزي و تونان با 90 درصد کوبيدگي، به روش آشتو اصلاحي، وقتي که ضخامـت قشرهاي خاکريزي پـس از کوبيده شدن، حداکثر 15 سانتيمتر باشد. | C81: مترمكعب | D81: 24800
A82: 031103 | B82: پخـش، آب پاشي، تسطيح، پروفيله کردن، رگلاژ و کوبيدن قشرهاي خاکريزي و تونان با 95 درصد کوبيدگي، به روش آشتو اصلاحي، وقتي که ضخامـت قشرهاي خاکريزي پـس از کوبيده شدن، حداکثر 15 سانتيمتر باشد. | C82: مترمكعب | D82: 27200
A83: 031104 | B83: پخـش، آب پاشي، تسطيح، پروفيله کردن، رگلاژ و کوبيدن قشرهاي خاکريزي و تونان با 100 درصد کوبيدگي، به روش آشتو اصلاحي، وقتي که ضخامـت قشرهاي خاکريزي پـس از کوبيده شدن، حداکثر 15 سانتيمتر باشد. | C83: مترمكعب | D83: 36400
A84: 031105 | B84: پخـش، آب پاشی، تسطیح، پروفیله کردن، و کوبیدن قشرهای خاکریزی سنگی، وقتی که ضخامـت قشرهای خاکریزی پـس از کوبیده شدن، حداکثر 60 سانتیمتر بوده و مشخصات فنی کار با انجام آزمایش بارگذاری صفحه تایید شده باشد. | C84: مترمکعب | D84: 13500
A85: 031106 | B85: پخـش، آب پاشي، تسطيح، پروفيله کردن و کوبيدن قشرهاي خاکريزي روي ورودي و خروجي تونلها و گالري ها طبق مشخصات. | C85: مترمكعب
A86: 031107 | B86: اضافه‌بها به ‌رديفهاي 031101 تا 031104 وقتي در عمليات خاکي براي مسلح کردن خاک از جوشن به‌ شکل تسمه‌هاي فولادي استفاده گردد و ضخامت قشرهاي خاکريزي پس از کوبيده شدن حداکثر 37.5 سانتي‌متر باشد. | C86: مترمكعب | D86: 11900
A87: 031201 | B87: ريختن خاکها يا مصالح سنگي موجود کنارپي ها و کانالها به درون آنها با ماشين، پخش و تراکم تا 90 درصد کوبيدگي. | C87: مترمكعب | D87: 5530
A88: 031202 | B88: اختلاط دو يا چند نوع مصالح، به منظورساختن زيرسازي راه يا تقويـت بستر. | C88: مترمكعب | D88: 7500
A89: 031203 | B89: پخـش خاکهاي نباتي ريسه شده، تنظيم و رگلاژ آن در محلهاي مورد نظر. | C89: مترمكعب | D89: 5120
A90: 031204 | B90: پخـش مصالح حاصل از خاک برداري، که درمحلهاي تعين شده دپو شده باشند، با هر ضخامـت. | C90: مترمكعب | D90: 3590
A91: 031205 | B91: ترميم و تسطيح راههاي انحرافي با گريدر يا ساير وسايل مکانيکي. | C91: کیلومتر - ماه | D91: 4549000
A92: 031206 | B92: پروف رولينـگ در سواره روي فرودگاهها با غلطک چرخ لاستيکي حداقل 60 تني و کشنده مربوط به ازاي هر بار عبور غلطک (اين رديـف حداکثر براي ده بار عبور براي هر مترمربع قابل پرداخـت اسـت). | C92: متر مربع | D92: 370
A93: 031301 | B93: تهيه ماسه بادي مرطوب، شامل کندن، بارگيري و حمل تا فاصله 500 متر و باراندازي در محل مصرف. | C93: مترمكعب | D93: 45100
A94: 031302 | B94: پخـش، تسطيح، غرقاب کردن و کوبيدن ماسه بادي مرطوب براي ساختمان بدنه راه. | C94: مترمكعب | D94: 43300
A95: 031303 | B95: تهيه ماسه بادي خشک، شامل کندن، بارگيري و حمل تا فاصله 500 متر و باراندازي درمحل مصرف. | C95: مترمكعب | D95: 49900
A96: 031304 | B96: پخـش، تسطيح، غرقاب کردن و کوبيدن ماسه بادي خشک براي ساختمان بدنه راه. | C96: مترمكعب | D96: 54800
A97: 031305 | B97: پخـش، تسطيح و کوبيدن ماسه بادي، براي تحکيم بستر راه. | C97: مترمكعب | D97: 37500
A98: 040101 | B98: حفاري در زمين هاي پايدار و حمل مصالح حاصل از حفاري تا 100 متري دهانه تونل. | C98: مترمكعب | D98: 782500
A99: 040102 | B99: حفاري در زمين هاي نيمه پايدار و حمل مصالح حاصل از حفاري تا 100 متري دهانه تونل. | C99: مترمكعب | D99: 791500
A100: 040103 | B100: حفاري در زمين هاي ناپايدار و حمل مصالح حاصل از حفاري تا 100 متري دهانه تونل. | C100: مترمكعب | D100: 1069000
A101: 040104 | B101: حفاري تونل‌هاي با سطح مقطع حفاري 40 مترمربع، در زمين غيرسنگي، با استفاده از هر نوع دستگاه TBM. | C101: متر مکعب | D101: 3230000
A102: 040105 | B102: حفاري تونل‌هاي با سطح مقطع حفاري 40 مترمربع، در زمين سنگي، با استفاده از هر نوع دستگاه TBM. | C102: متر مکعب | D102: 2468000
A103: 040201 | B103: اضافه بها ناشي از صعوبت اجراي تحکيمات به رديف 040102 | C103: متر مکعب | D103: 117000
A104: 040202 | B104: اضافه بها ناشي از صعوبت اجراي تحکيمات به رديف 040103 | C104: مترمكعب | D104: 220000
A105: 040203 | B105: اضافه بها براي رديف هاي 040101 تا 040103، در صورت استفاده از کله گاوي (Road header). | C105: درصد | D105: 10
A106: 040204 | B106: اضافه بها به رديف‌هاي 040101 تا 040103 در صورتي که مقطع کل حفاري طبق نقشه کو چکتر از 30 متر مربع باشد. | C106: درصد | D106: 24
A107: 040205 | B107: اضافه بها به رديف‌هاي 040101 تا 040103 به گونه‌اي که حفاري در زمين‌هاي آبدار با نشت آب به صورت قطره‌اي و ناپيوسته باشد. | C107: درصد | D107: 3
A108: 040206 | B108: اضافه بها به رديف‌هاي 040101 تا 040103 به گونه‌اي که حفاري در زمين‌هاي آبدار با نشت آب به صورت پيوسته، روان و جاري باشد. | C108: درصد | D108: 7
A109: 040207 | B109: اضافه بها به رديف‌هاي 040101 تا 040103 به گونه‌اي که حفاري در زمين‌هاي آبدار با نشت آب بسيار زياد توام با ريزش باشد. | C109: درصد | D109: 15
A110: 040208 | B110: اضافه بها به رديف‌هاي 040102 و 040103 در صورتي که به دليل ناپايداري زمين يا بزرگ بودن مقطع حفاري در بيش از سه مرحله انجام پذيرد. | C110: درصد | D110: 12
A111: 040209 | B111: اضافه بها براي رديف‌هاي حفاري در صورتي که حفاري در شفت و براي مقطع تا 20 متر مربع انجام پذيرد. | C111: درصد | D111: 33
A112: 040210 | B112: اضافه بها به رديف‌هاي حفاري (040101 تا 040103) در تونل هرگاه فاصله مقطع حفاري از نزديکترين دهانه دسترسي بيش از 250 متر باشد، به ازاي هر 250 متر، براي 250 متر دوم يکبار، 250 متر سوم دوبار، و به همين ترتيب براي طو ل‌هاي بيشتر. | C112: درصد | D112: 10
A113: 040211 | B113: اضافه بها به رديف‌هاي‌ 040104 و 040105 به ازاي هر متر مربع کمتر از 40 متر مربع. | C113: درصد | D113: 2
A114: 040212 | B114: کسر بها به رديف‌هاي‌ 040104 و 040105 به ازاي هر متر مربع بيش‌تر از 40 متر مربع و حداکثر تا 140 متر مربع. | C114: درصد | D114: -0.45
A115: 040213 | B115: اضافه بها به رديف‌هاي حفاري تونل با استفاده از دستگاه حفار TBM (رديف‌هاي 040104 و 040105) در عمق بيشتر از 250 متر، براي 250 متر دوم يك بار، براي 250 متر سوم دو بارو به همين ترتيب براي طول‌هاي بيشتر. | C115: درصد | D115: 1
A116: 040214 | B116: اضافه بها به ردیف های حفاری در زمین های پایدار و نیمه پایدار چنانچه در انفجار از سیستم نانل به جای چاشنی الکتریکی استفاده شود. | C116: مترمكعب | D116: 34400
A117: 040301 | B117: بارگيري هر نوع مصالح ناشي از ريزش در هر نوع زمين خارج از قصور پيمانکار و حمل و تخليه تا 100 متري دهانه. | C117: مترمكعب | D117: 55300
A118: 040401 | B118: حفاري و تهيه تمامي مصالح و اجراي ميل هاي مهاری ناتنيده به قطر 25 ميلي متر و کمتر در داخل تونل به طول 3 متر در هر زاويه و ارتفاع. | C118: متر طول | D118: 642000
A119: 040402 | B119: حفاري و تهيه تمامي مصالح و اجراي ميل مهار ناتنيده به قطر بيش از 25 ميلي متر و تا 32 ميلي متر در داخل تونل به طول 3 متر در هر زاويه و ارتفاع. | C119: متر طول | D119: 802500
A120: 040403 | B120: حفاري و تهيه تمامي مصالح و اجراي ميل مهار تنيده به قطر 25 ميلي‌متر و کمتر در داخل تونل به طول 3 متر در هر زاويه و ارتفاع. | C120: متر طول | D120: 732000
A121: 040404 | B121: حفاري و تهيه تمامي مصالح و اجراي ميل مهار تنيده به قطر بيش از 25 ميلي‌متر و تا 32 ميلي‌متر به طول 3 متر در هر زاويه و ارتفاع. | C121: مترطول | D121: 907500
A122: 040405 | B122: اضافه بها به رديف‌هاي ميل مهار تنيده و ناتنيده براي طول مازاد بر 3 متر اول به ازاي هر متر. | C122: درصد | D122: 5
A123: 040501 | B123: آماده نمودن، استقرار دستگاه و حفاري به قطر حداکثر 56 ميليمتر در داخل سنگ، تهيه مصالح و تزريق جهت انجام تزريق اتصالي و پرکننده با هر زاويه نسبت به افق. | C123: متر طول | D123: 1559000
A124: 040502 | B124: آماده نمودن، استقرار دستگاه و حفاري به قطر حداکثر 56 ميليمتر در داخل سنگ، تهيه مصالح و تزريق جهت انجام تزريق تحکيمي و پرکننده با هر زاويه نسبت به افق. | C124: متر طول | D124: 1714000
A125: 040503 | B125: اضافه بها به رديف تزريق تحکيمي در صورتي که لوله فولادي در کار باقي بماند(فقط براي روش فور پولينگ). | C125: متر طول | D125: 620000
A126: 040504 | B126: اضافه بها به ازاي هر عدد چال تزريق چنانچه قفل کوپلينگ (Retainer ،Ring bit، Casing shoe) در کار باقي بماند.(فقط براي روش فور پولينگ). | C126: عدد | D126: 7914000
A127: 040505 | B127: اضافه بها به ردیف های تزریق و میل مهار درتونل هرگاه فاصله چال زنی از نزدیکترین دهانه دسترسی بیش از 250 متر باشد، به ازای هر250 متر. برای 250 متر دوم یکبار، 250 متر سوم دوبار، و به همین ترتیب برای طول های بیشتر. | C127: درصد | D127: 6
A128: 040601 | B128: انجام تمامي عمليات لازم براي نصب ابزار دقيق همگرايي سنج سه نقطه اي در تونل در حين عمليات حفاري. | C128: سری (3 عدد) | D128: 794000
A129: 040602 | B129: انجام تمامي عمليات لازم براي قرائت ابزار دقيق همگرايي سنج براي هر نقطه در تونل در حين عمليات حفاري. | C129: قرائت | D129: 299500
A130: 040603 | B130: اضافه بها به رديف 040601 به ازاي نصب هر نقطه همگرايي سنج مازاد بر سه نقطه اول. | C130: عدد | D130: 504000
A131: 040604 | B131: انجام تمامي عمليات لازم براي نصب و قرائت هر نوع ‌ابزار دقيق (Extenso Meter) واگراسنج در تونل حين عمليات حفاري، براي طول تا 5 متر. | C131: متر طول | D131: 2965000
A132: 040605 | B132: اضافه بها به رديف 040604 به ازاي هر متر افزايش طول مازاد بر 5 متر اول. | C132: متر طول | D132: 699000
A133: 040701 | B133: حفر سوراخ هاي آبچکان به قطر 56 ميلي متر. | C133: متر طول | D133: 342000
A134: 050101 | B134: حفاری ماشینی محل شمع، با مقطع دایره ای و به قطر 60 سانتیمتر، به طور عمودی تا عمق 20 متر در زمین هایی که در آن ها 50 =>N باشد، بیرون آوردن مصالح و حمل آن ها به دپو تا فاصله 50 متری مرکز ثقل محل حفاری، با هر وسیله، و تمیزکردن محل عملیات. | C134: مترطول | D134: 1553000
A135: 050102 | B135: حفاری ماشینی محل شمع، با مقطع دایره ای و به قطر 80 سانتیمتر، به طور عمودی تا عمق 20 متر در زمین هایی که در آن ها N<=50 باشد، بیرون آوردن مصالح و حمل آن ها به دپو تا فاصله 50 متری مرکز ثقل محل حفاری، با هر وسیله، و تمیزکردن محل عملیات. | C135: مترطول | D135: 1738000
A136: 050103 | B136: حفاری ماشینی محل شمع، با مقطع دایره ای و به قطر 100 سانتیمتر، به طور عمودی تا عمق 20 متر در زمین هایی که در آن ها 50 =>N باشد، بیرون آوردن مصالح و حمل آن ها به دپو تا فاصله 50 متری مرکز ثقل محل حفاری، با هر وسیله، و تمیز کردن محل عملیات. | C136: مترطول | D136: 2046000
A137: 050104 | B137: حفاری ماشینی محل شمع، با مقطع دایره ای و به قطر 120 سانتیمتر، به طور عمودی تا عمق 20 متر در زمین هایی که در آن ها 50 =>N باشد، بیرون آوردن مصالح و حمل آن ها به دپو تا فاصله 50 متری مرکز ثقل محل حفاری، با هر وسیله ، و تمیز کردن محل عملیات. | C137: مترطول | D137: 2306000
A138: 050105 | B138: حفاری ماشینی محل شمع، با مقطع دایره ای و به قطر 150 سانتیمتر، به طور عمودی تا عمق 20 متر در زمین هایی که در آن ها 50 =>N باشد، بیرون آوردن مصالح و حمل آن ها به دپو تا فاصله 50 متری مرکز ثقل محل حفاری، با هر وسیله ، و تمیز کردن محل عملیات. | C138: مترطول | D138: 2731000
A139: 050201 | B139: اضافه‌بها به رديف‌هاي 050101 و 050102، براي حفاري در عمق‌هاي بيشتر از 20 متر، به ازاي هر متر طول مازاد بر 20 متر اوليه براي عمق 20 تا 25 متر يک بار، براي عمق 25 تا30 متر دوبار و به همين ترتيب براي عمق‌هاي بيشتر. | C139: متر طول | D139: 150000
A140: 050202 | B140: اضافه بها به رديفهاي 050103 و 050104، براي حفاري در عمقهاي بيشتر از20 متر، به ازاي هر متر طول مازاد بر20 متر اوليه. براي عمق 20 تا 25 متر يک بار، براي عمق 25 تا30 متر دوبار و به همين ترتيـب براي عمقهاي بيشتر. | C140: متر طول | D140: 197000
A141: 050203 | B141: اضافه بها به رديـف 050105، براي حفاري در عمقهاي بيشتر از20 متر، به ازاي هرمتر طول مازاد بر20 متر اوليه. براي عمق 20 تا 25 متر يک بار، براي عمق 25 تا30 متر دو بار و به همين ترتيـب براي عمقهاي بيشتر. | C141: متر طول | D141: 248500
A142: 050301 | B142: اجرای حفاری محل بارت با عرض (ضخامـت 60 سانتیمتر)، و طول های 180 تا 260 سانتیمتر به طور عمودی تا عمق 20 متر در زمین هایی که در آن ها 50 =>N باشد، بیرون آوردن مصالح و حمل آن ها به محل دپو تا فاصله 50 متری مرکز ثقل محل حفاری، با هر وسیله، و تمیزکردن محل عملیات. | C142: مترمربع | D142: 979000
A143: 050302 | B143: اجرای حفاری محل بارت باعرض (ضخامـت 80 سانتیمتر)، و طول های 180 تا 260 سانتیمتر به طور عمودی تا عمق 20 متر در زمین هایی که در آن ها 50 =>N باشد، بیرون آوردن مصالح و حمل آن ها به محل دپو تا فاصله 50 متری مرکز ثقل محل حفاری، با هر وسیله، و تمیزکردن محل عملیات. | C143: مترمربع | D143: 1091000
A144: 050303 | B144: اجرای حفاری محل بارت با عرض (ضخامـت 100سانتیمتر)، وطول های 180 تا260 سانتیمتر به طور عمودی تا عمق 20 متر در زمین هایی که در آن ها 50 =>N باشد، بیرون آوردن مصالح و حمل آن ها به محل دپو تا فاصله 50 متری مرکز ثقل محل حفاری ، با هر وسیله، و تمیزکردن محل عملیات. | C144: مترمربع | D144: 1186000
A145: 050401 | B145: اجرای حفاری محل دیوار زیرزمینی به طور قایم تا عمق 20 متر و به عرض (ضخامـت 60 سانتیمتر)، در زمین هایی که در آن ها 50 =>N باشد، بیرون آوردن مصالح و حمل آن ها به دپو تا فاصله 50 متری مرکز ثقل محل حفاری، با هر وسیله و تمیز کردن محل عملیات. | C145: مترمربع | D145: 1125000
A146: 050402 | B146: اجرای حفاری محل دیوار زیر زمینی به طور قایم تا عمق 20 متر و به عرض (ضخامـت 80 سانتیمتر)، در زمین هایی که در آن ها 50 =>N باشد، بیرون آوردن مصالح و حمل آن ها به دپو تا فاصله 50 متری مرکز ثقل محل حفاری ، با هر وسیله و تمیز کردن محل عملیات. | C146: مترمربع | D146: 1255000
A147: 050403 | B147: اجرای حفاری محل دیوار زیرزمینی به طور قایم تا عمق 20 متر و به عرض (ضخامـت 100 سانتیمتر)، در زمین هایی که در آن ها 50 =>N باشد، بیرون آوردن مصالح و حمل آن ها به دپو تا فاصله 50 متری مرکز ثقل محل حفاری با هر وسیله و تمیزکردن محل عملیات. | C147: مترمربع | D147: 1364000
A148: 050501 | B148: اضافه بها به رديـف 050401، براي حفاري در عمقهاي بيـش از20 متر، به ازاي هر متر طول مازاد بر20 متر اوليه. براي عمق 20 تا 25 متر يک بار، براي عمق 25 تا30 متر دو بار و به همين ترتيـب براي عمقهاي بيشتر. | C148: متر مربع | D148: 102500
A149: 050502 | B149: اضافه بها به رديـف 050402 ، براي حفاري در عمقهاي بيـش از20 متر، به ازاي هر متر طول مازاد بر20 متر اوليه. براي عمق 20 تا 25 متر يک بار، براي عمق 25 تا30 متر دو بار و به همين ترتيـب براي عمقهاي بيشتر. | C149: متر مربع | D149: 113500
A150: 050503 | B150: اضافه بها به رديـف 050403، براي حفاري در عمقهاي بيشتر از20 متر، به ازاي هر متر طول مازاد بر20 متر اوليه، براي عمق 20 تا 25 متر يک بار، براي عمق 25 تا30 متر دو بار و به همين ترتيـب براي عمقهاي بيشتر. | C150: متر مربع | D150: 124500
A151: 050601 | B151: تهيه تمام مصالح، وسايل و جاگذاري لوله هاي فلزي ( CASING ) به هر قطر تا عمق 6 متر، براي آن قسمـت ازحفاري که به لوله گذاري نياز دارد و خارج کردن لوله درحين بتن ريزي. | C151: متر مربع | D151: 164000
A152: 050602 | B152: بارگيري و حمل لوله هاي فلزي ( CASING ) به هر قطر از پاي کار تا محل حفاري، تهيه تمام وسايل لازم و جاگذاري آنها تا عمق 6 متر، براي آن قسمـت از حفاري که به لوله گذاري نياز دارد و لوله ها الزاما بايد در محل باقي بمانند. | C152: متر مربع | D152: 107500
A153: 050603 | B153: تهیه تمام مصالح، وسایل و جاگذاری لوله های محل درزها (درز انقطاع) بین قطعات مختلـف دیوارهای زیرزمینی به صورت قایم، و بیرون کشیدن آن پـس از انجام بتن ریزی. | C153: مترمربع | D153: 278000
A154: 050701 | B154: اضافه بها به رديفهاي حفاري محل شمع، بارت يا ديوار زير زميني، چنانچه استفاده از گل حفاري (حسب نیاز توام با ماسه گيري) ضروري باشد. | C154: مترمكعب | D154: 639500
A155: 050703 | B155: اضافه‌بها به رديف‌هاي حفاري محل شمع، بارت يا ديوار زيرزميني که N بيشتر از 50 و حداکثر برابر 100 باشد. | C155: مترمكعب | D155: 3565000
A156: 050704 | B156: اضافه بها به رديف‌هاي حفاري محل شمع، بارت يا ديوار زيرزميني که N بیشتر از 100 باشد و لزوما از ترپان یا اوگر یا راک اوگر یا دور بر الماسه یا وسایل مشابه براي حفاري استفاده شود. | C156: مترمكعب | D156: 8913000
A157: 050801 | B157: اضافه بها به رديفهاي فصل کارهاي فولادي باميل گرد در صورتي که ميل گرد در شمع ها، بارتها و ديوارهاي زير زميني مصرف شود. | C157: كیلوگرم | D157: 1520
A158: 050802 | B158: اضافه بها به رديفهاي فصل بتن درجا در صورتي که بتن به صورت درجا براي شمع ها، بارتها يا ديوارهاي زير زميني اجرا شود. | C158: مترمكعب | D158: 303000
A159: 051001 | B159: بارگیری شمع فلزی از تیر آهن نوع H تا نمره 24 سانتیمتر و یا شمع های ساخته شده از تیر آهن، ورق، ناودانی، نبشی یا ترکیبی از آنها که وزن حاصله حدود وزن تیرآهن H نظیر باشد، حمل از پای کار، استقرار در محل شمع و کوبیدن آن به طور عمودی تا عمق 12 متر در زمینهایی که در آنها 25 => N باشد. | C159: مترطول | D159: 296000
A160: 051002 | B160: بارگیری شمع فلزی از لوله به قطر خارجی تا 24 سانتیمتر و یا شمع های توخالی ساخته شده با سپر فلزی یا ورق که وزن حاصله حدود وزن لوله نظیر باشد حمل از پای کار، استقرار در محل شمع و کوبیدن آن به طور عمودی تا عمق 12 متر در زمینهایی که در آنها 25 => N باشد. | C160: مترطول | D160: 444000
A161: 051003 | B161: بارگیری شمع فلزی از تیر آهن نوع H تا نمره ۲۴ سانتی‌متر و یا شمع‌های ساخته شده از تیر آهن، ورق، ناودانی، نبشی یا ترکیبی از آنها که وزن حاصله حدود وزن تیرآهن H نظیر باشد، حمل از پای کار، استقرار در محل شمع و کوبیدن آن به‌ طور عمودی تاعمق ۱۲ متر در زمین‌هایی که در آن‌ها N بزرگ‌تراز ۲۵ باشد. | C161: مترطول | D161: 577500
A162: 051004 | B162: بارگیری شمع فلزی از لوله به قطر خارجی تا 24 سانتیمتر، یاشمع های تو خالی ساخته شده با سپر فلزی و یا ورق، که وزن حاصله حدود وزن لوله نظیر باشد حمل از پای کار، استقرار در محل شمع و کوبیدن آن به طور عمودی تا عمق 12 متر در زمین هایی که در آنها N بزرگتر از 25 باشد. | C162: مترطول | D162: 866500
A163: 051101 | B163: اضافه بها به رديـف 051001، در صورتي که طول شمع فلزي از 12 متر بيشتر باشد، به ازاي هر متر مازاد بر 12 متر. | C163: متر طول | D163: 279000
A164: 051102 | B164: اضافه بها به رديـف 051002، در صورتي که طول شمع فلزي از 12 متر بيشتر باشد، به ازاي هر متر مازاد بر 12 متر. | C164: متر طول | D164: 338000
A165: 051103 | B165: اضافه بها به رديف 051003، درصورتيکه طول شمع فلزي از 12 متر بيشتر باشد به ازاء هر متر مازاد بر 12 متر. | C165: متر طول | D165: 488500
A166: 051104 | B166: اضافه بها به رديف 051004، درصورتيکه طول شمع فلزي از 12 متر بيشتر باشد به ازاء هر متر مازاد بر 12 متر. | C166: متر طول | D166: 623500
A167: 051105 | B167: اضافه بها به ردیفهای 051001 و 051003، به ازای هر 2 سانتیمتر که به نمره تیرآهن اضافه شود. این ردیف برای شمع های ساخته شده از تیرآهن، ورق، ناودانی، نبشی و یا ترکیبی از آنها که وزن حاصله حدود وزن تیرآهن H نظیر باشد نیز قابل پرداخت است. | C167: مترطول | D167: 41800
A168: 051106 | B168: اضافه بها به رديفهاي 051002 و 051004، به ازاي هر 2 سانتيمتر که به اندازه قطر خارجي لوله اضافه شود. اين رديف براي شمع هاي توخالي ساخته شده از سپر فلزي يا ورق که وزن حاصله حدود وزن لوله نظير باشد نيز قابل پرداخت است. | C168: متر طول | D168: 63700
A169: 051107 | B169: خارج کردن انواع شمعهاي فلزي. | C169: متر طول | D169: 235500
A170: 051201 | B170: بارگيري شمع بتني مسلح با سطح مقطع 30×30 سانتيمتر، حمل ازدپوي محل ساخـت تا پاي کار، استقرار در محل شمع و کوبيدن آن به طورعمودي تا عمق 11 متر. | C170: متر طول | D170: 470000
A171: 051202 | B171: اضافه بها به رديـف 051201، به ازاي هر 5 سانتيمتر که به هر دو بعد مقطع شمع اضافه شود. | C171: متر طول | D171: 47000
A172: 051203 | B172: اضافه بها به رديـف 051201، در صورتيکه طول شمع بتن مسلح از 11 متر بيشتر باشد، به ازاي هر متر طول مازاد بر11 متر اوليه براي عمق تا 20 متر. | C172: متر طول | D172: 338500
A173: 051204 | B173: اضافه بها برای کوبیدن شمع های بتنی به طور مایل، با شیب حداکثر یک افقی و 5 قائم. | C173: مترطول | D173: 59700
A174: 051205 | B174: اضافه بها برای کوبیدن شمعهای بتنی به طور مایل، باشیب از یک افقی و 5 قائم تا حداکثر یک افقی و 3 قائم. | C174: مترطول | D174: 119500
A175: 051301 | B175: بارگيري و حمل سپرفلزي به ابعاد مختلـف تهيه شده توسط کارفرما، از پاي کار، استقرار در محل سپرکوبي و کوبيدن تا عمق 12 متر، در حالتي که سپر در محل کوبيده شده باقي بماند و وزن سپر هر مترمربع 122 کيلوگرم باشد در زمين هايي که N کوچکتر يا برابر 25 باشد. | C175: متر مربع | D175: 412500
A176: 051302 | B176: تهيه، بارگيري و حمل سپرفلزي به ابعاد مختلـف از پاي کار، استقرار در محل سپرکوبي و کوبيدن تا عمق 12 متر، در حالتي که سپر در محل کوبيده شده باقي بماند و وزن سپر هر مترمربع 122 کيلوگرم باشد در زمينهايي که N کوچکتر يا برابر 25 باشد.(هزينه تهيه سپر مطابق بند 7 مقدمه فصل دهم). | C176: متر مربع | D176: 412500
A177: 051303 | B177: بارگيري و حمل سپرفلزي به ابعاد مختلـف تهيه شده توسط کارفرما از پاي کار، استقرار در محل سپرکوبي و کوبيدن آن تا عمق 12 متر، در حالتي که سپر در محل کوبيده شده باقي بماند و وزن سپر هر مترمربع 122 کيلوگرم باشد در زمين هايي که N بزرگتر از 25 باشد. | C177: متر مربع | D177: 816000
A178: 051304 | B178: تهيه، بارگيري و حمل سپرفلزي به ابعاد مختلف از پاي کار، استقرار در محل سپرکوبي و کوبيدن آن تا عمق 12 متر، در حالتي که سپر در محل کوبيده شده باقي بماند و وزن سپر هر مترمربع 122 کيلوگرم باشد در زمينهايي که N بزرگتر از 25 باشد.(هزينه تهيه سپر مطابق بند 7 مقدمه فصل دهم پرداخت مي گردد). | C178: متر مربع | D178: 816000
A179: 051305 | B179: بارگيري و حمل سپرفلزي به ابعاد مختلف تهيه شده توسط کارفرما از پاي کار، استقرار در محل سپرکوبي و کوبيدن آن تا عمق 12 متر و خارج کردن سپر وقتي که وزن سپر هر مترمربع 122 کيلوگرم باشد در زمينهايي که N کوچکتر يا برابر 25باشد. | C179: متر مربع | D179: 725500
A180: 051306 | B180: تهيه، بارگيري و حمل سپرفلزي به ابعاد مختلف از پاي کار، استقرار در محل سپرکوبي و کوبيدن آن تا عمق 12 متر و خارج کردن سپر وقتي که وزن سپر هر مترمربع 122 کيلوگرم باشد در زمينهايي که N کوچکتر يا برابر 25باشد. | C180: متر مربع | D180: 859000
A181: 051307 | B181: بارگيري و حمل سپرفلزي به ابعاد مختلف تهيه شده توسط کارفرما از پاي کار، استقرار در محل سپرکوبي و کوبيدن آن تا عمق 12 متر و خارج کردن سپر وقتي که وزن سپر هر مترمربع 122 کيلوگرم باشد در زمينهايي که N بزرگتر از 25 باشد. | C181: متر مربع | D181: 1160000
A182: 051308 | B182: تهيه، بارگيري و حمل سپرفلزي به ابعاد مختلف از پاي کار، استقرار در محل سپرکوبي و کوبيدن آن تا عمق 12 متر و خارج کردن سپر وقتي که وزن سپر هر مترمربع 122 کيلوگرم باشد در زمينهايي که N بزرگتر از 25باشد. | C182: متر مربع | D182: 1338000
A183: 051309 | B183: اضافه بها يا کسربها به رديفهاي 051301 و 051303 براي هر 25 کيلوگرم در مترمربع که از وزن سپر کم يا اضافه گردد.(کسر 25 کيلوگرم به تناسب محاسبه مي گردد). | C183: متر مربع | D183: 66900
A184: 051310 | B184: اضافه بها يا کسربها به رديفهاي 051305 و 051307 براي هر 25 کيلوگرم در مترمربع که از وزن سپر کم يا اضافه گردد.(کسر 25 کيلوگرم به تناسب محاسبه مي گردد). | C184: متر مربع | D184: 96700
A185: 051311 | B185: خارج کردن سپر فلزي. | C185: متر مربع | D185: 222500
A186: 051401 | B186: بارگيري سپربتني مسلح به ابعاد مختلـف، حمل از دپوي محل ساخـت، استقرار در محل سپرکوبي و کوبيدن آن تا عمق 6 متر. | C186: متر مربع | D186: 1044000
A187: 060101 | B187: سنگ ریزی پشت دیوارها و پل ها (درناژ) با قلوه سنگ یا سنگ لاشه. | C187: مترمكعب | D187: 169500
A188: 060105 | B188: تهيه، ساخـت و نصـب تور سنـگ (گابيون) با تور سيمي گالوانيزه و قلوه سنـگ. | C188: مترمكعب | D188: 1246000
A189: 060106 | B189: تهيه، ساخـت و نصـب تور سنـگ (گابيون) با تور سيمي گالوانيزه و سنـگ لاشه. | C189: مترمكعب | D189: 1584000
A190: 060201 | B190: بنايي با سنـگ لاشه و ملات ماسه سيمان 1:5 در پي. | C190: مترمكعب | D190: 1294000
A191: 060202 | B191: بنايي با سنـگ لاشه و ملات ماسه سيمان 1:4 در پي. | C191: مترمكعب | D191: 1328000
A192: 060203 | B192: بنايي با سنـگ لاشه و ملات ماسه سيمان 1:3 در پي. | C192: مترمكعب | D192: 1371000
A193: 060301 | B193: اضافه بها به رديفهاي بنايي با سنـگ لاشه در پي، براي بنايي در ديوار. | C193: مترمكعب | D193: 361000
A194: 060401 | B194: اضافه بها به رديفهاي بنايي با سنـگ لاشه، بابـت نماسازي با سنـگ لاشه موزاييکي. | C194: متر مربع | D194: 155000
A195: 060402 | B195: اضافه بها به رديفهاي بنايي با سنـگ لاشه، بابـت نماسازي با سنـگ بادبر ، با ارتفاع مساوي در هر رگ. | C195: متر مربع | D195: 329500
A196: 060403 | B196: اضافه بها به ردیف های بنایی با سنگ لاشه، برای سطوح شیب دار در شیروانی ها. | C196: مترمربع | D196: 32300
A197: 060404 | B197: اضافه بها به رديفهاي بنايي با سنـگ لاشه، بابـت نماسازي با سنـگ سر تراش. | C197: متر مربع | D197: 502000
A198: 060501 | B198: بنايي باسنـگ سر تراش و ملات ماسه سيمان 1:3. | C198: مترمكعب | D198: 2804000
A199: 060502 | B199: بنايي با سنـگ نيم تراش و ملات ماسه سيمان 1:3. | C199: مترمكعب | D199: 2986000
A200: 060601 | B200: اضافه بها براي بنايي در طاق پلهاي قوسي شکل (اين اضافه بها شامل بهاي چوب بسـت پلهاي قوسي تا دهانه 10 متر و خود10 متر اسـت). | C200: مترمكعب | D200: 220500
... 611 more rows

Sheet Anb (hidden)
L1: نيروي انساني | M1: 1e-08
L2: ماشين آلات | M2: 1e-06
L3: مصالح | M3: 0.0001
L4: حمل مصالح | M4: 0.01
N5: 010101 | Q5: =IF(N5>0,N5,Q4) -> 010101
L6: متر مربع | O6: واحـد : | Q6: =IF(N6>0,N6,Q5) -> 010101
A7: کد فراخوانی | C7: مقدار/مقیاس | D7: مقیاس | E7: بهاي كل | G7: ضريب | I7: بهاي واحد | J7: مقـدار | K7: واحــد | L7: ماشين آلات | O7: رديف | Q7: 010101 | R7: =IF(IF(O7="رديف",VLOOKUP(L7,Kod,2,0),0)=0,R6,IF(O7="رديف",VLOOKUP(L7,Kod,2,0),0)) -> 1e-06
A8: =IF(M8<>"",Q8+(P8*R8),"") -> 10101 | C8: 0.0005 | D8: 1 | E8: 212.082 | G8: 1 | I8: 424164 | J8: 0.0005 | K8: دستگاه-ساعت | L8: گریدر به قدرت حدود180 اسب بخار باراننده | M8: 25010902 | O8: 1 | P8: =COUNTIF($S$1:S8,Q8+R8) -> 1 | Q8: 010101 | R8: 1e-06 | S8: =IF(M8<>"",Q8+R8,"") -> 10101
A9: =IF(M9<>"",Q9+(P9*R9),"") ->  | N9: 010102 | P9: =COUNTIF($S$1:S9,Q9+R9) -> 0 | Q9: 010102 | R9: 1e-06 | S9: =IF(M9<>"",Q9+R9,"") -> 
L10: اصله | O10: واحـد : | P10: =COUNTIF($S$1:S10,Q10+R10) -> 0 | Q10: 010102 | R10: 1e-06
G11: ضريب | I11: بهاي واحد | J11: مقـدار | K11: واحــد | L11: نيروي انساني | O11: رديف | P11: =COUNTIF($S$1:S11,Q11+R11) -> 0 | Q11: 010102 | R11: 1e-08
A12: 10102 | C12: 0.105 | D12: 1 | E12: 5986.365 | G12: 1 | I12: 57013 | J12: 0.105 | K12: نفر- ساعت | L12: كارگر ساده | M12: 14010102 | O12: 1 | P12: =COUNTIF($S$1:S12,Q12+R12) -> 1 | Q12: 010102 | R12: 1e-08 | S12: 10102
A13: 10102 | C13: 0.0105 | D13: 1 | E13: 1041.978 | G13: 1 | I13: 99236 | J13: 0.0105 | K13: نفر ساعت | L13: نجار در و پنجره ساز درجه یک | M13: 14120101 | O13: 2 | P13: =COUNTIF($S$1:S13,Q13+R13) -> 2 | Q13: 010102 | R13: 1e-08 | S13: 10102
A14: 10102 | C14: 0.053 | D14: 1 | E14: 3195.741 | G14: 1 | I14: 60297 | J14: 0.053 | K14: نفر - ساعت | L14: کمک نجار | M14: 14120401 | O14: 3 | P14: =COUNTIF($S$1:S14,Q14+R14) -> 3 | Q14: 010102 | R14: 1e-08 | S14: 10102
G15: ضريب | I15: بهاي واحد | J15: مقـدار | K15: واحــد | L15: ماشين آلات | O15: رديف | P15: =COUNTIF($S$1:S15,Q15+R15) -> 0 | Q15: 010102 | R15: 1e-06
A16: 10102 | C16: 0.053 | D16: 1 | E16: 92.008 | G16: 1 | I16: 1736 | J16: 0.053 | K16: دستگاه ساعت | L16: اره بنزینی متحرک چوب | M16: 28060203 | O16: 1 | P16: =COUNTIF($S$1:S16,Q16+R16) -> 1 | Q16: 010102 | R16: 1e-06 | S16: 10102
N17: 010111 | P17: =COUNTIF($S$1:S17,Q17+R17) -> 0 | Q17: 010111 | R17: 1e-06
L18: اصله | O18: واحـد : | P18: =COUNTIF($S$1:S18,Q18+R18) -> 0 | Q18: 010111 | R18: 1e-06
G19: ضريب | I19: بهاي واحد | J19: مقـدار | K19: واحــد | L19: نيروي انساني | O19: رديف | P19: =COUNTIF($S$1:S19,Q19+R19) -> 0 | Q19: 010111 | R19: 1e-08
A20: 10111 | C20: 0.052 | D20: 1 | E20: 3644.784 | G20: 1 | I20: 70092 | J20: 0.052 | K20: نفر ساعت | L20: متصدی غلطکهای دستی | M20: 13040901 | O20: 1 | P20: =COUNTIF($S$1:S20,Q20+R20) -> 1 | Q20: 010111 | R20: 1e-08 | S20: 10111
A21: 10111 | C21: 0.00052 | D21: 1 | E21: 34.359 | G21: 1 | I21: 66075 | J21: 0.00052 | K21: نفر ساعت | L21: سر کارگر | M21: 14010101 | O21: 2 | P21: =COUNTIF($S$1:S21,Q21+R21) -> 2 | Q21: 010111 | R21: 1e-08 | S21: 10111
A22: 10111 | C22: 0.0052 | D22: 1 | E22: 296.4676 | G22: 1 | I22: 57013 | J22: 0.0052 | K22: نفر- ساعت | L22: كارگر ساده | M22: 14010102 | O22: 3 | P22: =COUNTIF($S$1:S22,Q22+R22) -> 3 | Q22: 010111 | R22: 1e-08 | S22: 10111
G23: ضريب | I23: بهاي واحد | J23: مقـدار | K23: واحــد | L23: ماشين آلات | O23: رديف | P23: =COUNTIF($S$1:S23,Q23+R23) -> 0 | Q23: 010111 | R23: 1e-06
A24: 10111 | C24: 0.0048 | D24: 1 | E24: 1664.064 | G24: 1 | I24: 346680 | J24: 0.0048 | K24: دستگاه-ساعت | L24: کامیون کمپرسی به ظرفیت حدود 10 تن با راننده | M24: 23020204 | O24: 1 | P24: =COUNTIF($S$1:S24,Q24+R24) -> 1 | Q24: 010111 | R24: 1e-06 | S24: 10111
A25: 10111 | C25: 0.0011 | D25: 1 | E25: 366.0943 | G25: 1 | I25: 332813 | J25: 0.0011 | K25: ساعت | L25: بولدوزر به قدرت حدود 150 اسب بخار با راننده | M25: 25010602 | O25: 2 | P25: =COUNTIF($S$1:S25,Q25+R25) -> 2 | Q25: 010111 | R25: 1e-06 | S25: 10111
A26: 10111 | C26: 0.00054 | D26: 1 | E26: 262.09008 | G26: 1 | I26: 485352 | J26: 0.00054 | K26: دستگاه-ساعت | L26: بولدوزر به قدرت حدود 200 اسب بخار باراننده | M26: 25010603 | O26: 3 | P26: =COUNTIF($S$1:S26,Q26+R26) -> 3 | Q26: 010111 | R26: 1e-06 | S26: 10111
A27: 10111 | C27: 0.0017 | D27: 1 | E27: 618.0554 | G27: 1 | I27: 363562 | J27: 0.0017 | K27: دستگاه-ساعت | L27: لودرچرخ لاستيکي به قدرت حدود150 اسب بخار باراننده | M27: 25010802 | O27: 4 | P27: =COUNTIF($S$1:S27,Q27+R27) -> 4 | Q27: =IF(N27>0,N27,Q26) -> 010111 | R27: 1e-06 | S27: =IF(M27<>"",Q27+R27,"") -> 10111
A28: 10111 | C28: 0.052 | D28: 1 | E28: 1040.156 | G28: 1 | I28: 20003 | J28: 0.052 | K28: دستگاه-ساعت | L28: کمپکتورصفحه ای | M28: 25030101 | O28: 5 | P28: =COUNTIF($S$1:S28,Q28+R28) -> 5 | Q28: 010111 | R28: 1e-06 | S28: 10111
A29: 10111.00001 | C29: 0.0002 | D29: 1 | E29: 33 | G29: 1 | I29: 165000 | J29: 0.0002 | K29: عدد | L29: بیل | M29: 28070101 | O29: 6 | P29: =COUNTIF($S$1:S29,Q29+R29) -> 6 | Q29: 010111 | R29: 1e-06 | S29: 10111
G30: ضريب | I30: بهاي واحد | J30: مقـدار | K30: واحــد | L30: مصالح | O30: رديف | P30: =COUNTIF($S$1:S30,Q30+R30) -> 0 | Q30: 010111 | R30: 0.0001
A31: 10111.0001 | C31: 0.007 | D31: 1 | E31: 75.6 | G31: 1 | I31: 10800 | J31: 0.007 | K31: مترمكعب | L31: آب لوله کشی شهری | M31: 31010101 | O31: 1 | P31: =COUNTIF($S$1:S31,Q31+R31) -> 1 | Q31: 010111 | R31: 0.0001 | S31: 10111.0001
A32: 10111.0002 | C32: 0.003 | D32: 1 | E32: 28.413 | G32: 1 | I32: 9471 | J32: 0.003 | K32: مترمكعب | L32: آب چاه و قنات | M32: 31010301 | O32: 2 | P32: =COUNTIF($S$1:S32,Q32+R32) -> 2 | Q32: 010111 | R32: 0.0001 | S32: 10111.0001
G33: ضريب | I33: بهاي واحد | J33: مقـدار | K33: واحــد | L33: حمل مصالح | O33: رديف | P33: =COUNTIF($S$1:S33,Q33+R33) -> 0 | Q33: 010111 | R33: 0.01
A34: 10111.01 | C34: 0.003 | D34: 1 | E34: 99.639 | G34: 1 | I34: 33213 | J34: 0.003 | K34: مترمكعب | L34: حمل آب چاه قنات و رودخانه | M34: 41010101 | O34: 1 | P34: =COUNTIF($S$1:S34,Q34+R34) -> 1 | Q34: 010111 | R34: 0.01 | S34: 10111.01
N35: 010112 | P35: =COUNTIF($S$1:S35,Q35+R35) -> 0 | Q35: 010112 | R35: 0.01
L36: اصله | O36: واحـد : | P36: =COUNTIF($S$1:S36,Q36+R36) -> 0 | Q36: 010112 | R36: 0.01
G37: ضريب | I37: بهاي واحد | J37: مقـدار | K37: واحــد | L37: نيروي انساني | O37: رديف | P37: =COUNTIF($S$1:S37,Q37+R37) -> 0 | Q37: 010112 | R37: 1e-08
A38: 10112 | C38: 0.2579 | D38: 1 | E38: 18076.7268 | G38: 1 | I38: 70092 | J38: 0.2579 | K38: نفر ساعت | L38: متصدی غلطکهای دستی | M38: 13040901 | O38: 1 | P38: =COUNTIF($S$1:S38,Q38+R38) -> 1 | Q38: 010112 | R38: 1e-08 | S38: 10112
A39: 10112 | C39: 0.0026 | D39: 1 | E39: 171.795 | G39: 1 | I39: 66075 | J39: 0.0026 | K39: نفر ساعت | L39: سر کارگر | M39: 14010101 | O39: 2 | P39: =COUNTIF($S$1:S39,Q39+R39) -> 2 | Q39: 010112 | R39: 1e-08 | S39: 10112
A40: 10112 | C40: 0.026 | D40: 1 | E40: 1482.338 | G40: 1 | I40: 57013 | J40: 0.026 | K40: نفر- ساعت | L40: كارگر ساده | M40: 14010102 | O40: 3 | P40: =COUNTIF($S$1:S40,Q40+R40) -> 3 | Q40: 010112 | R40: 1e-08 | S40: 10112
G41: ضريب | I41: بهاي واحد | J41: مقـدار | K41: واحــد | L41: ماشين آلات | O41: رديف | P41: =COUNTIF($S$1:S41,Q41+R41) -> 0 | Q41: 010112 | R41: 1e-06
A42: 10112 | C42: 0.024 | D42: 1 | E42: 8320.32 | G42: 1 | I42: 346680 | J42: 0.024 | K42: دستگاه-ساعت | L42: کامیون کمپرسی به ظرفیت حدود 10 تن با راننده | M42: 23020204 | O42: 1 | P42: =COUNTIF($S$1:S42,Q42+R42) -> 1 | Q42: 010112 | R42: 1e-06 | S42: 10112
A43: 10112 | C43: 0.0053 | D43: 1 | E43: 1763.9089 | G43: 1 | I43: 332813 | J43: 0.0053 | K43: ساعت | L43: بولدوزر به قدرت حدود 150 اسب بخار با راننده | M43: 25010602 | O43: 2 | P43: =COUNTIF($S$1:S43,Q43+R43) -> 2 | Q43: 010112 | R43: 1e-06 | S43: 10112
A44: 10112 | C44: 0.0027 | D44: 1 | E44: 1310.4504 | G44: 1 | I44: 485352 | J44: 0.0027 | K44: دستگاه-ساعت | L44: بولدوزر به قدرت حدود 200 اسب بخار باراننده | M44: 25010603 | O44: 3 | P44: =COUNTIF($S$1:S44,Q44+R44) -> 3 | Q44: 010112 | R44: 1e-06 | S44: 10112
A45: 10112 | C45: 0.0084 | D45: 1 | E45: 3053.9208 | G45: 1 | I45: 363562 | J45: 0.0084 | K45: دستگاه-ساعت | L45: لودرچرخ لاستيکي به قدرت حدود150 اسب بخار باراننده | M45: 25010802 | O45: 4 | P45: =COUNTIF($S$1:S45,Q45+R45) -> 4 | Q45: 010112 | R45: 1e-06 | S45: 10112
A46: 10112 | C46: 0.2579 | D46: 1 | E46: 5158.7737 | G46: 1 | I46: 20003 | J46: 0.2579 | K46: دستگاه-ساعت | L46: کمپکتورصفحه ای | M46: 25030101 | O46: 5 | P46: =COUNTIF($S$1:S46,Q46+R46) -> 5 | Q46: 010112 | R46: 1e-06 | S46: 10112
A47: 10112.00001 | C47: 0.00085 | D47: 1 | E47: 140.25 | G47: 1 | I47: 165000 | J47: 0.00085 | K47: عدد | L47: بیل | M47: 28070101 | O47: 6 | P47: =COUNTIF($S$1:S47,Q47+R47) -> 6 | Q47: 010112 | R47: 1e-06 | S47: 10112
G48: ضريب | I48: بهاي واحد | J48: مقـدار | K48: واحــد | L48: مصالح | O48: رديف | P48: =COUNTIF($S$1:S48,Q48+R48) -> 0 | Q48: 010112 | R48: 0.0001
A49: 10112.0001 | C49: 0.035 | D49: 1 | E49: 378 | G49: 1 | I49: 10800 | J49: 0.035 | K49: مترمكعب | L49: آب لوله کشی شهری | M49: 31010101 | O49: 1 | P49: =COUNTIF($S$1:S49,Q49+R49) -> 1 | Q49: 010112 | R49: 0.0001 | S49: 10112.0001
A50: 10112.0002 | C50: 0.015 | D50: 1 | E50: 142.065 | G50: 1 | I50: 9471 | J50: 0.015 | K50: مترمكعب | L50: آب چاه و قنات | M50: 31010301 | O50: 2 | P50: =COUNTIF($S$1:S50,Q50+R50) -> 2 | Q50: 010112 | R50: 0.0001 | S50: 10112.0001
G51: ضريب | I51: بهاي واحد | J51: مقـدار | K51: واحــد | L51: حمل مصالح | O51: رديف | P51: =COUNTIF($S$1:S51,Q51+R51) -> 0 | Q51: 010112 | R51: 0.01
A52: 10112.01 | C52: 0.015 | D52: 1 | E52: 498.195 | G52: 1 | I52: 33213 | J52: 0.015 | K52: مترمكعب | L52: حمل آب چاه قنات و رودخانه | M52: 41010101 | O52: 1 | P52: =COUNTIF($S$1:S52,Q52+R52) -> 1 | Q52: 010112 | R52: 0.01 | S52: 10112.01
N53: 010113 | P53: =COUNTIF($S$1:S53,Q53+R53) -> 0 | Q53: 010113 | R53: 0.01
L54: اصله | O54: واحـد : | P54: =COUNTIF($S$1:S54,Q54+R54) -> 0 | Q54: 010113 | R54: 0.01
G55: ضريب | I55: بهاي واحد | J55: مقـدار | K55: واحــد | L55: نيروي انساني | O55: رديف | P55: =COUNTIF($S$1:S55,Q55+R55) -> 0 | Q55: 010113 | R55: 1e-08
A56: 10113 | C56: 0.851 | D56: 1 | E56: 59648.292 | G56: 1 | I56: 70092 | J56: 0.851 | K56: نفر ساعت | L56: متصدی غلطکهای دستی | M56: 13040901 | O56: 1 | P56: =COUNTIF($S$1:S56,Q56+R56) -> 1 | Q56: 010113 | R56: 1e-08 | S56: 10113
A57: 10113 | C57: 0.0086 | D57: 1 | E57: 568.245 | G57: 1 | I57: 66075 | J57: 0.0086 | K57: نفر ساعت | L57: سر کارگر | M57: 14010101 | O57: 2 | P57: =COUNTIF($S$1:S57,Q57+R57) -> 2 | Q57: 010113 | R57: 1e-08 | S57: 10113
A58: 10113 | C58: 0.0858 | D58: 1 | E58: 4891.7154 | G58: 1 | I58: 57013 | J58: 0.0858 | K58: نفر- ساعت | L58: كارگر ساده | M58: 14010102 | O58: 3 | P58: =COUNTIF($S$1:S58,Q58+R58) -> 3 | Q58: 010113 | R58: 1e-08 | S58: 10113
G59: ضريب | I59: بهاي واحد | J59: مقـدار | K59: واحــد | L59: ماشين آلات | O59: رديف | P59: =COUNTIF($S$1:S59,Q59+R59) -> 0 | Q59: 010113 | R59: 1e-06
A60: 10113 | C60: 0.0792 | D60: 1 | E60: 27457.056 | G60: 1 | I60: 346680 | J60: 0.0792 | K60: دستگاه-ساعت | L60: کامیون کمپرسی به ظرفیت حدود 10 تن با راننده | M60: 23020204 | O60: 1 | P60: =COUNTIF($S$1:S60,Q60+R60) -> 1 | Q60: 010113 | R60: 1e-06 | S60: 10113
A61: 10113 | C61: 0.0175 | D61: 1 | E61: 5824.2275 | G61: 1 | I61: 332813 | J61: 0.0175 | K61: ساعت | L61: بولدوزر به قدرت حدود 150 اسب بخار با راننده | M61: 25010602 | O61: 2 | P61: =COUNTIF($S$1:S61,Q61+R61) -> 2 | Q61: 010113 | R61: 1e-06 | S61: 10113
A62: 10113 | C62: 0.0089 | D62: 1 | E62: 4319.6328 | G62: 1 | I62: 485352 | J62: 0.0089 | K62: دستگاه-ساعت | L62: بولدوزر به قدرت حدود 200 اسب بخار باراننده | M62: 25010603 | O62: 3 | P62: =COUNTIF($S$1:S62,Q62+R62) -> 3 | Q62: 010113 | R62: 1e-06 | S62: 10113
A63: 10113 | C63: 0.028 | D63: 1 | E63: 10179.736 | G63: 1 | I63: 363562 | J63: 0.028 | K63: دستگاه-ساعت | L63: لودرچرخ لاستيکي به قدرت حدود150 اسب بخار باراننده | M63: 25010802 | O63: 4 | P63: =COUNTIF($S$1:S63,Q63+R63) -> 4 | Q63: 010113 | R63: 1e-06 | S63: 10113
A64: 10113 | C64: 0.851 | D64: 1 | E64: 17022.553 | G64: 1 | I64: 20003 | J64: 0.851 | K64: دستگاه-ساعت | L64: کمپکتورصفحه ای | M64: 25030101 | O64: 5 | P64: =COUNTIF($S$1:S64,Q64+R64) -> 5 | Q64: 010113 | R64: 1e-06 | S64: 10113
A65: 10113.00001 | C65: 0.0028 | D65: 1 | E65: 462 | G65: 1 | I65: 165000 | J65: 0.0028 | K65: عدد | L65: بیل | M65: 28070101 | O65: 6 | P65: =COUNTIF($S$1:S65,Q65+R65) -> 6 | Q65: 010113 | R65: 1e-06 | S65: 10113
G66: ضريب | I66: بهاي واحد | J66: مقـدار | K66: واحــد | L66: مصالح | O66: رديف | P66: =COUNTIF($S$1:S66,Q66+R66) -> 0 | Q66: 010113 | R66: 0.0001
A67: 10113.0001 | C67: 0.11 | D67: 1 | E67: 1188 | G67: 1 | I67: 10800 | J67: 0.11 | K67: مترمكعب | L67: آب لوله کشی شهری | M67: 31010101 | O67: 1 | P67: =COUNTIF($S$1:S67,Q67+R67) -> 1 | Q67: 010113 | R67: 0.0001 | S67: 10113.0001
A68: 10113.0002 | C68: 0.055 | D68: 1 | E68: 520.905 | G68: 1 | I68: 9471 | J68: 0.055 | K68: مترمكعب | L68: آب چاه و قنات | M68: 31010301 | O68: 2 | P68: =COUNTIF($S$1:S68,Q68+R68) -> 2 | Q68: 010113 | R68: 0.0001 | S68: 10113.0001
G69: ضريب | I69: بهاي واحد | J69: مقـدار | K69: واحــد | L69: حمل مصالح | O69: رديف | P69: =COUNTIF($S$1:S69,Q69+R69) -> 0 | Q69: 010113 | R69: 0.01
A70: 10113.01 | C70: 0.055 | D70: 1 | E70: 1826.715 | G70: 1 | I70: 33213 | J70: 0.055 | K70: مترمكعب | L70: حمل آب چاه قنات و رودخانه | M70: 41010101 | O70: 1 | P70: =COUNTIF($S$1:S70,Q70+R70) -> 1 | Q70: 010113 | R70: 0.01 | S70: 10113.01
N71: 010114 | P71: =COUNTIF($S$1:S71,Q71+R71) -> 0 | Q71: 010114 | R71: =IF(IF(O71="رديف",VLOOKUP(L71,Kod,2,0),0)=0,R70,IF(O71="رديف",VLOOKUP(L71,Kod,2,0),0)) -> 0.01
L72: اصله | O72: واحـد : | P72: =COUNTIF($S$1:S72,Q72+R72) -> 0 | Q72: 010114 | R72: 0.01
A73: =IF(M73<>"",Q73+(P73*R73),"") ->  | G73: ضريب | I73: بهاي واحد | J73: مقـدار | K73: واحــد | L73: نيروي انساني | O73: رديف | P73: =COUNTIF($S$1:S73,Q73+R73) -> 0 | Q73: 010114 | R73: 1e-08
A74: 10114 | C74: 1.362 | D74: 1 | E74: 95465.304 | G74: 1 | I74: 70092 | J74: 1.362 | K74: نفر ساعت | L74: متصدی غلطکهای دستی | M74: 13040901 | O74: 1 | P74: =COUNTIF($S$1:S74,Q74+R74) -> 1 | Q74: 010114 | R74: 1e-08 | S74: 10114
A75: 10114 | C75: 0.0138 | D75: 1 | E75: 911.835 | G75: 1 | I75: 66075 | J75: 0.0138 | K75: نفر ساعت | L75: سر کارگر | M75: 14010101 | O75: 2 | P75: =COUNTIF($S$1:S75,Q75+R75) -> 2 | Q75: 010114 | R75: 1e-08 | S75: 10114
A76: 10114 | C76: 0.1373 | D76: 1 | E76: 7827.8849 | G76: 1 | I76: 57013 | J76: 0.1373 | K76: نفر- ساعت | L76: كارگر ساده | M76: 14010102 | O76: 3 | P76: =COUNTIF($S$1:S76,Q76+R76) -> 3 | Q76: 010114 | R76: 1e-08 | S76: 10114
G77: ضريب | I77: بهاي واحد | J77: مقـدار | K77: واحــد | L77: ماشين آلات | O77: رديف | P77: =COUNTIF($S$1:S77,Q77+R77) -> 0 | Q77: 010114 | R77: 1e-06
A78: 10114 | C78: 0.1267 | D78: 1 | E78: 43924.356 | G78: 1 | I78: 346680 | J78: 0.1267 | K78: دستگاه-ساعت | L78: کامیون کمپرسی به ظرفیت حدود 10 تن با راننده | M78: 23020204 | O78: 1 | P78: =COUNTIF($S$1:S78,Q78+R78) -> 1 | Q78: 010114 | R78: 1e-06 | S78: 10114
A79: 10114 | C79: 0.028 | D79: 1 | E79: 9318.764 | G79: 1 | I79: 332813 | J79: 0.028 | K79: ساعت | L79: بولدوزر به قدرت حدود 150 اسب بخار با راننده | M79: 25010602 | O79: 2 | P79: =COUNTIF($S$1:S79,Q79+R79) -> 2 | Q79: 010114 | R79: 1e-06 | S79: 10114
A80: 10114 | C80: 0.0142 | D80: 1 | E80: 6891.9984 | G80: 1 | I80: 485352 | J80: 0.0142 | K80: دستگاه-ساعت | L80: بولدوزر به قدرت حدود 200 اسب بخار باراننده | M80: 25010603 | O80: 3 | P80: =COUNTIF($S$1:S80,Q80+R80) -> 3 | Q80: 010114 | R80: 1e-06 | S80: 10114
A81: 10114 | C81: 0.0448 | D81: 1 | E81: 16287.5776 | G81: 1 | I81: 363562 | J81: 0.0448 | K81: دستگاه-ساعت | L81: لودرچرخ لاستيکي به قدرت حدود150 اسب بخار باراننده | M81: 25010802 | O81: 4 | P81: =COUNTIF($S$1:S81,Q81+R81) -> 4 | Q81: 010114 | R81: 1e-06 | S81: 10114
A82: 10114 | C82: 1.362 | D82: 1 | E82: 27244.086 | G82: 1 | I82: 20003 | J82: 1.362 | K82: دستگاه-ساعت | L82: کمپکتورصفحه ای | M82: 25030101 | O82: 5 | P82: =COUNTIF($S$1:S82,Q82+R82) -> 5 | Q82: 010114 | R82: 1e-06 | S82: 10114
A83: 10114.00001 | C83: 0.0045 | D83: 1 | E83: 742.5 | G83: 1 | I83: 165000 | J83: 0.0045 | K83: عدد | L83: بیل | M83: 28070101 | O83: 6 | P83: =COUNTIF($S$1:S83,Q83+R83) -> 6 | Q83: 010114 | R83: 1e-06 | S83: 10114
G84: ضريب | I84: بهاي واحد | J84: مقـدار | K84: واحــد | L84: مصالح | O84: رديف | P84: =COUNTIF($S$1:S84,Q84+R84) -> 0 | Q84: 010114 | R84: 0.0001
A85: 10114.0001 | C85: 0.176 | D85: 1 | E85: 1900.8 | G85: 1 | I85: 10800 | J85: 0.176 | K85: مترمكعب | L85: آب لوله کشی شهری | M85: 31010101 | O85: 1 | P85: =COUNTIF($S$1:S85,Q85+R85) -> 1 | Q85: 010114 | R85: 0.0001 | S85: 10114.0001
A86: 10114.0002 | C86: 0.088 | D86: 1 | E86: 833.448 | G86: 1 | I86: 9471 | J86: 0.088 | K86: مترمكعب | L86: آب چاه و قنات | M86: 31010301 | O86: 2 | P86: =COUNTIF($S$1:S86,Q86+R86) -> 2 | Q86: 010114 | R86: 0.0001 | S86: 10114.0001
G87: ضريب | I87: بهاي واحد | J87: مقـدار | K87: واحــد | L87: حمل مصالح | O87: رديف | P87: =COUNTIF($S$1:S87,Q87+R87) -> 0 | Q87: 010114 | R87: 0.01
A88: 10114.01 | C88: 0.088 | D88: 1 | E88: 2922.744 | G88: 1 | I88: 33213 | J88: 0.088 | K88: مترمكعب | L88: حمل آب چاه قنات و رودخانه | M88: 41010101 | O88: 1 | P88: =COUNTIF($S$1:S88,Q88+R88) -> 1 | Q88: 010114 | R88: 0.01 | S88: 10114.01
N89: 010115 | P89: =COUNTIF($S$1:S89,Q89+R89) -> 0 | Q89: 010115 | R89: 0.01
L90: اصله | O90: واحـد : | P90: =COUNTIF($S$1:S90,Q90+R90) -> 0 | Q90: 010115 | R90: 0.01
G91: ضريب | I91: بهاي واحد | J91: مقـدار | K91: واحــد | L91: نيروي انساني | O91: رديف | P91: =COUNTIF($S$1:S91,Q91+R91) -> 0 | Q91: =IF(N91>0,N91,Q90) -> 010115 | R91: 1e-08 | S91: =IF(M91<>"",Q91+R91,"") -> 
A92: 10115 | C92: 0.13 | D92: 1 | E92: 9111.96 | G92: 1 | I92: 70092 | J92: 0.13 | K92: نفر ساعت | L92: متصدی غلطکهای دستی | M92: 13040901 | O92: 1 | P92: =COUNTIF($S$1:S92,Q92+R92) -> 1 | Q92: 010115 | R92: 1e-08 | S92: 10115
A93: 10115 | C93: 0.0013 | D93: 1 | E93: 85.8975 | G93: 1 | I93: 66075 | J93: 0.0013 | K93: نفر ساعت | L93: سر کارگر | M93: 14010101 | O93: 2 | P93: =COUNTIF($S$1:S93,Q93+R93) -> 2 | Q93: 010115 | R93: 1e-08 | S93: 10115
A94: 10115 | C94: 0.013 | D94: 1 | E94: 741.169 | G94: 1 | I94: 57013 | J94: 0.013 | K94: نفر- ساعت | L94: كارگر ساده | M94: 14010102 | O94: 3 | P94: =COUNTIF($S$1:S94,Q94+R94) -> 3 | Q94: 010115 | R94: 1e-08 | S94: 10115
G95: ضريب | I95: بهاي واحد | J95: مقـدار | K95: واحــد | L95: ماشين آلات | O95: رديف | P95: =COUNTIF($S$1:S95,Q95+R95) -> 0 | Q95: 010115 | R95: 1e-06
A96: 10115 | C96: 0.012 | D96: 1 | E96: 4160.16 | G96: 1 | I96: 346680 | J96: 0.012 | K96: دستگاه-ساعت | L96: کامیون کمپرسی به ظرفیت حدود 10 تن با راننده | M96: 23020204 | O96: 1 | P96: =COUNTIF($S$1:S96,Q96+R96) -> 1 | Q96: 010115 | R96: 1e-06 | S96: 10115
A97: 10115 | C97: 0.0026 | D97: 1 | E97: 865.3138 | G97: 1 | I97: 332813 | J97: 0.0026 | K97: ساعت | L97: بولدوزر به قدرت حدود 150 اسب بخار با راننده | M97: 25010602 | O97: 2 | P97: =COUNTIF($S$1:S97,Q97+R97) -> 2 | Q97: 010115 | R97: 1e-06 | S97: 10115
A98: 10115 | C98: 0.0014 | D98: 1 | E98: 679.4928 | G98: 1 | I98: 485352 | J98: 0.0014 | K98: دستگاه-ساعت | L98: بولدوزر به قدرت حدود 200 اسب بخار باراننده | M98: 25010603 | O98: 3 | P98: =COUNTIF($S$1:S98,Q98+R98) -> 3 | Q98: 010115 | R98: 1e-06 | S98: 10115
A99: 10115 | C99: 0.0042 | D99: 1 | E99: 1526.9604 | G99: 1 | I99: 363562 | J99: 0.0042 | K99: دستگاه-ساعت | L99: لودرچرخ لاستيکي به قدرت حدود150 اسب بخار باراننده | M99: 25010802 | O99: 4 | P99: =COUNTIF($S$1:S99,Q99+R99) -> 4 | Q99: 010115 | R99: 1e-06 | S99: 10115
A100: 10115 | C100: 0.13 | D100: 1 | E100: 2600.39 | G100: 1 | I100: 20003 | J100: 0.13 | K100: دستگاه-ساعت | L100: کمپکتورصفحه ای | M100: 25030101 | O100: 5 | P100: =COUNTIF($S$1:S100,Q100+R100) -> 5 | Q100: 010115 | R100: 1e-06 | S100: 10115
A101: 10115.00001 | C101: 0.0042 | D101: 1 | E101: 693 | G101: 1 | I101: 165000 | J101: 0.0042 | K101: عدد | L101: بیل | M101: 28070101 | O101: 6 | P101: =COUNTIF($S$1:S101,Q101+R101) -> 6 | Q101: 010115 | R101: 1e-06 | S101: 10115
G102: ضريب | I102: بهاي واحد | J102: مقـدار | K102: واحــد | L102: مصالح | O102: رديف | P102: =COUNTIF($S$1:S102,Q102+R102) -> 0 | Q102: 010115 | R102: 0.0001
A103: 10115.0001 | C103: 0.017 | D103: 1 | E103: 183.6 | G103: 1 | I103: 10800 | J103: 0.017 | K103: مترمكعب | L103: آب لوله کشی شهری | M103: 31010101 | O103: 1 | P103: =COUNTIF($S$1:S103,Q103+R103) -> 1 | Q103: 010115 | R103: 0.0001 | S103: 10115.0001
A104: 10115.0002 | C104: 0.08 | D104: 1 | E104: 757.68 | G104: 1 | I104: 9471 | J104: 0.08 | K104: مترمكعب | L104: آب چاه و قنات | M104: 31010301 | O104: 2 | P104: =COUNTIF($S$1:S104,Q104+R104) -> 2 | Q104: 010115 | R104: 0.0001 | S104: 10115.0001
G105: ضريب | I105: بهاي واحد | J105: مقـدار | K105: واحــد | L105: حمل مصالح | O105: رديف | P105: =COUNTIF($S$1:S105,Q105+R105) -> 0 | Q105: 010115 | R105: 0.01
A106: 10115.01 | C106: 0.08 | D106: 1 | E106: 2657.04 | G106: 1 | I106: 33213 | J106: 0.08 | K106: مترمكعب | L106: حمل آب چاه قنات و رودخانه | M106: 41010101 | O106: 1 | P106: =COUNTIF($S$1:S106,Q106+R106) -> 1 | Q106: 010115 | R106: 0.01 | S106: 10115.01
N107: 010201 | P107: =COUNTIF($S$1:S107,Q107+R107) -> 0 | Q107: 010201 | R107: 0.01
L108: متر مربع | O108: واحـد : | P108: =COUNTIF($S$1:S108,Q108+R108) -> 0 | Q108: 010201 | R108: 0.01
G109: ضريب | I109: بهاي واحد | J109: مقـدار | K109: واحــد | L109: نيروي انساني | O109: رديف | P109: =COUNTIF($S$1:S109,Q109+R109) -> 0 | Q109: 010201 | R109: 1e-08
A110: 10201 | C110: 4.8 | D110: 1 | E110: 273662.4 | G110: 1 | I110: 57013 | J110: 4.8 | K110: نفر- ساعت | L110: كارگر ساده | M110: 14010102 | O110: 1 | P110: =COUNTIF($S$1:S110,Q110+R110) -> 1 | Q110: 010201 | R110: 1e-08 | S110: 10201
G111: ضريب | I111: بهاي واحد | J111: مقـدار | K111: واحــد | L111: ماشين آلات | O111: رديف | P111: =COUNTIF($S$1:S111,Q111+R111) -> 0 | Q111: 010201 | R111: 1e-06
A112: 10201 | C112: 0.0416666666 | D112: 1 | E112: 12358.33331 | G112: 1 | I112: 296600 | J112: 0.0416666666 | K112: دستگاه-ساعت | L112: کامیون کمپرسی به ظرفیت حدود5 تن باراننده | M112: 23020202 | O112: 1 | P112: =COUNTIF($S$1:S112,Q112+R112) -> 1 | Q112: 010201 | R112: 1e-06 | S112: 10201
A113: 10201 | C113: 0.0181818181 | D113: 1 | E113: 8813.59996 | G113: 1 | I113: 484748 | J113: 0.0181818181 | K113: دستگاه-ساعت | L113: لودر چرخ لاستيکي به قدرت حدود200 اسب بخار باراننده | M113: 25010803 | O113: 2 | P113: =COUNTIF($S$1:S113,Q113+R113) -> 2 | Q113: 010201 | R113: 1e-06 | S113: 10201
N114: 010202 | P114: =COUNTIF($S$1:S114,Q114+R114) -> 0 | Q114: 010202 | R114: 1e-06
L115: متر مربع | O115: واحـد : | P115: =COUNTIF($S$1:S115,Q115+R115) -> 0 | Q115: 010202 | R115: 1e-06
G116: ضريب | I116: بهاي واحد | J116: مقـدار | K116: واحــد | L116: نيروي انساني | O116: رديف | P116: =COUNTIF($S$1:S116,Q116+R116) -> 0 | Q116: 010202 | R116: 1e-08
A117: 10202 | C117: 5.5 | D117: 1 | E117: 313571.5 | G117: 1 | I117: 57013 | J117: 5.5 | K117: نفر- ساعت | L117: كارگر ساده | M117: 14010102 | O117: 1 | P117: =COUNTIF($S$1:S117,Q117+R117) -> 1 | Q117: 010202 | R117: 1e-08 | S117: 10202
G118: ضريب | I118: بهاي واحد | J118: مقـدار | K118: واحــد | L118: ماشين آلات | O118: رديف | P118: =COUNTIF($S$1:S118,Q118+R118) -> 0 | Q118: 010202 | R118: 1e-06
A119: 10202 | C119: 0.0416666666 | D119: 1 | E119: 12358.33331 | G119: 1 | I119: 296600 | J119: 0.0416666666 | K119: دستگاه-ساعت | L119: کامیون کمپرسی به ظرفیت حدود5 تن باراننده | M119: 23020202 | O119: 1 | P119: =COUNTIF($S$1:S119,Q119+R119) -> 1 | Q119: 010202 | R119: 1e-06 | S119: 10202
A120: 10202 | C120: 0.0181818181 | D120: 1 | E120: 8813.59996 | G120: 1 | I120: 484748 | J120: 0.0181818181 | K120: دستگاه-ساعت | L120: لودر چرخ لاستيکي به قدرت حدود200 اسب بخار باراننده | M120: 25010803 | O120: 2 | P120: =COUNTIF($S$1:S120,Q120+R120) -> 2 | Q120: 010202 | R120: 1e-06 | S120: 10202
N121: 010301 | P121: =COUNTIF($S$1:S121,Q121+R121) -> 0 | Q121: 010301 | R121: 1e-06
L122: مترمكعب | O122: واحـد : | P122: =COUNTIF($S$1:S122,Q122+R122) -> 0 | Q122: 010301 | R122: 1e-06
G123: ضريب | I123: بهاي واحد | J123: مقـدار | K123: واحــد | L123: نيروي انساني | O123: رديف | P123: =COUNTIF($S$1:S123,Q123+R123) -> 0 | Q123: 010301 | R123: 1e-08
A124: 10301 | C124: 1.25 | D124: 1 | E124: 71266.25 | G124: 0.625 | I124: 57013 | J124: 2 | K124: نفر- ساعت | L124: كارگر ساده | M124: 14010102 | O124: 1 | P124: =COUNTIF($S$1:S124,Q124+R124) -> 1 | Q124: 010301 | R124: 1e-08 | S124: 10301
G125: ضريب | I125: بهاي واحد | J125: مقـدار | K125: واحــد | L125: ماشين آلات | O125: رديف | P125: =COUNTIF($S$1:S125,Q125+R125) -> 0 | Q125: 010301 | R125: 1e-06
A126: 10301 | C126: 0.0416666666 | D126: 1 | E126: 12358.33331 | G126: 1 | I126: 296600 | J126: 0.0416666666 | K126: دستگاه-ساعت | L126: کامیون کمپرسی به ظرفیت حدود5 تن باراننده | M126: 23020202 | O126: 1 | P126: =COUNTIF($S$1:S126,Q126+R126) -> 1 | Q126: 010301 | R126: 1e-06 | S126: 10301
A127: 10301 | C127: 0.0181818181 | D127: 1 | E127: 8813.59996 | G127: 1 | I127: 484748 | J127: 0.0181818181 | K127: دستگاه-ساعت | L127: لودر چرخ لاستيکي به قدرت حدود200 اسب بخار باراننده | M127: 25010803 | O127: 2 | P127: =COUNTIF($S$1:S127,Q127+R127) -> 2 | Q127: 010301 | R127: 1e-06 | S127: 10301
N128: 010302 | P128: =COUNTIF($S$1:S128,Q128+R128) -> 0 | Q128: 010302 | R128: 1e-06
L129: مترمكعب | O129: واحـد : | P129: =COUNTIF($S$1:S129,Q129+R129) -> 0 | Q129: 010302 | R129: 1e-06
G130: ضريب | I130: بهاي واحد | J130: مقـدار | K130: واحــد | L130: نيروي انساني | O130: رديف | P130: =COUNTIF($S$1:S130,Q130+R130) -> 0 | Q130: 010302 | R130: 1e-08
A131: 10302 | C131: 2.4 | D131: 1 | E131: 136831.2 | G131: 1 | I131: 57013 | J131: 2.4 | K131: نفر- ساعت | L131: كارگر ساده | M131: 14010102 | O131: 1 | P131: =COUNTIF($S$1:S131,Q131+R131) -> 1 | Q131: 010302 | R131: 1e-08 | S131: 10302
G132: ضريب | I132: بهاي واحد | J132: مقـدار | K132: واحــد | L132: ماشين آلات | O132: رديف | P132: =COUNTIF($S$1:S132,Q132+R132) -> 0 | Q132: 010302 | R132: 1e-06
A133: 10302 | C133: 0.0416666666 | D133: 1 | E133: 12358.33331 | G133: 1 | I133: 296600 | J133: 0.0416666666 | K133: دستگاه-ساعت | L133: کامیون کمپرسی به ظرفیت حدود5 تن باراننده | M133: 23020202 | O133: 1 | P133: =COUNTIF($S$1:S133,Q133+R133) -> 1 | Q133: 010302 | R133: 1e-06 | S133: 10302
A134: 10302 | C134: 0.0181818181 | D134: 1 | E134: 8813.59996 | G134: 1 | I134: 484748 | J134: 0.0181818181 | K134: دستگاه-ساعت | L134: لودر چرخ لاستيکي به قدرت حدود200 اسب بخار باراننده | M134: 25010803 | O134: 2 | P134: =COUNTIF($S$1:S134,Q134+R134) -> 2 | Q134: 010302 | R134: 1e-06 | S134: 10302
N135: 010303 | P135: =COUNTIF($S$1:S135,Q135+R135) -> 0 | Q135: 010303 | R135: =IF(IF(O135="رديف",VLOOKUP(L135,Kod,2,0),0)=0,R134,IF(O135="رديف",VLOOKUP(L135,Kod,2,0),0)) -> 1e-06
L136: مترمكعب | O136: واحـد : | P136: =COUNTIF($S$1:S136,Q136+R136) -> 0 | Q136: 010303 | R136: 1e-06
A137: =IF(M137<>"",Q137+(P137*R137),"") ->  | G137: ضريب | I137: بهاي واحد | J137: مقـدار | K137: واحــد | L137: نيروي انساني | O137: رديف | P137: =COUNTIF($S$1:S137,Q137+R137) -> 0 | Q137: 010303 | R137: 1e-08
A138: 10303 | C138: 2 | D138: 1 | E138: 114026 | G138: 1 | I138: 57013 | J138: 2 | K138: نفر- ساعت | L138: كارگر ساده | M138: 14010102 | O138: 1 | P138: =COUNTIF($S$1:S138,Q138+R138) -> 1 | Q138: 010303 | R138: 1e-08 | S138: 10303
G139: ضريب | I139: بهاي واحد | J139: مقـدار | K139: واحــد | L139: ماشين آلات | O139: رديف | P139: =COUNTIF($S$1:S139,Q139+R139) -> 0 | Q139: 010303 | R139: 1e-06
A140: 10303 | C140: 0.0416666666 | D140: 1 | E140: 12358.33331 | G140: 1 | I140: 296600 | J140: 0.0416666666 | K140: دستگاه-ساعت | L140: کامیون کمپرسی به ظرفیت حدود5 تن باراننده | M140: 23020202 | O140: 1 | P140: =COUNTIF($S$1:S140,Q140+R140) -> 1 | Q140: 010303 | R140: 1e-06 | S140: 10303
A141: 10303 | C141: 0.0181818181 | D141: 1 | E141: 8813.59996 | G141: 1 | I141: 484748 | J141: 0.0181818181 | K141: دستگاه-ساعت | L141: لودر چرخ لاستيکي به قدرت حدود200 اسب بخار باراننده | M141: 25010803 | O141: 2 | P141: =COUNTIF($S$1:S141,Q141+R141) -> 2 | Q141: 010303 | R141: 1e-06 | S141: 10303
N142: 010304 | P142: =COUNTIF($S$1:S142,Q142+R142) -> 0 | Q142: 010304 | R142: 1e-06
L143: مترمكعب | O143: واحـد : | P143: =COUNTIF($S$1:S143,Q143+R143) -> 0 | Q143: 010304 | R143: 1e-06
G144: ضريب | I144: بهاي واحد | J144: مقـدار | K144: واحــد | L144: نيروي انساني | O144: رديف | P144: =COUNTIF($S$1:S144,Q144+R144) -> 0 | Q144: 010304 | R144: 1e-08
A145: 10304 | C145: 2.4 | D145: 1 | E145: 136831.2 | G145: 1 | I145: 57013 | J145: 2.4 | K145: نفر- ساعت | L145: كارگر ساده | M145: 14010102 | O145: 1 | P145: =COUNTIF($S$1:S145,Q145+R145) -> 1 | Q145: 010304 | R145: 1e-08 | S145: 10304
G146: ضريب | I146: بهاي واحد | J146: مقـدار | K146: واحــد | L146: ماشين آلات | O146: رديف | P146: =COUNTIF($S$1:S146,Q146+R146) -> 0 | Q146: 010304 | R146: 1e-06
A147: 10304 | C147: 0.0416666666 | D147: 1 | E147: 12358.33331 | G147: 1 | I147: 296600 | J147: 0.0416666666 | K147: دستگاه-ساعت | L147: کامیون کمپرسی به ظرفیت حدود5 تن باراننده | M147: 23020202 | O147: 1 | P147: =COUNTIF($S$1:S147,Q147+R147) -> 1 | Q147: 010304 | R147: 1e-06 | S147: 10304
A148: 10304 | C148: 0.0181818181 | D148: 1 | E148: 8813.59996 | G148: 1 | I148: 484748 | J148: 0.0181818181 | K148: دستگاه-ساعت | L148: لودر چرخ لاستيکي به قدرت حدود200 اسب بخار باراننده | M148: 25010803 | O148: 2 | P148: =COUNTIF($S$1:S148,Q148+R148) -> 2 | Q148: 010304 | R148: 1e-06 | S148: 10304
N149: 010305 | P149: =COUNTIF($S$1:S149,Q149+R149) -> 0 | Q149: 010305 | R149: 1e-06
L150: مترمكعب | O150: واحـد : | P150: =COUNTIF($S$1:S150,Q150+R150) -> 0 | Q150: 010305 | R150: 1e-06
G151: ضريب | I151: بهاي واحد | J151: مقـدار | K151: واحــد | L151: نيروي انساني | O151: رديف | P151: =COUNTIF($S$1:S151,Q151+R151) -> 0 | Q151: 010305 | R151: 1e-08
A152: 10305 | C152: 2 | D152: 1 | E152: 114026 | G152: 1 | I152: 57013 | J152: 2 | K152: نفر- ساعت | L152: كارگر ساده | M152: 14010102 | O152: 1 | P152: =COUNTIF($S$1:S152,Q152+R152) -> 1 | Q152: 010305 | R152: 1e-08 | S152: 10305
G153: ضريب | I153: بهاي واحد | J153: مقـدار | K153: واحــد | L153: ماشين آلات | O153: رديف | P153: =COUNTIF($S$1:S153,Q153+R153) -> 0 | Q153: 010305 | R153: 1e-06
A154: 10305 | C154: 0.0416666666 | D154: 1 | E154: 12358.33331 | G154: 1 | I154: 296600 | J154: 0.0416666666 | K154: دستگاه-ساعت | L154: کامیون کمپرسی به ظرفیت حدود5 تن باراننده | M154: 23020202 | O154: 1 | P154: =COUNTIF($S$1:S154,Q154+R154) -> 1 | Q154: 010305 | R154: 1e-06 | S154: 10305
A155: 10305 | C155: 0.0181818181 | D155: 1 | E155: 8813.59996 | G155: 1 | I155: 484748 | J155: 0.0181818181 | K155: دستگاه-ساعت | L155: لودر چرخ لاستيکي به قدرت حدود200 اسب بخار باراننده | M155: 25010803 | O155: 2 | P155: =COUNTIF($S$1:S155,Q155+R155) -> 2 | Q155: =IF(N155>0,N155,Q154) -> 010305 | R155: 1e-06 | S155: =IF(M155<>"",Q155+R155,"") -> 10305
N156: 010306 | P156: =COUNTIF($S$1:S156,Q156+R156) -> 0 | Q156: 010306 | R156: 1e-06
L157: مترمكعب | O157: واحـد : | P157: =COUNTIF($S$1:S157,Q157+R157) -> 0 | Q157: 010306 | R157: 1e-06
G158: ضريب | I158: بهاي واحد | J158: مقـدار | K158: واحــد | L158: نيروي انساني | O158: رديف | P158: =COUNTIF($S$1:S158,Q158+R158) -> 0 | Q158: 010306 | R158: 1e-08
A159: 10306 | C159: 5.79375 | D159: 1 | E159: 330319.0687 | G159: 1 | I159: 57013 | J159: 5.79375 | K159: نفر- ساعت | L159: كارگر ساده | M159: 14010102 | O159: 1 | P159: =COUNTIF($S$1:S159,Q159+R159) -> 1 | Q159: 010306 | R159: 1e-08 | S159: 10306
G160: ضريب | I160: بهاي واحد | J160: مقـدار | K160: واحــد | L160: ماشين آلات | O160: رديف | P160: =COUNTIF($S$1:S160,Q160+R160) -> 0 | Q160: 010306 | R160: 1e-06
A161: 10306 | C161: 0.12 | D161: 1 | E161: 35592 | G161: 1 | I161: 296600 | J161: 0.12 | K161: دستگاه-ساعت | L161: کامیون کمپرسی به ظرفیت حدود5 تن باراننده | M161: 23020202 | O161: 1 | P161: =COUNTIF($S$1:S161,Q161+R161) -> 1 | Q161: 010306 | R161: 1e-06 | S161: 10306
N162: 010307 | P162: =COUNTIF($S$1:S162,Q162+R162) -> 0 | Q162: 010307 | R162: 1e-06
L163: مترمكعب | O163: واحـد : | P163: =COUNTIF($S$1:S163,Q163+R163) -> 0 | Q163: 010307 | R163: 1e-06
G164: ضريب | I164: بهاي واحد | J164: مقـدار | K164: واحــد | L164: نيروي انساني | O164: رديف | P164: =COUNTIF($S$1:S164,Q164+R164) -> 0 | Q164: 010307 | R164: 1e-08
A165: 10307 | C165: 3.9 | D165: 1 | E165: 273358.8 | G165: 1 | I165: 70092 | J165: 3.9 | K165: نفر - ساعت | L165: متصدی کمپرسور | M165: 13041001 | O165: 1 | P165: =COUNTIF($S$1:S165,Q165+R165) -> 1 | Q165: 010307 | R165: 1e-08 | S165: 10307
A166: 10307 | C166: 7.9 | D166: 1 | E166: 450402.7 | G166: 1 | I166: 57013 | J166: 7.9 | K166: نفر- ساعت | L166: كارگر ساده | M166: 14010102 | O166: 2 | P166: =COUNTIF($S$1:S166,Q166+R166) -> 2 | Q166: 010307 | R166: 1e-08 | S166: 10307
A167: 10307 | C167: 3.9 | D167: 1 | E167: 288440.1 | G167: 1 | I167: 73959 | J167: 3.9 | K167: نفر- ساعت | L167: چکش گیر (مینور) | M167: 14240601 | O167: 3 | P167: =COUNTIF($S$1:S167,Q167+R167) -> 3 | Q167: 010307 | R167: 1e-08 | S167: 10307
G168: ضريب | I168: بهاي واحد | J168: مقـدار | K168: واحــد | L168: ماشين آلات | O168: رديف | P168: =COUNTIF($S$1:S168,Q168+R168) -> 0 | Q168: 010307 | R168: 1e-06
A169: 10307 | C169: 3.9 | D169: 1 | E169: 386696.7 | G169: 1 | I169: 99153 | J169: 3.9 | K169: دستگاه-ساعت | L169: کمپرسور باظرفیت حدود 5 متر مکعب دردقیقه (180 سی اف ام) با شیلنگ مربوط | M169: 25040102 | O169: 1 | P169: =COUNTIF($S$1:S169,Q169+R169) -> 1 | Q169: 010307 | R169: 1e-06 | S169: 10307
A170: 10307 | C170: 0.01 | D170: 1 | E170: 1650 | G170: 1 | I170: 165000 | J170: 0.01 | K170: عدد | L170: بیل | M170: 28070101 | O170: 2 | P170: =COUNTIF($S$1:S170,Q170+R170) -> 2 | Q170: 010307 | R170: 1e-06 | S170: 10307
A171: 10307 | C171: 0.01 | D171: 1 | E171: 1900 | G171: 1 | I171: 190000 | J171: 0.01 | K171: عدد | L171: کلنگ دو سر | M171: 28070701 | O171: 3 | P171: =COUNTIF($S$1:S171,Q171+R171) -> 3 | Q171: 010307 | R171: 1e-06 | S171: 10307
A172: 10307 | C172: 3.9 | D172: 1 | E172: 43114.5 | G172: 1 | I172: 11055 | J172: 3.9 | K172: دستگاه ساعت | L172: چکش دج بر 32 کیلوگرم | M172: 28110101 | O172: 4 | P172: =COUNTIF($S$1:S172,Q172+R172) -> 4 | Q172: 010307 | R172: 1e-06 | S172: 10307
N173: 010308 | P173: =COUNTIF($S$1:S173,Q173+R173) -> 0 | Q173: 010308 | R173: 1e-06
L174: مترمكعب | O174: واحـد : | P174: =COUNTIF($S$1:S174,Q174+R174) -> 0 | Q174: 010308 | R174: 1e-06
G175: ضريب | I175: بهاي واحد | J175: مقـدار | K175: واحــد | L175: نيروي انساني | O175: رديف | P175: =COUNTIF($S$1:S175,Q175+R175) -> 0 | Q175: 010308 | R175: 1e-08
A176: 10308 | C176: 5.07 | D176: 1 | E176: 355366.44 | G176: 1.3 | I176: 70092 | J176: 3.9 | K176: نفر - ساعت | L176: متصدی کمپرسور | M176: 13041001 | O176: 1 | P176: =COUNTIF($S$1:S176,Q176+R176) -> 1 | Q176: 010308 | R176: 1e-08 | S176: 10308
A177: 10308 | C177: 10.27 | D177: 1 | E177: 585523.51 | G177: 1.3 | I177: 57013 | J177: 7.9 | K177: نفر- ساعت | L177: كارگر ساده | M177: 14010102 | O177: 2 | P177: =COUNTIF($S$1:S177,Q177+R177) -> 2 | Q177: 010308 | R177: 1e-08 | S177: 10308
A178: 10308 | C178: 10.4 | D178: 1 | E178: 769173.6 | G178: 1.3 | I178: 73959 | J178: 8 | K178: نفر- ساعت | L178: چکش گیر (مینور) | M178: 14240601 | O178: 3 | P178: =COUNTIF($S$1:S178,Q178+R178) -> 3 | Q178: 010308 | R178: 1e-08 | S178: 10308
G179: ضريب | I179: بهاي واحد | J179: مقـدار | K179: واحــد | L179: ماشين آلات | O179: رديف | P179: =COUNTIF($S$1:S179,Q179+R179) -> 0 | Q179: 010308 | R179: 1e-06
A180: 10308 | C180: 5.07 | D180: 1 | E180: 502705.71 | G180: 1.3 | I180: 99153 | J180: 3.9 | K180: دستگاه-ساعت | L180: کمپرسور باظرفیت حدود 5 متر مکعب دردقیقه (180 سی اف ام) با شیلنگ مربوط | M180: 25040102 | O180: 1 | P180: =COUNTIF($S$1:S180,Q180+R180) -> 1 | Q180: 010308 | R180: 1e-06 | S180: 10308
A181: 10308 | C181: 0.013 | D181: 1 | E181: 2145 | G181: 1.3 | I181: 165000 | J181: 0.01 | K181: عدد | L181: بیل | M181: 28070101 | O181: 2 | P181: =COUNTIF($S$1:S181,Q181+R181) -> 2 | Q181: 010308 | R181: 1e-06 | S181: 10308
A182: 10308 | C182: 0.013 | D182: 1 | E182: 2470 | G182: 1.3 | I182: 190000 | J182: 0.01 | K182: عدد | L182: کلنگ دو سر | M182: 28070701 | O182: 3 | P182: =COUNTIF($S$1:S182,Q182+R182) -> 3 | Q182: 010308 | R182: 1e-06 | S182: 10308
A183: 10308 | C183: 5.07 | D183: 1 | E183: 56048.85 | G183: 1.3 | I183: 11055 | J183: 3.9 | K183: دستگاه ساعت | L183: چکش دج بر 32 کیلوگرم | M183: 28110101 | O183: 4 | P183: =COUNTIF($S$1:S183,Q183+R183) -> 4 | Q183: 010308 | R183: 1e-06 | S183: 10308
N184: 010310 | P184: =COUNTIF($S$1:S184,Q184+R184) -> 0 | Q184: 010310 | R184: 1e-06
L185: مترمكعب | O185: واحـد : | P185: =COUNTIF($S$1:S185,Q185+R185) -> 0 | Q185: 010310 | R185: 1e-06
G186: ضريب | I186: بهاي واحد | J186: مقـدار | K186: واحــد | L186: نيروي انساني | O186: رديف | P186: =COUNTIF($S$1:S186,Q186+R186) -> 0 | Q186: 010310 | R186: 1e-08
A187: 10310 | C187: 3.6 | D187: 1 | E187: 205246.8 | G187: 1 | I187: 57013 | J187: 3.6 | K187: نفر- ساعت | L187: كارگر ساده | M187: 14010102 | O187: 1 | P187: =COUNTIF($S$1:S187,Q187+R187) -> 1 | Q187: 010310 | R187: 1e-08 | S187: 10310
N188: 010311 | P188: =COUNTIF($S$1:S188,Q188+R188) -> 0 | Q188: 010311 | R188: 1e-08
L189: متر طول | O189: واحـد : | P189: =COUNTIF($S$1:S189,Q189+R189) -> 0 | Q189: 010311 | R189: 1e-08
G190: ضريب | I190: بهاي واحد | J190: مقـدار | K190: واحــد | L190: نيروي انساني | O190: رديف | P190: =COUNTIF($S$1:S190,Q190+R190) -> 0 | Q190: 010311 | R190: 1e-08
A191: 10311 | C191: 0.1277 | D191: 1 | E191: 8950.7484 | G191: 1 | I191: 70092 | J191: 0.1277 | K191: نفر - ساعت | L191: متصدی کمپرسور | M191: 13041001 | O191: 1 | P191: =COUNTIF($S$1:S191,Q191+R191) -> 1 | Q191: 010311 | R191: 1e-08 | S191: 10311
A192: 10311 | C192: 0.2554 | D192: 1 | E192: 14561.1202 | G192: 1 | I192: 57013 | J192: 0.2554 | K192: نفر- ساعت | L192: كارگر ساده | M192: 14010102 | O192: 2 | P192: =COUNTIF($S$1:S192,Q192+R192) -> 2 | Q192: 010311 | R192: 1e-08 | S192: 10311
A193: 10311 | C193: 0.2554 | D193: 1 | E193: 18889.1286 | G193: 1 | I193: 73959 | J193: 0.2554 | K193: نفر- ساعت | L193: چکش گیر (مینور) | M193: 14240601 | O193: 3 | P193: =COUNTIF($S$1:S193,Q193+R193) -> 3 | Q193: 010311 | R193: 1e-08 | S193: 10311
G194: ضريب | I194: بهاي واحد | J194: مقـدار | K194: واحــد | L194: ماشين آلات | O194: رديف | P194: =COUNTIF($S$1:S194,Q194+R194) -> 0 | Q194: 010311 | R194: 1e-06
A195: 10311 | C195: 0.1277 | D195: 1 | E195: 12661.8381 | G195: 1 | I195: 99153 | J195: 0.1277 | K195: دستگاه-ساعت | L195: کمپرسور باظرفیت حدود 5 متر مکعب دردقیقه (180 سی اف ام) با شیلنگ مربوط | M195: 25040102 | O195: 1 | P195: =COUNTIF($S$1:S195,Q195+R195) -> 1 | Q195: 010311 | R195: 1e-06 | S195: 10311
A196: 10311 | C196: 0.0004 | D196: 1 | E196: 66 | G196: 1 | I196: 165000 | J196: 0.0004 | K196: عدد | L196: بیل | M196: 28070101 | O196: 2 | P196: =COUNTIF($S$1:S196,Q196+R196) -> 2 | Q196: 010311 | R196: 1e-06 | S196: 10311
A197: 10311 | C197: 0.0004 | D197: 1 | E197: 76 | G197: 1 | I197: 190000 | J197: 0.0004 | K197: عدد | L197: کلنگ دو سر | M197: 28070701 | O197: 3 | P197: =COUNTIF($S$1:S197,Q197+R197) -> 3 | Q197: 010311 | R197: 1e-06 | S197: 10311
A198: 10311 | C198: 0.1277 | D198: 1 | E198: 1411.7235 | G198: 1 | I198: 11055 | J198: 0.1277 | K198: دستگاه ساعت | L198: چکش دج بر 32 کیلوگرم | M198: 28110101 | O198: 4 | P198: =COUNTIF($S$1:S198,Q198+R198) -> 4 | Q198: 010311 | R198: 1e-06 | S198: 10311
N199: 010403 | P199: =COUNTIF($S$1:S199,Q199+R199) -> 0 | Q199: 010403 | R199: =IF(IF(O199="رديف",VLOOKUP(L199,Kod,2,0),0)=0,R198,IF(O199="رديف",VLOOKUP(L199,Kod,2,0),0)) -> 1e-06
L200: متر طول | O200: واحـد : | P200: =COUNTIF($S$1:S200,Q200+R200) -> 0 | Q200: 010403 | R200: 1e-06
... 4300 more rows

Sheet Manabeh
A1: رديف | B1: کد عامل | C1: شرح لیست: | D1: واحد | E1: بهای واحد نت | F1: بهای واحد آمار | G1: بهای واحد روز | H1: مقدار مورد نیاز | I1: بهای کل مبنا قیمت | J1: درصد وزنی | K1: 1 | L1: نت | M1: نت
A2: 1 | B2: 11010202 | C2: مدیر پروژه (مهندس با سابقه 10 تا 15 سال) | D2: نفر ساعت | E2: 453944.5 | H2: =SUMIF(Report!C:C,B2,Report!J:J) -> 0 | I2: =IF($M$1=$L$1,H2*E2,+IF($M$1=$L$2,H2*F2,H2*G2)) -> 0 | J2: =IFERROR(I2/SUM($I$2:$I$2499),0) -> 0 | K2: =COUNTIF(Report!C:C,B2) -> 0 | L2: آمار | M2: =SUM(K2:K3000) -> 30
A3: 2 | B3: 12010101 | C3: رئيس کارگاه (مهندس باسابقه بيش از 15 سال) | D3: نفر - ساعت | E3: 370652.1 | H3: =SUMIF(Report!C:C,B3,Report!J:J) -> 0 | I3: =IF($M$1=$L$1,H3*E3,+IF($M$1=$L$2,H3*F3,H3*G3)) -> 0 | J3: =IFERROR(I3/SUM($I$2:$I$2499),0) -> 0 | K3: =COUNTIF(Report!C:C,B3) -> 0 | L3: روز
A4: 3 | B4: 12010201 | C4: مهندس کارگاه با سابقه 5 تا 10 سال | D4: نفر ساعت | E4: 293628.6 | H4: =SUMIF(Report!C:C,B4,Report!J:J) -> 0 | I4: 0 | J4: 0 | K4: =COUNTIF(Report!C:C,B4) -> 0 | L4: کل منابع
A5: 4 | B5: 12010301 | C5: تکنیسین عمومی کارگاه باسابقه بیش از 15 سال | D5: نفر ساعت | E5: 227621.5 | H5: =SUMIF(Report!C:C,B5,Report!J:J) -> 0 | I5: 0 | J5: 0 | K5: =COUNTIF(Report!C:C,B5) -> 0 | L5: منابع پروژه
A6: 5 | B6: 12010302 | C6: تکنیسین عمومی کارگاه با سابقه 10 تا 15 سال | D6: نفر ساعت | E6: 197938.1 | H6: =SUMIF(Report!C:C,B6,Report!J:J) -> 0 | I6: 0 | J6: 0 | K6: =COUNTIF(Report!C:C,B6) -> 0
A7: 6 | B7: 12010304 | C7: تکنیسین عمومی کارگاه با سابقه تا 5 سال | D7: نفر ساعت | E7: 148827.2 | H7: =SUMIF(Report!C:C,B7,Report!J:J) -> 0 | I7: 0 | J7: 0 | K7: =COUNTIF(Report!C:C,B7) -> 0
A8: 7 | B8: 12030101 | C8: نقشه بردار با سابقه بیش از 10 سال | D8: نفر ساعت | E8: 215730.7 | H8: =SUMIF(Report!C:C,B8,Report!J:J) -> 0 | I8: 0 | J8: 0 | K8: =COUNTIF(Report!C:C,B8) -> 0
A9: 8 | B9: 12030103 | C9: کمک نقشه بردار (ترازیاب) | D9: نفر- ساعت | E9: 109041.1 | H9: =SUMIF(Report!C:C,B9,Report!J:J) -> 0 | I9: 0 | J9: 0 | K9: =COUNTIF(Report!C:C,B9) -> 0
A10: 9 | B10: 12030104 | C10: کارگر نقشه‌برداري (ميرکش) | D10: نفر- ساعت | E10: 80332.9 | H10: =SUMIF(Report!C:C,B10,Report!J:J) -> 0 | I10: 0 | J10: 0 | K10: =COUNTIF(Report!C:C,B10) -> 0
A11: 10 | B11: 12050102 | C11: مسئول ماشين آلات ( رئيس حمل و نقل با سابقه کمتر از 10 سال) | D11: نفر ساعت | E11: 151799.8 | H11: =SUMIF(Report!C:C,B11,Report!J:J) -> 0 | I11: 0 | J11: 0 | K11: =COUNTIF(Report!C:C,B11) -> 0
A12: 11 | B12: 12100101 | C12: تکنيسين کنترل و ايمني | D12: نفر - ساعت | E12: 139481 | H12: =SUMIF(Report!C:C,B12,Report!J:J) -> 0 | I12: 0 | J12: 0 | K12: =COUNTIF(Report!C:C,B12) -> 0
A13: 12 | B13: 13010102 | C13: استادکار تعميرات و نگهداري ماشين‌آلات (سرمکانيک) | D13: نفر - ساعت | E13: 222357.9 | H13: =SUMIF(Report!C:C,B13,Report!J:J) -> 0 | I13: 0 | J13: 0 | K13: =COUNTIF(Report!C:C,B13) -> 0
A14: 13 | B14: 13010201 | C14: مکانیک درجه یک ماشین آلات سنگین | D14: نفر ساعت | E14: 182266 | H14: =SUMIF(Report!C:C,B14,Report!J:J) -> 0 | I14: 0 | J14: 0 | K14: =COUNTIF(Report!C:C,B14) -> 0
A15: 14 | B15: 13010205 | C15: کمک مکانیک | D15: نفر ساعت | E15: 86212.5 | H15: =SUMIF(Report!C:C,B15,Report!J:J) -> 0 | I15: 0 | J15: 0 | K15: =COUNTIF(Report!C:C,B15) -> 0
A16: 15 | B16: 13010401 | C16: جوشکار درجه یک | D16: نفر ساعت | E16: 131423 | H16: =SUMIF(Report!C:C,B16,Report!J:J) -> 0 | I16: 0 | J16: 0 | K16: =COUNTIF(Report!C:C,B16) -> 0
A17: 16 | B17: 13010402 | C17: جوشکار درجه دو | D17: نفر ساعت | E17: 109041.1 | H17: =SUMIF(Report!C:C,B17,Report!J:J) ->  | J17: 0 | K17: =COUNTIF(Report!C:C,B17) -> 2
A18: 17 | B18: 13010602 | C18: آهنگر درجه دو | D18: نفر ساعت | E18: 118886.4 | H18: =SUMIF(Report!C:C,B18,Report!J:J) -> 0 | I18: 0 | J18: 0 | K18: =COUNTIF(Report!C:C,B18) -> 0
A19: 18 | B19: 13010603 | C19: کمک آهنگر | D19: نفر ساعت | E19: 89950.5 | H19: =SUMIF(Report!C:C,B19,Report!J:J) -> 0 | I19: 0 | J19: 0 | K19: =COUNTIF(Report!C:C,B19) -> 0
A20: 19 | B20: 13010701 | C20: سرویس کار | D20: نفر- ساعت | E20: 86212.5 | H20: =SUMIF(Report!C:C,B20,Report!J:J) -> 0 | I20: 0 | J20: 0 | K20: =COUNTIF(Report!C:C,B20) -> 0
A21: 20 | B21: 13031201 | C21: متصدی دستگاه شمع کوبی | D21: نفر ساعت | E21: 135428.5 | H21: =SUMIF(Report!C:C,B21,Report!J:J) -> 0 | I21: 0 | J21: 0 | K21: =COUNTIF(Report!C:C,B21) -> 0
A22: 21 | B22: 13040101 | C22: متصدی ماشینهای بتن ساز (بتونیرچی) | D22: نفر ساعت | E22: 94085.9 | H22: =SUMIF(Report!C:C,B22,Report!J:J) -> 0 | I22: 0 | J22: 0 | K22: =COUNTIF(Report!C:C,B22) -> 0
A23: 22 | B23: 13040102 | C23: متصدی ایستگاههای بتن ساز یا بچینگ پلانت | D23: نفر ساعت | E23: 118886.4 | H23: =SUMIF(Report!C:C,B23,Report!J:J) -> 0 | I23: 0 | J23: 0 | K23: =COUNTIF(Report!C:C,B23) -> 0
A24: 23 | B24: 13040201 | C24: متصدی کارخانه آسفالت | D24: نفر ساعت | E24: 148827.2 | H24: =SUMIF(Report!C:C,B24,Report!J:J) -> 0 | I24: 0 | J24: 0 | K24: =COUNTIF(Report!C:C,B24) -> 0
A25: 24 | B25: 13040202 | C25: متصدی برق کارخانه آسفالت و سنگ شکن | D25: نفر ساعت | E25: 118886.4 | H25: =SUMIF(Report!C:C,B25,Report!J:J) -> 0 | I25: 0 | J25: 0 | K25: =COUNTIF(Report!C:C,B25) -> 0
A26: 25 | B26: 13040301 | C26: متصدی سرند و سنگ شکن | D26: نفر ساعت | E26: 127139.6 | H26: =SUMIF(Report!C:C,B26,Report!J:J) -> 0 | I26: 0 | J26: 0 | K26: =COUNTIF(Report!C:C,B26) -> 0
A27: 26 | B27: 13040901 | C27: متصدی غلطکهای دستی | D27: نفر ساعت | E27: 86212.5 | H27: =SUMIF(Report!C:C,B27,Report!J:J) -> 0 | I27: 0 | J27: 0 | K27: =COUNTIF(Report!C:C,B27) -> 0
A28: 27 | B28: 13041001 | C28: متصدی کمپرسور | D28: نفر - ساعت | E28: 86212.5 | H28: =SUMIF(Report!C:C,B28,Report!J:J) -> 0 | I28: 0 | J28: 0 | K28: =COUNTIF(Report!C:C,B28) -> 1
A29: 28 | B29: 13041101 | C29: متصدی پمپ اب | D29: نفر- ساعت | E29: 86212.5 | H29: =SUMIF(Report!C:C,B29,Report!J:J) -> 0 | I29: 0 | J29: 0 | K29: =COUNTIF(Report!C:C,B29) -> 0
A30: 29 | B30: 13041201 | C30: متصدی موتور برق | D30: نفر ساعت | E30: 86212.5 | H30: =SUMIF(Report!C:C,B30,Report!J:J) -> 0 | I30: 0 | J30: 0 | K30: =COUNTIF(Report!C:C,B30) -> 0
A31: 30 | B31: 13041401 | C31: ویبراتور چی | D31: نفر ساعت | E31: 74015.9 | H31: =SUMIF(Report!C:C,B31,Report!J:J) -> 0 | I31: 0 | J31: 0 | K31: =COUNTIF(Report!C:C,B31) -> 0
A32: 31 | B32: 13041501 | C32: کمک اپراتور ماشین آلات | D32: نفر ساعت | E32: 86212.5 | H32: =SUMIF(Report!C:C,B32,Report!J:J) -> 0 | I32: 0 | J32: 0 | K32: =COUNTIF(Report!C:C,B32) -> 0
A33: 32 | B33: 13041801 | C33: اپراتور دستگاه برش آسفالت ( کاتر ) | D33: نفر ساعت | E33: 113006.5 | H33: =SUMIF(Report!C:C,B33,Report!J:J) -> 0 | I33: 0 | J33: 0 | K33: =COUNTIF(Report!C:C,B33) -> 0
A34: 33 | B34: 13041803 | C34: متصدی ماشین آسفالت تراش | D34: نفر ساعت | E34: 112997.5 | H34: =SUMIF(Report!C:C,B34,Report!J:J) -> 0 | I34: 0 | J34: 0 | K34: =COUNTIF(Report!C:C,B34) -> 0
A35: 34 | B35: 13041901 | C35: اپراتور ماشین راهداری یا راهسازی | D35: نفر ساعت | E35: 210633.3 | H35: =SUMIF(Report!C:C,B35,Report!J:J) -> 0 | I35: 0 | J35: 0 | K35: =COUNTIF(Report!C:C,B35) -> 0
A36: 35 | B36: 14010101 | C36: سر کارگر | D36: نفر ساعت | E36: 81272.6 | F36: 138143 | H36: =SUMIF(Report!C:C,B36,Report!J:J) -> 0.0186 | I36: 1511.67036 | J36: 0 | K36: =COUNTIF(Report!C:C,B36) -> 1
A37: 36 | B37: 14010102 | C37: كارگر ساده | D37: نفر- ساعت | E37: 70696 | F37: 98943 | H37: =SUMIF(Report!C:C,B37,Report!J:J) ->  | J37: 0 | K37: =COUNTIF(Report!C:C,B37) -> 4
A38: 37 | B38: 14010103 | C38: کارگر فنی ماهر | D38: نفر ساعت | E38: 78853.8 | H38: =SUMIF(Report!C:C,B38,Report!J:J) -> 0 | I38: 0 | J38: 0 | K38: =COUNTIF(Report!C:C,B38) -> 0
A39: 38 | B39: 14010105 | C39: کارگر فني نيمه ماهر | D39: نفر - ساعت | E39: 73596.9 | H39: =SUMIF(Report!C:C,B39,Report!J:J) -> 0 | I39: 0 | J39: 0 | K39: =COUNTIF(Report!C:C,B39) -> 0
A40: 39 | B40: 14020101 | C40: بنای سفت کار درجه یک | D40: نفر ساعت | E40: 108643.1 | F40: 183157 | H40: =SUMIF(Report!C:C,B40,Report!J:J) -> 0 | I40: 0 | J40: 0 | K40: =COUNTIF(Report!C:C,B40) -> 0
A41: 40 | B41: 14020102 | C41: بنای سفت کار درجه دو | D41: نفر - ساعت | E41: 91120 | F41: 141960 | H41: =SUMIF(Report!C:C,B41,Report!J:J) -> 0 | I41: 0 | J41: 0 | K41: =COUNTIF(Report!C:C,B41) -> 0
A42: 41 | B42: 14020103 | C42: کمک بنای سفت کار | D42: نفر ساعت | E42: 78853.8 | F42: 113017 | H42: =SUMIF(Report!C:C,B42,Report!J:J) -> 0 | I42: 0 | J42: 0 | K42: =COUNTIF(Report!C:C,B42) -> 0
A43: 42 | B43: 14030201 | C43: نجار قالب بند درجه یک | D43: نفر ساعت | E43: 119616.1 | F43: 196910 | H43: =SUMIF(Report!C:C,B43,Report!J:J) -> 0 | I43: 0 | J43: 0 | K43: =COUNTIF(Report!C:C,B43) -> 0
A44: 43 | B44: 14030202 | C44: نجار قالب بند درجه دو | D44: نفر - ساعت | E44: 96993.1 | F44: 164728 | H44: =SUMIF(Report!C:C,B44,Report!J:J) -> 0 | I44: 0 | J44: 0 | K44: =COUNTIF(Report!C:C,B44) -> 0
A45: 44 | B45: 14030203 | C45: کمک نجار قالب بند | D45: نفر- ساعت | E45: 74015.9 | F45: 121766 | H45: =SUMIF(Report!C:C,B45,Report!J:J) -> 0 | I45: 0 | J45: 0 | K45: =COUNTIF(Report!C:C,B45) -> 0
A46: 45 | B46: 14040101 | C46: قالب بند فلزی درجه یک | D46: نفر ساعت | E46: 116241.3 | F46: 176708 | H46: =SUMIF(Report!C:C,B46,Report!J:J) -> 0 | I46: 0 | J46: 0 | K46: =COUNTIF(Report!C:C,B46) -> 0
A47: 46 | B47: 14040102 | C47: قالب بند فلزی درجه دو | D47: نفر ساعت | E47: 93613.6 | F47: 150438 | H47: =SUMIF(Report!C:C,B47,Report!J:J) -> 0 | I47: 0 | J47: 0 | K47: =COUNTIF(Report!C:C,B47) -> 0
A48: 47 | B48: 14040103 | C48: کمک قالب بند | D48: نفر ساعت | E48: 74015.9 | H48: =SUMIF(Report!C:C,B48,Report!J:J) -> 0 | I48: 0 | J48: 0 | K48: =COUNTIF(Report!C:C,B48) -> 0
A49: 48 | B49: 14040201 | C49: قالب ساز درجه یک قالب فلزی | D49: نفر ساعت | E49: 109159.2 | F49: 186588 | H49: =SUMIF(Report!C:C,B49,Report!J:J) -> 0 | I49: 0 | J49: 0 | K49: =COUNTIF(Report!C:C,B49) -> 0
A50: 49 | B50: 14040202 | C50: قالب ساز درجه دو قالب فلزی | D50: نفر ساعت | E50: 91908.7 | F50: 160563 | H50: =SUMIF(Report!C:C,B50,Report!J:J) -> 0 | I50: 0 | J50: 0 | K50: =COUNTIF(Report!C:C,B50) -> 0
A51: 50 | B51: 14040203 | C51: کمک قالب ساز قالب فلزی | D51: نفر ساعت | E51: 74015.9 | H51: =SUMIF(Report!C:C,B51,Report!J:J) -> 0 | I51: 0 | J51: 0 | K51: =COUNTIF(Report!C:C,B51) -> 0
A52: 51 | B52: 14050101 | C52: سر آرماتور بند | D52: نفر ساعت | E52: 131459.1 | F52: 204677 | H52: =SUMIF(Report!C:C,B52,Report!J:J) -> 0 | I52: 0 | J52: 0 | K52: =COUNTIF(Report!C:C,B52) -> 0
A53: 52 | B53: 14050201 | C53: آرماتور بند درجه یک | D53: نفر ساعت | E53: 98667.3 | F53: 173944 | H53: =SUMIF(Report!C:C,B53,Report!J:J) -> 0 | I53: 0 | J53: 0 | K53: =COUNTIF(Report!C:C,B53) -> 0
A54: 53 | B54: 14050202 | C54: آرماتور بند درجه دو | D54: نفر ساعت | E54: 84477 | F54: 145960 | H54: =SUMIF(Report!C:C,B54,Report!J:J) -> 0 | I54: 0 | J54: 0 | K54: =COUNTIF(Report!C:C,B54) -> 0
A55: 54 | B55: 14050203 | C55: کمک آرماتور بند | D55: نفر ساعت | E55: 70822.4 | F55: 108369 | H55: =SUMIF(Report!C:C,B55,Report!J:J) -> 0 | I55: 0 | J55: 0 | K55: =COUNTIF(Report!C:C,B55) -> 0
A56: 55 | B56: 14060101 | C56: استادکار کارهای بتنی | D56: نفر ساعت | E56: 122059.7 | F56: 195379 | H56: =SUMIF(Report!C:C,B56,Report!J:J) -> 0 | I56: 0 | J56: 0 | K56: =COUNTIF(Report!C:C,B56) -> 0
A57: 56 | B57: 14060201 | C57: بنای بتن کار | D57: نفر ساعت | E57: 94759.4 | F57: 162046 | H57: =SUMIF(Report!C:C,B57,Report!J:J) -> 0 | I57: 0 | J57: 0 | K57: =COUNTIF(Report!C:C,B57) -> 0
A58: 57 | B58: 14060202 | C58: کمک بنای بتن کار | D58: نفر - ساعت | E58: 72372.3 | F58: 126068 | H58: =SUMIF(Report!C:C,B58,Report!J:J) -> 0 | I58: 0 | J58: 0 | K58: =COUNTIF(Report!C:C,B58) -> 0
A59: 58 | B59: 14060401 | C59: تکنسین متخصص نصب تیرهای پیش تنیده | D59: نفر ساعت | E59: 197981.9 | H59: =SUMIF(Report!C:C,B59,Report!J:J) -> 0 | I59: 0 | J59: 0 | K59: =COUNTIF(Report!C:C,B59) -> 0
A60: 59 | B60: 14060501 | C60: کارشناس تهيه قطعات پيش‌ساخته بتني | D60: نفر - ساعت | E60: 170493.1 | H60: =SUMIF(Report!C:C,B60,Report!J:J) -> 0 | I60: 0 | J60: 0 | K60: =COUNTIF(Report!C:C,B60) -> 0
A61: 60 | B61: 14060502 | C61: تکنسين تهيه قطعات پيش‌ساخته بتني | D61: نفر - ساعت | E61: 135520 | H61: =SUMIF(Report!C:C,B61,Report!J:J) -> 0 | I61: 0 | J61: 0 | K61: =COUNTIF(Report!C:C,B61) -> 0
A62: 61 | B62: 14070201 | C62: اسکلت ساز درجه یک | D62: نفر ساعت | E62: 157727.8 | F62: 218328 | H62: =SUMIF(Report!C:C,B62,Report!J:J) -> 0 | I62: 0 | J62: 0 | K62: =COUNTIF(Report!C:C,B62) -> 0
A63: 62 | B63: 14070202 | C63: اسکلت ساز درجه دو | D63: نفر ساعت | E63: 122471.2 | F63: 185412 | H63: =SUMIF(Report!C:C,B63,Report!J:J) -> 0 | I63: 0 | J63: 0 | K63: =COUNTIF(Report!C:C,B63) -> 0
A64: 63 | B64: 14070203 | C64: کمک اسکلت ساز | D64: نفر ساعت | E64: 90824.8 | F64: 136563 | H64: =SUMIF(Report!C:C,B64,Report!J:J) -> 0 | I64: 0 | J64: 0 | K64: =COUNTIF(Report!C:C,B64) -> 0
A65: 64 | B65: 14070301 | C65: جوشکار اسکلت | D65: نفر ساعت | E65: 122471.2 | F65: 196194 | H65: =SUMIF(Report!C:C,B65,Report!J:J) -> 0 | I65: 0 | J65: 0 | K65: =COUNTIF(Report!C:C,B65) -> 0
A66: 65 | B66: 14070302 | C66: کمک جوشکار اسکلت | D66: نفر ساعت | E66: 90824.8 | F66: 133331 | H66: =SUMIF(Report!C:C,B66,Report!J:J) -> 0 | I66: 0 | J66: 0 | K66: =COUNTIF(Report!C:C,B66) -> 0
A67: 66 | B67: 14070401 | C67: برشکار | D67: نفر ساعت | E67: 110304.4 | F67: 167159 | H67: =SUMIF(Report!C:C,B67,Report!J:J) -> 0 | I67: =IF($M$1=$L$1,H67*E67,+IF($M$1=$L$2,H67*F67,H67*G67)) -> 0 | J67: =IFERROR(I67/SUM($I$2:$I$2499),0) -> 0 | K67: =COUNTIF(Report!C:C,B67) -> 0
A68: 67 | B68: 14080101 | C68: آهنگر در و پنجره ساز درجه یک | D68: نفر ساعت | E68: 116385.3 | F68: 188745 | H68: =SUMIF(Report!C:C,B68,Report!J:J) -> 0 | I68: 0 | J68: 0 | K68: =COUNTIF(Report!C:C,B68) -> 0
A69: 68 | B69: 14080102 | C69: آهنگر در و پنجره ساز درجه دو | D69: نفر ساعت | E69: 96494.6 | F69: 155382 | H69: =SUMIF(Report!C:C,B69,Report!J:J) -> 0 | I69: 0 | J69: 0 | K69: =COUNTIF(Report!C:C,B69) -> 0
A70: 69 | B70: 14080103 | C70: کمک آهنگر در و پنجره ساز | D70: نفر ساعت | E70: 72372.3 | H70: =SUMIF(Report!C:C,B70,Report!J:J) -> 0 | I70: 0 | J70: 0 | K70: =COUNTIF(Report!C:C,B70) -> 0
A71: 70 | B71: 14120101 | C71: نجار در و پنجره ساز درجه یک | D71: نفر ساعت | E71: 122059.7 | H71: =SUMIF(Report!C:C,B71,Report!J:J) -> 0 | I71: 0 | J71: 0 | K71: =COUNTIF(Report!C:C,B71) -> 0
A72: 71 | B72: 14120401 | C72: کمک نجار | D72: نفر - ساعت | E72: 74164.7 | H72: =SUMIF(Report!C:C,B72,Report!J:J) -> 0 | I72: 0 | J72: 0 | K72: =COUNTIF(Report!C:C,B72) -> 0
A73: 72 | B73: 14130101 | C73: عایقکار و آسفالت کاردرجه یک | D73: نفر ساعت | E73: 98287 | F73: 178348 | H73: =SUMIF(Report!C:C,B73,Report!J:J) -> 0 | I73: 0 | J73: 0 | K73: =COUNTIF(Report!C:C,B73) -> 0
A74: 73 | B74: 14130102 | C74: عایقکار و آسفالت کار درجه دو | D74: نفر ساعت | E74: 86943.2 | F74: 150382 | H74: =SUMIF(Report!C:C,B74,Report!J:J) -> 0 | I74: 0 | J74: 0 | K74: =COUNTIF(Report!C:C,B74) -> 0
A75: 74 | B75: 14130103 | C75: کمک عایقکار و آسفالت کار | D75: نفر- ساعت | E75: 72372.3 | F75: 117808 | H75: =SUMIF(Report!C:C,B75,Report!J:J) -> 0 | I75: 0 | J75: 0 | K75: =COUNTIF(Report!C:C,B75) -> 0
A76: 75 | B76: 14150102 | C76: سیمانکار درجه دو | D76: نفر ساعت | E76: 86181.9 | F76: 156450 | H76: =SUMIF(Report!C:C,B76,Report!J:J) -> 0 | I76: 0 | J76: 0 | K76: =COUNTIF(Report!C:C,B76) -> 0
A77: 76 | B77: 14150103 | C77: کمک سیمانکار | D77: نفر ساعت | E77: 74015.9 | H77: =SUMIF(Report!C:C,B77,Report!J:J) -> 0 | I77: 0 | J77: 0 | K77: =COUNTIF(Report!C:C,B77) -> 0
A78: 77 | B78: 14150112 | C78: تزریقکار | D78: نفر ساعت | E78: 128232.7 | H78: =SUMIF(Report!C:C,B78,Report!J:J) -> 0 | I78: 0 | J78: 0 | K78: =COUNTIF(Report!C:C,B78) -> 0
A79: 78 | B79: 14150201 | C79: بندکش | D79: نفر ساعت | E79: 84477 | F79: 160091 | H79: =SUMIF(Report!C:C,B79,Report!J:J) -> 0 | I79: 0 | J79: 0 | K79: =COUNTIF(Report!C:C,B79) -> 0
A80: 79 | B80: 14150202 | C80: کمک بندکش | D80: نفر ساعت | E80: 70822.4 | F80: 123248 | H80: =SUMIF(Report!C:C,B80,Report!J:J) -> 0 | I80: 0 | J80: 0 | K80: =COUNTIF(Report!C:C,B80) -> 0
A81: 80 | B81: 14160101 | C81: سنگ کار درجه یک | D81: نفر ساعت | E81: 133657.7 | F81: 210407 | H81: =SUMIF(Report!C:C,B81,Report!J:J) -> 0 | I81: 0 | J81: 0 | K81: =COUNTIF(Report!C:C,B81) -> 0
A82: 81 | B82: 14160102 | C82: سنگ کار درجه دو | D82: نفر ساعت | E82: 107611.8 | F82: 175592 | H82: =SUMIF(Report!C:C,B82,Report!J:J) -> 0 | I82: 0 | J82: 0 | K82: =COUNTIF(Report!C:C,B82) -> 0
A83: 82 | B83: 14160104 | C83: سنگ شکن درجه یک | D83: نفر ساعت | E83: 81378 | H83: =SUMIF(Report!C:C,B83,Report!J:J) -> 0 | I83: 0 | J83: 0 | K83: =COUNTIF(Report!C:C,B83) -> 0
A84: 83 | B84: 14200101 | C84: نقاش درجه یک ساختمان | D84: نفر ساعت | E84: 114623.8 | F84: 203461 | H84: =SUMIF(Report!C:C,B84,Report!J:J) -> 0 | I84: 0 | J84: 0 | K84: =COUNTIF(Report!C:C,B84) -> 0
A85: 84 | B85: 14200102 | C85: نقاش درجه دو ساختمان | D85: نفر ساعت | E85: 94759.4 | F85: 178763 | H85: =SUMIF(Report!C:C,B85,Report!J:J) -> 0 | I85: 0 | J85: 0 | K85: =COUNTIF(Report!C:C,B85) -> 0
A86: 85 | B86: 14200103 | C86: کمک نقاش | D86: نفر ساعت | E86: 74164.7 | H86: =SUMIF(Report!C:C,B86,Report!J:J) -> 0 | I86: 0 | J86: 0 | K86: =COUNTIF(Report!C:C,B86) -> 0
A87: 86 | B87: 14200301 | C87: نقاش خط کشی | D87: نفر ساعت | E87: 114623.8 | H87: =SUMIF(Report!C:C,B87,Report!J:J) -> 0 | I87: 0 | J87: 0 | K87: =COUNTIF(Report!C:C,B87) -> 0
A88: 87 | B88: 14200302 | C88: مکانیسین خط کشی | D88: نفر ساعت | E88: 103607.2 | H88: =SUMIF(Report!C:C,B88,Report!J:J) -> 0 | I88: 0 | J88: 0 | K88: =COUNTIF(Report!C:C,B88) -> 0
A89: 88 | B89: 14200303 | C89: کارگر پیاده کننده مسیر خط کشی | D89: نفر ساعت | E89: 72372.3 | H89: =SUMIF(Report!C:C,B89,Report!J:J) -> 0 | I89: 0 | J89: 0 | K89: =COUNTIF(Report!C:C,B89) -> 0
A90: 89 | B90: 14220202 | C90: سنگ تراش درجه دو | D90: نفر ساعت | E90: 98287 | F90: 161874 | H90: =SUMIF(Report!C:C,B90,Report!J:J) -> 0 | I90: 0 | J90: 0 | K90: =COUNTIF(Report!C:C,B90) -> 0
A91: 90 | B91: 14220301 | C91: بنای سنگ چین درجه یک | D91: نفر ساعت | E91: 114623.8 | F91: 195707 | H91: =SUMIF(Report!C:C,B91,Report!J:J) -> 0 | I91: 0 | J91: 0 | K91: =COUNTIF(Report!C:C,B91) -> 0
A92: 91 | B92: 14220302 | C92: بنای سنگ چین درجه دو | D92: نفر ساعت | E92: 94759.4 | F92: 159650 | H92: =SUMIF(Report!C:C,B92,Report!J:J) -> 0 | I92: 0 | J92: 0 | K92: =COUNTIF(Report!C:C,B92) -> 0
A93: 92 | B93: 14220303 | C93: کمک بنای سنگ چین | D93: نفر ساعت | E93: 77718.7 | H93: =SUMIF(Report!C:C,B93,Report!J:J) -> 0 | I93: 0 | J93: 0 | K93: =COUNTIF(Report!C:C,B93) -> 0
A94: 93 | B94: 14230101 | C94: مسئول فنی آسفالت | D94: نفر ساعت | E94: 196250.6 | F94: 252564 | H94: =SUMIF(Report!C:C,B94,Report!J:J) -> 0 | I94: 0 | J94: 0 | K94: =COUNTIF(Report!C:C,B94) -> 0
A95: 94 | B95: 14230201 | C95: ماله کش آسفالت | D95: نفر ساعت | E95: 99257.7 | F95: 160731 | H95: =SUMIF(Report!C:C,B95,Report!J:J) -> 0 | I95: 0 | J95: 0 | K95: =COUNTIF(Report!C:C,B95) -> 0
A96: 95 | B96: 14230202 | C96: کارگر آسفالت | D96: نفر ساعت | E96: 83270.6 | F96: 121135 | H96: =SUMIF(Report!C:C,B96,Report!J:J) -> 0 | I96: 0 | J96: 0 | K96: =COUNTIF(Report!C:C,B96) -> 0
A97: 96 | B97: 14230301 | C97: قیرگرم کن | D97: نفر ساعت | E97: 83270.6 | H97: =SUMIF(Report!C:C,B97,Report!J:J) -> 0 | I97: 0 | J97: 0 | K97: =COUNTIF(Report!C:C,B97) -> 0
A98: 97 | B98: 14240101 | C98: تکنسین متخصص تونل | D98: نفر ساعت | E98: 196250.6 | H98: =SUMIF(Report!C:C,B98,Report!J:J) -> 0 | I98: 0 | J98: 0 | K98: =COUNTIF(Report!C:C,B98) -> 0
A99: 98 | B99: 14240301 | C99: مباشر عملیات خاکی با سابقه بیش از 10 سال | D99: نفر- ساعت | E99: 196250.6 | H99: =SUMIF(Report!C:C,B99,Report!J:J) -> 0.0092 | I99: 1805.50552 | J99: 0 | K99: =COUNTIF(Report!C:C,B99) -> 1
A100: 99 | B100: 14240501 | C100: آتشبار | D100: نفر ساعت | E100: 120053.4 | H100: =SUMIF(Report!C:C,B100,Report!J:J) -> 0 | I100: 0 | J100: 0 | K100: =COUNTIF(Report!C:C,B100) -> 0
A101: 100 | B101: 14240502 | C101: کمک آتشبار | D101: نفر ساعت | E101: 81390.9 | H101: =SUMIF(Report!C:C,B101,Report!J:J) -> 0 | I101: 0 | J101: 0 | K101: =COUNTIF(Report!C:C,B101) -> 0
A102: 101 | B102: 14240601 | C102: چکش گیر (مینور) | D102: نفر- ساعت | E102: 90969.1 | H102: =SUMIF(Report!C:C,B102,Report!J:J) -> 0 | I102: 0 | J102: 0 | K102: =COUNTIF(Report!C:C,B102) -> 1
A103: 102 | B103: 14240602 | C103: کارگرد یلم دار | D103: نفر- ساعت | E103: 81390.9 | H103: =SUMIF(Report!C:C,B103,Report!J:J) -> 0 | I103: 0 | J103: 0 | K103: =COUNTIF(Report!C:C,B103) -> 0
A104: 103 | B104: 14250101 | C104: تکنیسین عملیات حفاری و شمعکوبی | D104: نفر- ساعت | E104: 207415.9 | H104: =SUMIF(Report!C:C,B104,Report!J:J) ->  | J104: 0 | K104: =COUNTIF(Report!C:C,B104) -> 2
A105: 104 | B105: 14250201 | C105: حفار درجه یک شمع های درجا | D105: نفر ساعت | E105: 163546.5 | H105: =SUMIF(Report!C:C,B105,Report!J:J) ->  | J105: 0 | K105: =COUNTIF(Report!C:C,B105) -> 2
A106: 105 | B106: 14250203 | C106: کمک حفار شمع های درجا | D106: نفر ساعت | E106: 92940.6 | H106: =SUMIF(Report!C:C,B106,Report!J:J) ->  | J106: 0 | K106: =COUNTIF(Report!C:C,B106) -> 2
A107: 106 | B107: 14250204 | C107: کارگر حفاری | D107: نفر ساعت | E107: 81390.9 | H107: =SUMIF(Report!C:C,B107,Report!J:J) ->  | J107: 0 | K107: =COUNTIF(Report!C:C,B107) -> 2
A108: 107 | B108: 14250301 | C108: کارگر شمع کوبی | D108: نفر ساعت | E108: 81390.9 | H108: =SUMIF(Report!C:C,B108,Report!J:J) -> 0 | I108: 0 | J108: 0 | K108: =COUNTIF(Report!C:C,B108) -> 0
A109: 108 | B109: 14260701 | C109: مقنی چاه فاضلاب | D109: نفر ساعت | E109: 120062 | H109: =SUMIF(Report!C:C,B109,Report!J:J) -> 0 | I109: 0 | J109: 0 | K109: =COUNTIF(Report!C:C,B109) -> 0
A110: 109 | B110: 14270101 | C110: کارشناس ژئوتکنیک | D110: نفر ساعت | E110: 243247.9 | H110: =SUMIF(Report!C:C,B110,Report!J:J) -> 0 | I110: 0 | J110: 0 | K110: =COUNTIF(Report!C:C,B110) -> 0
A111: 110 | B111: 14270102 | C111: كارشناس عمليات صحرايي ژئوتكنيك | D111: نفر- ساعت | E111: 306557.33 | H111: =SUMIF(Report!C:C,B111,Report!J:J) -> 0 | I111: 0 | J111: 0 | K111: =COUNTIF(Report!C:C,B111) -> 0
A112: 111 | B112: 14270201 | C112: تکنسین ژئوتکنیک | D112: نفر ساعت | E112: 163756.56 | H112: =SUMIF(Report!C:C,B112,Report!J:J) -> 0 | I112: 0 | J112: 0 | K112: =COUNTIF(Report!C:C,B112) -> 0
A113: 112 | B113: 14270104 | C113: کمک تکنسین ژئوتکنیک | D113: نفر - ساعت | E113: 95994 | H113: =SUMIF(Report!C:C,B113,Report!J:J) -> 0 | I113: 0 | J113: 0 | K113: =COUNTIF(Report!C:C,B113) -> 0
A114: 113 | B114: 14270301 | C114: حفار كارهاي ژئوتكنيك | D114: نفر- ساعت | E114: 267001.49 | H114: =SUMIF(Report!C:C,B114,Report!J:J) -> 0 | I114: 0 | J114: 0 | K114: =COUNTIF(Report!C:C,B114) -> 0
A115: 114 | B115: 14280301 | C115: هزینه دنده ای کردن ( رزوه کردن ) میلگرد | D115: یکسر | E115: 18089.9 | H115: =SUMIF(Report!C:C,B115,Report!J:J) -> 0 | I115: 0 | J115: 0 | K115: =COUNTIF(Report!C:C,B115) -> 0
A116: 115 | B116: 14280302 | C116: هزينه دنده اي کردن جک سقفي | D116: عدد | E116: 214808.2 | H116: =SUMIF(Report!C:C,B116,Report!J:J) -> 0 | I116: 0 | J116: 0 | K116: =COUNTIF(Report!C:C,B116) -> 0
A117: 116 | B117: 14280303 | C117: هزینه دنده ای کردن پیچ تنظیم داربست | D117: عدد | E117: 214808.2 | H117: =SUMIF(Report!C:C,B117,Report!J:J) -> 0 | I117: 0 | J117: 0 | K117: =COUNTIF(Report!C:C,B117) -> 0
A118: 117 | B118: 14280403 | C118: هزینه گالوانیزه کردن پیچ و مهره یا قطعات گوی | D118: کیلو گرم | E118: 35703.1 | H118: =SUMIF(Report!C:C,B118,Report!J:J) -> 0 | I118: 0 | J118: 0 | K118: =COUNTIF(Report!C:C,B118) -> 0
A119: 118 | B119: 14280501 | C119: هزینه نورد کردن ورق و پروفیل آهن | D119: كیلوگرم | E119: 49744.6 | H119: =SUMIF(Report!C:C,B119,Report!J:J) -> 0 | I119: 0 | J119: 0 | K119: =COUNTIF(Report!C:C,B119) -> 0
A120: 119 | B120: 14280502 | C120: آجدار کردن ، برش و سوراخ کردن تسمه به ابعاد حدود 50*5 میلیمتر | D120: كیلوگرم | E120: 35703.1 | H120: =SUMIF(Report!C:C,B120,Report!J:J) -> 0 | I120: 0 | J120: 0 | K120: =COUNTIF(Report!C:C,B120) -> 0
A121: 120 | B121: 15010101 | C121: استاد کار تاسیسات | D121: نفر ساعت | E121: 169500.8 | F121: 232752 | H121: =SUMIF(Report!C:C,B121,Report!J:J) -> 0 | I121: 0 | J121: 0 | K121: =COUNTIF(Report!C:C,B121) -> 0
A122: 121 | B122: 15010401 | C122: چدنکار درجه یک | D122: نفر ساعت | E122: 132554.3 | F122: 199257 | H122: =SUMIF(Report!C:C,B122,Report!J:J) -> 0 | I122: 0 | J122: 0 | K122: =COUNTIF(Report!C:C,B122) -> 0
A123: 122 | B123: 15010402 | C123: چدنکار درجه دو | D123: نفر ساعت | E123: 111234.1 | F123: 171024 | H123: =SUMIF(Report!C:C,B123,Report!J:J) -> 0 | I123: 0 | J123: 0 | K123: =COUNTIF(Report!C:C,B123) -> 0
A124: 123 | B124: 15010801 | C124: کمک لوله کش | D124: نفر ساعت | E124: 83408.6 | H124: =SUMIF(Report!C:C,B124,Report!J:J) -> 0 | I124: 0 | J124: 0 | K124: =COUNTIF(Report!C:C,B124) -> 0
A125: 124 | B125: 16020201 | C125: کابل کش درجه یک فشار ضعیف | D125: نفر ساعت | E125: 161369.6 | F125: 195694 | H125: =SUMIF(Report!C:C,B125,Report!J:J) -> 0 | I125: 0 | J125: 0 | K125: =COUNTIF(Report!C:C,B125) -> 0
A126: 125 | B126: 16020203 | C126: کمک کابل کش فشار ضعیف | D126: نفر ساعت | E126: 92471.6 | H126: =SUMIF(Report!C:C,B126,Report!J:J) -> 0 | I126: 0 | J126: 0 | K126: =COUNTIF(Report!C:C,B126) -> 0
A127: 126 | B127: 17020301 | C127: استاد کار زنگ زدایی | D127: نفر ساعت | E127: 161822 | H127: =SUMIF(Report!C:C,B127,Report!J:J) -> 0 | I127: 0 | J127: 0 | K127: =COUNTIF(Report!C:C,B127) -> 0
A128: 127 | B128: 17020302 | C128: تکنسین سندبلاست | D128: نفر ساعت | E128: 128723.9 | H128: =SUMIF(Report!C:C,B128,Report!J:J) -> 0 | I128: 0 | J128: 0 | K128: =COUNTIF(Report!C:C,B128) -> 0
A129: 128 | B129: 17020304 | C129: کارگرسندبلاست | D129: نفر ساعت | E129: 79645.2 | H129: =SUMIF(Report!C:C,B129,Report!J:J) -> 0 | I129: 0 | J129: 0 | K129: =COUNTIF(Report!C:C,B129) -> 0
A130: 129 | B130: 18090301 | C130: تکنسین برق | D130: نفر - ساعت | E130: 269817.5 | H130: =SUMIF(Report!C:C,B130,Report!J:J) -> 0 | I130: 0 | J130: 0 | K130: =COUNTIF(Report!C:C,B130) -> 0
A131: 130 | B131: 18090301 | C131: تکنسین برق | D131: نفر ساعت | E131: 269817.5 | H131: =SUMIF(Report!C:C,B131,Report!J:J) -> 0 | I131: =IF($M$1=$L$1,H131*E131,+IF($M$1=$L$2,H131*F131,H131*G131)) -> 0 | J131: =IFERROR(I131/SUM($I$2:$I$2499),0) -> 0 | K131: =COUNTIF(Report!C:C,B131) -> 0
A132: 131 | B132: 19020199 | C132: درصد | D132: درصد | H132: =SUMIF(Report!C:C,B132,Report!J:J) -> 0 | I132: 0 | J132: 0 | K132: =COUNTIF(Report!C:C,B132) -> 0
A133: 132 | B133: 21010102 | C133: فیدر زنجیری یا شاتونی 50تا 100 تن در ساعت | D133: دستگاه ساعت | E133: 42213.4 | H133: =SUMIF(Report!C:C,B133,Report!J:J) -> 0 | I133: 0 | J133: 0 | K133: =COUNTIF(Report!C:C,B133) -> 0
A134: 133 | B134: 21010203 | C134: نوار نقاله به عرض75 تا80 سانتیمتر | D134: مترطول ساعت | E134: 34102.9 | H134: =SUMIF(Report!C:C,B134,Report!J:J) -> 0 | I134: 0 | J134: 0 | K134: =COUNTIF(Report!C:C,B134) -> 0
A135: 134 | B135: 21010302 | C135: سرند ویبره 1.5*5 متر سه طبقه | D135: دستگاه ساعت | E135: 92118.7 | H135: =SUMIF(Report!C:C,B135,Report!J:J) -> 0 | I135: 0 | J135: 0 | K135: =COUNTIF(Report!C:C,B135) -> 0
A136: 135 | B136: 21010403 | C136: سنگ شکن فکی100 تا150 تن در ساعت | D136: دستگاه ساعت | E136: 396047.7 | H136: =SUMIF(Report!C:C,B136,Report!J:J) -> 0 | I136: 0 | J136: 0 | K136: =COUNTIF(Report!C:C,B136) -> 0
A137: 136 | B137: 21010405 | C137: سنگ شکن چکشی (کوبیت ) 50 تا 100 تن در ساعت | D137: دستگاه ساعت | E137: 197932.9 | H137: =SUMIF(Report!C:C,B137,Report!J:J) -> 0 | I137: 0 | J137: 0 | K137: =COUNTIF(Report!C:C,B137) -> 0
A138: 137 | B138: 21010502 | C138: ماسه ساز به ظرفيت 30 تا60 تن در ساعت | D138: دستگاه - ساعت | E138: 198063.8 | H138: =SUMIF(Report!C:C,B138,Report!J:J) -> 0 | I138: 0 | J138: 0 | K138: =COUNTIF(Report!C:C,B138) -> 0
A139: 138 | B139: 22020102 | C139: بتونير250 ليتري | D139: دستگاه - ساعت | E139: 29202 | H139: =SUMIF(Report!C:C,B139,Report!J:J) -> 0 | I139: 0 | J139: 0 | K139: =COUNTIF(Report!C:C,B139) -> 0
A140: 139 | B140: 22020103 | C140: بتونیر300 لیتری | D140: دستگاه ساعت | E140: 33838.7 | H140: =SUMIF(Report!C:C,B140,Report!J:J) -> 0 | I140: 0 | J140: 0 | K140: =COUNTIF(Report!C:C,B140) -> 0
A141: 140 | B141: 22020105 | C141: بتونیر 500 لیتری | D141: دستگاه ساعت | E141: 64470.3 | H141: =SUMIF(Report!C:C,B141,Report!J:J) -> 0 | I141: 0 | J141: 0 | K141: =COUNTIF(Report!C:C,B141) -> 0
A142: 141 | B142: 22020107 | C142: بتونیر750 لیتری | D142: دستگاه ساعت | E142: 92682 | H142: =SUMIF(Report!C:C,B142,Report!J:J) -> 0 | I142: 0 | J142: 0 | K142: =COUNTIF(Report!C:C,B142) -> 0
A143: 142 | B143: 22020204 | C143: ایستگاه بتن ساز بچینگ پلانت25 تا30 مترمکعب در ساعت | D143: دستگاه ساعت | E143: 507192.8 | H143: =SUMIF(Report!C:C,B143,Report!J:J) -> 0 | I143: 0 | J143: 0 | K143: =COUNTIF(Report!C:C,B143) -> 0
A144: 143 | B144: 22020212 | C144: ایستگاه بتن‌ساز (بچینگ پلانت) خارجی به ظرفیت 120 متر مکعب بر ساعت | D144: دستگاه ساعت | E144: 8277720.2 | H144: =SUMIF(Report!C:C,B144,Report!J:J) -> 0 | I144: 0 | J144: 0 | K144: =COUNTIF(Report!C:C,B144) -> 0
A145: 144 | B145: 22020302 | C145: مخزن متحرک بتن تراک میکسر6 متر مکعبی با راننده | D145: دستگاه ساعت | E145: 669833.6 | F145: 799087 | H145: =SUMIF(Report!C:C,B145,Report!J:J) -> 0 | I145: 0 | J145: 0 | K145: =COUNTIF(Report!C:C,B145) -> 0
A146: 145 | B146: 22020303 | C146: مخزن متحرک بتن تراک میکسر 7 متر مکعبی با راننده | D146: دستگاه ساعت | E146: 702604.8 | H146: =SUMIF(Report!C:C,B146,Report!J:J) -> 0 | I146: 0 | J146: 0 | K146: =COUNTIF(Report!C:C,B146) -> 0
A147: 146 | B147: 22020503 | C147: پمپ انتقال بتن45 تا60 مترمکعب درساعت | D147: دستگاه ساعت | E147: 2195640 | H147: =SUMIF(Report!C:C,B147,Report!J:J) -> 0 | I147: 0 | J147: 0 | K147: =COUNTIF(Report!C:C,B147) -> 0
A148: 147 | B148: 22020703 | C148: پمپ تزریق سیمان به قدرت10 اسب بخار | D148: دستگاه ساعت | E148: 644729.6 | H148: =SUMIF(Report!C:C,B148,Report!J:J) -> 0 | I148: 0 | J148: 0 | K148: =COUNTIF(Report!C:C,B148) -> 0
A149: 148 | B149: 22020707 | C149: پمپ شاتکریت ALIVA 262 با اپراتور (5 تا 8 مترمکعب در ساعت) با نازل | D149: دستگاه ساعت | E149: 278095.6 | H149: =SUMIF(Report!C:C,B149,Report!J:J) -> 0 | I149: 0 | J149: 0 | K149: =COUNTIF(Report!C:C,B149) -> 0
A150: 149 | B150: 22020805 | C150: فینیشرمخصوص بتن به ظرظیت حدود 120 مترمکعب درساعت باراننده | D150: دستگاه - ساعت | E150: 15200000 | H150: =SUMIF(Report!C:C,B150,Report!J:J) -> 0 | I150: 0 | J150: 0 | K150: =COUNTIF(Report!C:C,B150) -> 0
A151: 150 | B151: 22020811 | C151: دستگاه TCM برای رویه بتنی | D151: دستگاه - ساعت | E151: 3040000 | H151: =SUMIF(Report!C:C,B151,Report!J:J) -> 0 | I151: 0 | J151: 0 | K151: =COUNTIF(Report!C:C,B151) -> 0
A152: 151 | B152: 22030103 | C152: کارخانه آسفالت باظرفيت حدود 120 تن | D152: دستگاه-ساعت | E152: 5538051.29 | H152: =SUMIF(Report!C:C,B152,Report!J:J) -> 0 | I152: 0 | J152: 0 | K152: =COUNTIF(Report!C:C,B152) -> 0
A153: 152 | B153: 22030201 | C153: ماشین آسفالت پخش کنی فینیشر زنجیری با راننده | D153: دستگاه ساعت | E153: 1087051 | F153: 1144808 | H153: =SUMIF(Report!C:C,B153,Report!J:J) -> 0 | I153: 0 | J153: 0 | K153: =COUNTIF(Report!C:C,B153) -> 0
A154: 153 | B154: 22030202 | C154: ماشین آسفالت پخش کنی فینیشر لاستیکی با راننده | D154: دستگاه ساعت | E154: 1217497 | H154: =SUMIF(Report!C:C,B154,Report!J:J) -> 0 | I154: 0 | J154: 0 | K154: =COUNTIF(Report!C:C,B154) -> 0
A155: 154 | B155: 22030301 | C155: قیرپاش حدود5000 لیتری باخودرو وراننده | D155: دستگاه-ساعت | E155: 790580 | F155: 731650 | H155: =SUMIF(Report!C:C,B155,Report!J:J) -> 0 | I155: 0 | J155: 0 | K155: =COUNTIF(Report!C:C,B155) -> 0
A156: 155 | B156: 22030311 | C156: ماشین آسفالت تراش | D156: دستگاه ساعت | E156: 861500 | H156: =SUMIF(Report!C:C,B156,Report!J:J) -> 0 | I156: 0 | J156: 0 | K156: =COUNTIF(Report!C:C,B156) -> 0
A157: 156 | B157: 22030321 | C157: ماشین بازیافت آسفالت | D157: دستگاه ساعت | E157: 4103921.03 | H157: =SUMIF(Report!C:C,B157,Report!J:J) -> 0 | I157: 0 | J157: 0 | K157: =COUNTIF(Report!C:C,B157) -> 0
A158: 157 | B158: 22030401 | C158: دستگاه پخش کننده مصالح سنگی آسفالت سطحی اسپریدر | D158: دستگاه ساعت | E158: 91474.1 | H158: =SUMIF(Report!C:C,B158,Report!J:J) -> 0 | I158: 0 | J158: 0 | K158: =COUNTIF(Report!C:C,B158) -> 0
A159: 158 | B159: 22030602 | C159: ماشین خط کشی آسفالت اچ 33 با راننده | D159: دستگاه ساعت | E159: 780724.7 | H159: =SUMIF(Report!C:C,B159,Report!J:J) -> 0 | I159: 0 | J159: 0 | K159: =COUNTIF(Report!C:C,B159) -> 0
A160: 159 | B160: 22030603 | C160: ماشین خط کشی آسفالت اچ 75 با راننده | D160: دستگاه ساعت | E160: 3356315.93 | H160: =SUMIF(Report!C:C,B160,Report!J:J) -> 0 | I160: 0 | J160: 0 | K160: =COUNTIF(Report!C:C,B160) -> 0
A161: 160 | B161: 22030701 | C161: دستگاه برش آسفالت (کاتر) | D161: دستگاه ساعت | E161: 60855.3 | H161: =SUMIF(Report!C:C,B161,Report!J:J) -> 0 | I161: 0 | J161: 0 | K161: =COUNTIF(Report!C:C,B161) -> 0
A162: 161 | B162: 22030702 | C162: تیغه برش کاتر | D162: عدد | E162: 2950940.2 | H162: =SUMIF(Report!C:C,B162,Report!J:J) -> 0 | I162: 0 | J162: 0 | K162: =COUNTIF(Report!C:C,B162) -> 0
A163: 162 | B163: 22030704 | C163: ديسک کاتر دستگاه تي. بي. ام نوع E.P.B | D163: عدد | E163: 132560.4 | H163: =SUMIF(Report!C:C,B163,Report!J:J) -> 0 | I163: 0 | J163: 0 | K163: =COUNTIF(Report!C:C,B163) -> 0
A164: 163 | B164: 22030705 | C164: ديسک کاتر دستگاه تي. بي. ام نوع Hard Rock | D164: عدد | E164: 203708.8 | H164: =SUMIF(Report!C:C,B164,Report!J:J) -> 0 | I164: 0 | J164: 0 | K164: =COUNTIF(Report!C:C,B164) -> 0
A165: 164 | B165: 22030801 | C165: ماشین شیار زن | D165: دستگاه ساعت | E165: 1207000 | H165: =SUMIF(Report!C:C,B165,Report!J:J) -> 0 | I165: 0 | J165: 0 | K165: =COUNTIF(Report!C:C,B165) -> 0
A166: 165 | B166: 22030802 | C166: ناخن ماشین شیار زن | D166: عدد | E166: 366530.9 | H166: =SUMIF(Report!C:C,B166,Report!J:J) -> 0 | I166: 0 | J166: 0 | K166: =COUNTIF(Report!C:C,B166) -> 0
A167: 166 | B167: 22031001 | C167: ماشين پيش‌گرم‌کن آسفالت با هواي گرم | D167: دستگاه - ساعت | E167: 4106761.9 | H167: =SUMIF(Report!C:C,B167,Report!J:J) -> 0 | I167: 0 | J167: 0 | K167: =COUNTIF(Report!C:C,B167) -> 0
A168: 167 | B168: 22031002 | C168: ماشين تراش با پيش‌گرم‌کن آسفالت با هواي گرم | D168: دستگاه - ساعت | E168: 5961428.57 | H168: =SUMIF(Report!C:C,B168,Report!J:J) -> 0 | I168: 0 | J168: 0 | K168: =COUNTIF(Report!C:C,B168) -> 0
A169: 168 | B169: 22031003 | C169: ماشين ميکسر با پيش‌گرم‌کن آسفالت با هواي گرم | D169: دستگاه - ساعت | E169: 5961428.57 | H169: =SUMIF(Report!C:C,B169,Report!J:J) -> 0 | I169: 0 | J169: 0 | K169: =COUNTIF(Report!C:C,B169) -> 0
A170: 169 | B170: 22031004 | C170: غلتک ويبره چرخ آهني 10 تا 12 تن براي تراکم آسفالت | D170: دستگاه - ساعت | E170: 563690.8 | H170: =SUMIF(Report!C:C,B170,Report!J:J) -> 0 | I170: 0 | J170: 0 | K170: =COUNTIF(Report!C:C,B170) -> 0
A171: 170 | B171: 22040101 | C171: استهلاک ساختمان | D171: مترمربع | H171: =SUMIF(Report!C:C,B171,Report!J:J) -> 0 | I171: 0 | J171: 0 | K171: =COUNTIF(Report!C:C,B171) -> 0
A172: 171 | B172: 22040102 | C172: تجهيزات توليد بتن | D172: ست | E172: 9703506114 | H172: =SUMIF(Report!C:C,B172,Report!J:J) -> 0 | I172: 0 | J172: 0 | K172: =COUNTIF(Report!C:C,B172) -> 0
A173: 172 | B173: 22040103 | C173: قالب‌ها | D173: رينگ 8 | H173: =SUMIF(Report!C:C,B173,Report!J:J) -> 0 | I173: 0 | J173: 0 | K173: =COUNTIF(Report!C:C,B173) -> 0
A174: 173 | B174: 22040104 | C174: تاسيسات توليد بخار | D174: مجموعه | E174: 8733155502 | H174: =SUMIF(Report!C:C,B174,Report!J:J) -> 0 | I174: 0 | J174: 0 | K174: =COUNTIF(Report!C:C,B174) -> 0
A175: 174 | B175: 22040105 | C175: ماشين‌آلات حمل بتن | D175: مجموعه | H175: =SUMIF(Report!C:C,B175,Report!J:J) -> 0 | I175: 0 | J175: 0 | K175: =COUNTIF(Report!C:C,B175) -> 0
A176: 175 | B176: 22040202 | C176: قطار براي حمل سگمنت | D176: دستگاه - ساعت | E176: 5875000.48 | H176: =SUMIF(Report!C:C,B176,Report!J:J) -> 0 | I176: 0 | J176: 0 | K176: =COUNTIF(Report!C:C,B176) -> 0
A177: 176 | B177: 22040203 | C177: ترابري ريلي | D177: ساعت | E177: 9710263.56 | H177: =SUMIF(Report!C:C,B177,Report!J:J) -> 0 | I177: 0 | J177: 0 | K177: =COUNTIF(Report!C:C,B177) -> 0
A178: 177 | B178: 22040204 | C178: نوار نقاله | D178: دستگاه - ساعت | E178: 25793805.6 | H178: =SUMIF(Report!C:C,B178,Report!J:J) -> 0 | I178: 0 | J178: 0 | K178: =COUNTIF(Report!C:C,B178) -> 0
A179: 178 | B179: 22040205 | C179: ريل و متعلقات | D179: كیلوگرم | E179: 44654.15 | H179: =SUMIF(Report!C:C,B179,Report!J:J) -> 0 | I179: 0 | J179: 0 | K179: =COUNTIF(Report!C:C,B179) -> 0
A180: 179 | B180: 22040206 | C180: دستگاه حفاري تي. بي. ام E.P.B | D180: دستگاه - ساعت | E180: 74095796.02 | H180: =SUMIF(Report!C:C,B180,Report!J:J) -> 0 | I180: 0 | J180: 0 | K180: =COUNTIF(Report!C:C,B180) -> 0
A181: 180 | B181: 22040207 | C181: دستگاه حفاري تي. بي. ام Hard Rock | D181: دستگاه - ساعت | E181: 68640779.8 | H181: =SUMIF(Report!C:C,B181,Report!J:J) -> 0 | I181: 0 | J181: 0 | K181: =COUNTIF(Report!C:C,B181) -> 0
A182: 181 | B182: 23010301 | C182: ماشین سواری لندرور یا مشابه با راننده | D182: دستگاه ساعت | E182: 215653.6 | F182: 211327 | H182: =SUMIF(Report!C:C,B182,Report!J:J) -> 0 | I182: 0 | J182: 0 | K182: =COUNTIF(Report!C:C,B182) -> 0
A183: 182 | B183: 23010402 | C183: ماشین سواری استیشن چهاردر باراننده | D183: دستگاه ساعت | E183: 350443.8 | F183: 229631 | H183: =SUMIF(Report!C:C,B183,Report!J:J) -> 0 | I183: 0 | J183: 0 | K183: =COUNTIF(Report!C:C,B183) -> 0
A184: 183 | B184: 23010501 | C184: وانت نیم تن باراننده | D184: دستگاه-ساعت | E184: 179710.2 | H184: =SUMIF(Report!C:C,B184,Report!J:J) -> 0 | I184: 0 | J184: 0 | K184: =COUNTIF(Report!C:C,B184) -> 0
A185: 184 | B185: 23010502 | C185: وانت یک تن باراننده | D185: دستگاه-ساعت | E185: 206677.7 | F185: 233825 | H185: =SUMIF(Report!C:C,B185,Report!J:J) -> 0 | I185: 0 | J185: 0 | K185: =COUNTIF(Report!C:C,B185) -> 0
A186: 185 | B186: 23010503 | C186: وانت 5 /1 تن باراننده | D186: دستگاه-ساعت | E186: 233639.7 | H186: =SUMIF(Report!C:C,B186,Report!J:J) -> 0 | I186: 0 | J186: 0 | K186: =COUNTIF(Report!C:C,B186) -> 0
A187: 186 | B187: 23020101 | C187: کامیون به ظرفیت حدود3 تن باراننده | D187: دستگاه-ساعت | E187: 275630.7 | H187: =SUMIF(Report!C:C,B187,Report!J:J) -> 0 | I187: 0 | J187: 0 | K187: =COUNTIF(Report!C:C,B187) -> 0
A188: 187 | B188: 23020102 | C188: کاميون به ظرفيت حدود 5 تن باراننده | D188: دستگاه-ساعت | E188: 399606.5 | H188: =SUMIF(Report!C:C,B188,Report!J:J) -> 0 | I188: 0 | J188: 0 | K188: =COUNTIF(Report!C:C,B188) -> 0
A189: 188 | B189: 23020202 | C189: کامیون کمپرسی به ظرفیت حدود5 تن باراننده | D189: دستگاه-ساعت | E189: 394477.6 | H189: =SUMIF(Report!C:C,B189,Report!J:J) -> 0 | I189: 0 | J189: 0 | K189: =COUNTIF(Report!C:C,B189) -> 0
A190: 189 | B190: 23020204 | C190: کامیون کمپرسی به ظرفیت حدود 10 تن با راننده | D190: دستگاه-ساعت | E190: 461084.4 | F190: 613863 | H190: =SUMIF(Report!C:C,B190,Report!J:J) -> 0 | I190: 0 | J190: 0 | K190: =COUNTIF(Report!C:C,B190) -> 0
A191: 190 | B191: 23020204 | C191: کامیون کمپرسی به ظرفیت حدود10 تن باراننده | D191: دستگاه-ساعت | E191: 461084.4 | F191: 613863 | H191: =SUMIF(Report!C:C,B191,Report!J:J) -> 0 | I191: 0 | J191: 0 | K191: =COUNTIF(Report!C:C,B191) -> 0
A192: 191 | B192: 23020205 | C192: کامیون کمپرسی به ظرفیت حدود 16 تن با راننده | D192: دستگاه ساعت | E192: 476453.9 | F192: 732989 | H192: =SUMIF(Report!C:C,B192,Report!J:J) -> 0 | I192: 0 | J192: 0 | K192: =COUNTIF(Report!C:C,B192) -> 0
A193: 192 | B193: 23020206 | C193: کامیون کمپرسی تریلر به ظرفیت حدود 25 تن با راننده | D193: دستگاه - ساعت | E193: 553301.3 | H193: =SUMIF(Report!C:C,B193,Report!J:J) -> 0 | I193: 0 | J193: 0 | K193: =COUNTIF(Report!C:C,B193) -> 0
A194: 193 | B194: 23020302 | C194: تریلی دو محوره با ظرفیت 24 تن باراننده | D194: دستگاه-ساعت | E194: 621141.5 | H194: =SUMIF(Report!C:C,B194,Report!J:J) -> 0 | I194: 0 | J194: 0 | K194: =COUNTIF(Report!C:C,B194) -> 0
A195: 194 | B195: 23020306 | C195: تریلی5 محور کشویی با راننده | D195: دستگاه ساعت | E195: 1153537.9 | H195: =SUMIF(Report!C:C,B195,Report!J:J) -> 0 | I195: =IF($M$1=$L$1,H195*E195,+IF($M$1=$L$2,H195*F195,H195*G195)) -> 0 | J195: =IFERROR(I195/SUM($I$2:$I$2499),0) -> 0 | K195: =COUNTIF(Report!C:C,B195) -> 0
A196: 195 | B196: 23020307 | C196: تریلی6 محور لوله بر با راننده | D196: دستگاه ساعت | E196: 1331002 | H196: =SUMIF(Report!C:C,B196,Report!J:J) -> 0 | I196: 0 | J196: 0 | K196: =COUNTIF(Report!C:C,B196) -> 0
A197: 196 | B197: 23020309 | C197: تریلی9 محور لوله بر با راننده | D197: دستگاه ساعت | E197: 2129582.5 | H197: =SUMIF(Report!C:C,B197,Report!J:J) -> 0 | I197: 0 | J197: 0 | K197: =COUNTIF(Report!C:C,B197) -> 0
A198: 197 | B198: 23020310 | C198: تریلی11محور لوله بر با راننده | D198: دستگاه ساعت | E198: 2621872.54 | H198: =SUMIF(Report!C:C,B198,Report!J:J) -> 0 | I198: 0 | J198: 0 | K198: =COUNTIF(Report!C:C,B198) -> 0
A199: 198 | B199: 23020311 | C199: بوژی6 محور با کشنده جمعا9 محور با راننده | D199: دستگاه ساعت | E199: 3401311.11 | H199: =SUMIF(Report!C:C,B199,Report!J:J) -> 0 | I199: 0 | J199: 0 | K199: =COUNTIF(Report!C:C,B199) -> 0
A200: 199 | B200: 23020501 | C200: تانکر آب پاش به ظرفيت حدود 5000 ليتر باراننده | D200: دستگاه-ساعت | E200: 237003.6 | F200: 385880 | H200: =SUMIF(Report!C:C,B200,Report!J:J) -> 0 | I200: 0 | J200: 0 | K200: =COUNTIF(Report!C:C,B200) -> 0
... 1301 more rows

Sheet Report
B1: «جدول 5 . تجزیه بهای اقلام کار»
B2: ='D2'!B1 -> فهرست بهای واحد پایه رشته راه، باندفرودگاه و زیرسازی راه آهن رسته راه و ترابری سال 98
B3: =IF(desk!F12<>"","نام پروژه: "&desk!F12,"") ->  | F3: =IF(desk!F13<>"","نام دستگاه اجرایی: "&desk!F13,"") -> نام دستگاه اجرایی: کارفرمای نمونه متن آزمایشی
B4: =IF(desk!F15<>"","نام پیمانکار: "&desk!F15,"") -> نام پیمانکار: پیمانکار نمونه متن آزمایشی | F4: =IF(desk!F14<>"","نام مشاور: "&desk!F14,"") -> نام مشاور: مشاور نمونه متن آزمایشی
B5: فصل 1 . عملیات تخریب
B6: شرح ردیف : | E6: تخریب بتن مسلح، با هر عیار سیمان و بریدن میلگردها با استفاده از کمپرسور، چنانچه بخشی از سازه تخریب شود. | J6: 2965544.348
B7: شمـاره رديف آنـاليــز : 010308 | J7: 2965544.348
B8: واحـد : مترمكعب | D8: مقدار : 0 | J8: 0
B9: رديف | C9: کد عامل | D9: نيروي انساني | E9: واحد | F9: مقیاس1 | G9: مقدار/مقیاس | H9: بهای واحد عامل | I9: بهاي کل
B10: 1 | C10: 13041001 | D10: متصدی کمپرسور | E10: نفر - ساعت | F10: 1 | G10: 5.07 | H10: 86212.5 | I10: 437097.375 | J10: 0
B11: 2 | C11: 14010102 | D11: كارگر ساده | E11: نفر- ساعت | F11: 1 | G11: 10.27 | H11: 70696 | I11: 726047.92 | J11: 0
B12: 3 | C12: 14240601 | D12: چکش گیر (مینور) | E12: نفر- ساعت | F12: 1 | G12: 10.4 | H12: 90969.1 | I12: 946078.64 | J12: 0
B13: درصد وزنی | E13: 0.7112 | G13: جمع نيروي انساني | I13: 2109223.935
B14: رديف | C14: کد عامل | D14: ماشين آلات 2 | E14: واحد | F14: مقیاس1 | G14: مقدار/مقیاس | H14: بهای واحد عامل | I14: بهاي کل
B15: 1 | C15: 25040102 | D15: کمپرسور باظرفیت حدود 5 متر مکعب دردقیقه (180 سی اف ام) با شیلنگ مربوط | E15: دستگاه-ساعت | F15: 1 | G15: 5.07 | H15: 150712.1 | I15: 764110.347 | J15: 0
B16: 2 | C16: 28070101 | D16: بیل | E16: عدد | F16: 1 | G16: 0.013 | H16: 250800 | I16: 3260.4 | J16: 0
B17: 3 | C17: 28070701 | D17: کلنگ دو سر | E17: عدد | F17: 1 | G17: 0.013 | H17: 288800 | I17: 3754.4 | J17: 0
B18: 4 | C18: 28110101 | D18: چکش دج بر 32 کیلوگرم | E18: دستگاه ساعت | F18: 1 | G18: 5.07 | H18: 16803.8 | I18: 85195.266 | J18: 0
B19: درصد وزنی | E19: 0.2888 | G19: جمع ماشين آلات | I19: 856320.413
B20: شماره رديف يا رديفهاي معادل : 010308 | E20: بهای واحد کار: | I20: 2965544.348
B21: بهای واحد رديف : | D21: 2965000 | E21: مقايسه پيشنهاد نسبت به برآورد (درصد) ± | I21: 0.00018
B22: بهای کل کار: | D22: 0 | E22: بهای کل کار: | I22: 0
B23: پ
B24: فصل 3 . عملیات خاکی باماشین
B25: شرح ردیف : | E25: شخم زدن هرنوع زمين غيرسنگي با وسيله مکانيکي، به عمق تا 15 سانتيمتر ‎.‎ | J25: 770.108798
B26: شمـاره رديف آنـاليــز : 030101 | J26: 770.108798
B27: واحـد : متر مربع | D27: مقدار : 20 | J27: 20
B28: رديف | C28: کد عامل | D28: نيروي انساني | E28: واحد | F28: مقیاس1 | G28: مقدار/مقیاس | H28: بهای واحد عامل | I28: بهاي کل
B29: 1 | C29: 14010101 | D29: سر کارگر | E29: نفر ساعت | F29: 1 | G29: 0.00093 | H29: 81272.6 | I29: 75.583518 | J29: 0.0186
B30: 2 | C30: 14010102 | D30: كارگر ساده | E30: نفر- ساعت | F30: 1 | G30: 0.00093 | H30: 70696 | I30: 65.74728 | J30: 0.0186
B31: 3 | C31: 14240301 | D31: مباشر عملیات خاکی با سابقه بیش از 10 سال | E31: نفر- ساعت | F31: 1 | G31: 0.00046 | H31: 196250.6 | I31: 90.275276 | J31: 0.0092
B32: درصد وزنی | E32: 0.3007 | G32: جمع نيروي انساني | I32: 231.606074
B33: رديف | C33: کد عامل | D33: ماشين آلات 2 | E33: واحد | F33: مقیاس1 | G33: مقدار/مقیاس | H33: بهای واحد عامل | I33: بهاي کل
B34: 1 | C34: 25010602 | D34: بولدوزر به قدرت حدود 150 اسب بخار با راننده | E34: ساعت | F34: 1 | G34: 0.00044 | H34: 505875.5 | I34: 222.58522 | J34: 0.0088
B35: 2 | C35: 25010902 | D35: گریدر به قدرت حدود180 اسب بخار باراننده | E35: دستگاه-ساعت | F35: 1 | G35: 0.00049 | H35: 644729.6 | I35: 315.917504 | J35: 0.0098
B36: درصد وزنی | E36: 0.6993 | G36: جمع ماشين آلات | I36: 538.502724
B37: شماره رديف يا رديفهاي معادل : 030101 | E37: بهای واحد کار: | I37: 770.108798
B38: بهای واحد رديف : | D38: 770 | E38: مقايسه پيشنهاد نسبت به برآورد (درصد) ± | I38: 0.00014
B39: بهای کل کار: | D39: 15400 | E39: بهای کل کار: | I39: 15402.17596
B40: پ
B41: فصل 5 . حفاری، شمع کوبی و سپرکوبی
B42: شرح ردیف : | E42: حفاری ماشینی محل شمع، با مقطع دایره ای و به قطر 60 سانتیمتر، به طور عمودی تا عمق 20 متر در زمین هایی که در آن ها 50 =>N باشد، بیرون آوردن مصالح و حمل آن ها به دپو تا فاصله 50 متری مرکز ثقل محل حفاری، با هر وسیله، و تمیزکردن محل عملیات. | J42: 1520851.278
B43: شمـاره رديف آنـاليــز : 050101 | J43: 1520851.278
B44: واحـد : مترطول | D44: مقدار : 20 | J44: 20
B45: رديف | C45: کد عامل | D45: نيروي انساني | E45: واحد | F45: مقیاس1 | G45: مقدار/مقیاس | H45: بهای واحد عامل | I45: بهاي کل
B46: 1 | C46: 13010402 | D46: جوشکار درجه دو | E46: نفر ساعت | F46: 1 | G46: 0.15 | H46: 109041.1 | I46: 16356.165 | J46: 3
B47: 2 | C47: 14010102 | D47: كارگر ساده | E47: نفر- ساعت | F47: 1 | G47: 0.65 | H47: 70696 | I47: 45952.4 | J47: 13
B48: 3 | C48: 14250101 | D48: تکنیسین عملیات حفاری و شمعکوبی | E48: نفر- ساعت | F48: 1 | G48: 0.1 | H48: 207415.9 | I48: 20741.59 | J48: 2
B49: 4 | C49: 14250201 | D49: حفار درجه یک شمع های درجا | E49: نفر ساعت | F49: 1 | G49: 0.25 | H49: 163546.5 | I49: 40886.625 | J49: 5
B50: 5 | C50: 14250203 | D50: کمک حفار شمع های درجا | E50: نفر ساعت | F50: 1 | G50: 0.25 | H50: 92940.6 | I50: 23235.15 | J50: 5
B51: 6 | C51: 14250204 | D51: کارگر حفاری | E51: نفر ساعت | F51: 1 | G51: 0.25 | H51: 81390.9 | I51: 20347.725 | J51: 5
B52: درصد وزنی | E52: 0.1101 | G52: جمع نيروي انساني | I52: 167519.655
B53: رديف | C53: کد عامل | D53: ماشين آلات 2 | E53: واحد | F53: مقیاس1 | G53: مقدار/مقیاس | H53: بهای واحد عامل | I53: بهاي کل
B54: 1 | C54: 25010802 | D54: لودرچرخ لاستيکي به قدرت حدود150 اسب بخار باراننده | E54: دستگاه-ساعت | F54: 1 | G54: 0.15 | H54: 552613.8 | I54: 82892.07 | J54: 3
B55: 2 | C55: 25020301 | D55: دستگاه حفاري شمع هاي درجا | E55: دستگاه ساعت | F55: 1 | G55: 0.25 | H55: 5049402.01 | I55: 1262350.502 | J55: 5
B56: 3 | C56: 26020502 | D56: موتور جوش150 تا250 آمپر | E56: دستگاه ساعت | F56: 1 | G56: 0.15 | H56: 53927 | I56: 8089.05 | J56: 3
B57: درصد وزنی | E57: 0.8899 | G57: جمع ماشين آلات | I57: 1353331.623
B58: شماره رديف يا رديفهاي معادل : 050101 | E58: بهای واحد کار: | I58: 1520851.278
B59: بهای واحد رديف : | D59: 1553000 | E59: مقايسه پيشنهاد نسبت به برآورد (درصد) ± | I59: -0.0207
B60: بهای کل کار: | D60: 31060000 | E60: بهای کل کار: | I60: 30417025.55
B61: پ
B62: فصل 5 . حفاری، شمع کوبی و سپرکوبی
B63: شرح ردیف : | E63: حفاری ماشینی محل شمع، با مقطع دایره ای و به قطر 60 سانتیمتر، به طور عمودی تا عمق 20 متر در زمین هایی که در آن ها 50 =>N باشد، بیرون آوردن مصالح و حمل آن ها به دپو تا فاصله 50 متری مرکز ثقل محل حفاری، با هر وسیله، و تمیزکردن محل عملیات. | J63: 1520851.278
B64: شمـاره رديف آنـاليــز : 050101 | J64: 1520851.278
B65: واحـد : مترطول
B66: رديف | C66: کد عامل | D66: نيروي انساني | E66: واحد | F66: مقیاس1 | G66: مقدار/مقیاس | H66: بهای واحد عامل | I66: بهاي کل
B67: 1 | C67: 13010402 | D67: جوشکار درجه دو | E67: نفر ساعت | F67: 1 | G67: 0.15 | H67: 109041.1 | I67: 16356.165
B68: 2 | C68: 14010102 | D68: كارگر ساده | E68: نفر- ساعت | F68: 1 | G68: 0.65 | H68: 70696 | I68: 45952.4
B69: 3 | C69: 14250101 | D69: تکنیسین عملیات حفاری و شمعکوبی | E69: نفر- ساعت | F69: 1 | G69: 0.1 | H69: 207415.9 | I69: 20741.59
B70: 4 | C70: 14250201 | D70: حفار درجه یک شمع های درجا | E70: نفر ساعت | F70: 1 | G70: 0.25 | H70: 163546.5 | I70: 40886.625
B71: 5 | C71: 14250203 | D71: کمک حفار شمع های درجا | E71: نفر ساعت | F71: 1 | G71: 0.25 | H71: 92940.6 | I71: 23235.15
B72: 6 | C72: 14250204 | D72: کارگر حفاری | E72: نفر ساعت | F72: 1 | G72: 0.25 | H72: 81390.9 | I72: 20347.725
B73: درصد وزنی | E73: 0.1101 | G73: جمع نيروي انساني | I73: 167519.655
B74: رديف | C74: کد عامل | D74: ماشين آلات 2 | E74: واحد | F74: مقیاس1 | G74: مقدار/مقیاس | H74: بهای واحد عامل | I74: بهاي کل
B75: 1 | C75: 25010802 | D75: لودرچرخ لاستيکي به قدرت حدود150 اسب بخار باراننده | E75: دستگاه-ساعت | F75: 1 | G75: 0.15 | H75: 552613.8 | I75: 82892.07
B76: 2 | C76: 25020301 | D76: دستگاه حفاري شمع هاي درجا | E76: دستگاه ساعت | F76: 1 | G76: 0.25 | H76: 5049402.01 | I76: 1262350.502
B77: 3 | C77: 26020502 | D77: موتور جوش150 تا250 آمپر | E77: دستگاه ساعت | F77: 1 | G77: 0.15 | H77: 53927 | I77: 8089.05
B78: درصد وزنی | E78: 0.8899 | G78: جمع ماشين آلات | I78: 1353331.623
B79: شماره رديف يا رديفهاي معادل : 050101 | E79: بهای واحد کار: | I79: 1520851.278
B80: بهای واحد رديف : | E80: مقايسه پيشنهاد نسبت به برآورد (درصد) ±
B81: بهای کل کار: | E81: بهای کل کار:
B82: پ

Sheet desk (hidden)
C1: =COUNTA(B:B) -> 0
E12: پروژه:
E13: دستگاه اجرایی: | F13: کارفرمای نمونه متن آزمایشی
E14: نام مشاور: | F14: مشاور نمونه متن آزمایشی
E15: نام پیمانکار: | F15: پیمانکار نمونه متن آزمایشی
